Organisation Name,Effective Date,Purch Date,Service Area,Expenses Area,Beneficiary,Net amount,    Tax,     Gross,Long Text,MCC Description
Buckinghamshire Council ,31.05.2023,31.05.2023,Adults and Health,Health & Wellbeing - Adults & Health Dir,SAINSBURYS S/MKTS,10.75,0,10.75,General Provisions (Food),Grocery stores
Buckinghamshire Council ,31.05.2023,31.05.2023,Adults and Health,Health & Wellbeing - Adults & Health Dir,LYRECO UK LTD,25.19,5.04,30.23,Stationery & Office Supplies,Stationery & office supplies
Buckinghamshire Council ,31.05.2023,31.05.2023,Children's Services,Education & Childrens Services - CS Dir,A1 TAXI SERVICE,64,12.8,76.8,Sec 20/31: Transport,Taxicabs & limousines
Buckinghamshire Council ,31.05.2023,31.05.2023,Children's Services,Education & Childrens Services - CS Dir,CURRYS ONLINE,270,0,270,Leaving Care - Grants for Care Leavers,Electronics shops
Buckinghamshire Council ,31.05.2023,31.05.2023,Children's Services,Education & Childrens Services - CS Dir,DUNELM SOFTFURNISHINGS,196,0,196,Leaving Care - Grants for Care Leavers,Furniture & home furnishing
Buckinghamshire Council ,31.05.2023,31.05.2023,Children's Services,Education & Childrens Services - CS Dir,PETS AT HOME LTD,43.85,0,43.85,Other Equipment and Materials,"Pet shops, food & supply"
Buckinghamshire Council ,31.05.2023,31.05.2023,Deputy Chief Executive,Communities - DCE,WWW.ARGOS.CO.UK,28.29,5.66,33.95,Other Personal Needs,Department stores
Buckinghamshire Council ,31.05.2023,31.05.2023,Deputy Chief Executive,Communities - DCE,AO RETAIL LIMITED,224.15,44.83,268.98,Other Personal Needs,Household appliance stores
Buckinghamshire Council ,31.05.2023,31.05.2023,Deputy Chief Executive,Communities - DCE,AO RETAIL LIMITED,0.02,0,0.02,Other Personal Needs,Household appliance stores
Buckinghamshire Council ,31.05.2023,31.05.2023,Deputy Chief Executive,Communities - DCE,AO RETAIL LIMITED,311.66,62.34,374,Other Personal Needs,Household appliance stores
Buckinghamshire Council ,31.05.2023,31.05.2023,Deputy Chief Executive,Communities - DCE,AO RETAIL LIMITED,111.65,22.33,133.98,Other Personal Needs,Household appliance stores
Buckinghamshire Council ,31.05.2023,31.05.2023,Deputy Chief Executive,Communities - DCE,AO RETAIL LIMITED,0.02,0,0.02,Other Personal Needs,Household appliance stores
Buckinghamshire Council ,31.05.2023,31.05.2023,Deputy Chief Executive,Communities - DCE,AO RETAIL LIMITED,643.3,128.66,771.96,Other Personal Needs,Household appliance stores
Buckinghamshire Council ,31.05.2023,31.05.2023,Deputy Chief Executive,Communities - DCE,AO RETAIL LIMITED,0.04,0,0.04,Other Personal Needs,Household appliance stores
Buckinghamshire Council ,31.05.2023,31.05.2023,Deputy Chief Executive,Communities - DCE,WWW.ARGOS.CO.UK,90.79,18.16,108.95,Other Personal Needs,Department stores
Buckinghamshire Council ,31.05.2023,31.05.2023,Adults and Health,Health & Wellbeing - Adults & Health Dir,THE GREENSAND TRUST,70,0,70,Miscellaneous (Other)  Expenses,"Civic, social & fraternal associations"
Buckinghamshire Council ,31.05.2023,31.05.2023,Communities,artnerships - Communities,CANVA* 03802-0751482,149.76,0,149.76,Miscellaneous (Other)  Expenses,"Commercial photo, art & graphic"
Buckinghamshire Council ,31.05.2023,31.05.2023,Children's Services,Education & Childrens Services - CS Dir,AMZNMKTPLACE,100.64,20.13,120.78,Educational Equipment,Miscellaneous retail
Buckinghamshire Council ,31.05.2023,31.05.2023,Children's Services,Education & Childrens Services - CS Dir,WWW.NISBETS.COM,410.2,82.04,492.23,Educational Equipment,Catalogue sales
Buckinghamshire Council ,31.05.2023,31.05.2023,Children's Services,Education & Childrens Services - CS Dir,POST OFFICE COUNTER,11,0,11,Educational Equipment,Postal services
Buckinghamshire Council ,31.05.2023,31.05.2023,Communities,Climate Change & Environment - Community,AMZNMKTPLACE,89.98,0,89.98,Equipment,Miscellaneous retail
Buckinghamshire Council ,31.05.2023,31.05.2023,Adults and Health,Health & Wellbeing - Adults & Health Dir,TESCO STORES 5927,8.25,0,8.25,General Provisions (Food),Grocery stores
Buckinghamshire Council ,31.05.2023,31.05.2023,Children's Services,Education & Childrens Services - CS Dir,TRAINLINE.COM,126.69,0,126.69,Sec 20/31: Specialist Services,Passenger railways
Buckinghamshire Council ,31.05.2023,31.05.2023,Children's Services,artnerships - Children's Services,WAITROSE,17.7,0,17.7,"Courses, Conference and Seminar Fees",Grocery stores
Buckinghamshire Council ,31.05.2023,31.05.2023,Children's Services,Education & Childrens Services - CS Dir,DOMINO S PIZZA,114.42,0,114.42,Activities & General Recreation,Restaurants
Buckinghamshire Council ,31.05.2023,31.05.2023,Resources,AH&R - Res Dir,GMO GLOBALSIGN LIM,226.8,0,226.8,Annual Licence (IT),Computer network information services
Buckinghamshire Council ,31.05.2023,31.05.2023,Resources,AH&R - Res Dir,GMO GLOBALSIGN LIM,226.8,0,226.8,Annual Licence (IT),Computer network information services
Buckinghamshire Council ,31.05.2023,31.05.2023,Children's Services,Education & Childrens Services - CS Dir,AMZNMKTPLACE,123.85,0,123.85,Training (Inc. Health & Safety Courses),Miscellaneous retail
Buckinghamshire Council ,31.05.2023,31.05.2023,Children's Services,Education & Childrens Services - CS Dir,LINKEDIN ADS 8609764973,92.4,0,92.4,Advertising,Advertising services
Buckinghamshire Council ,31.05.2023,31.05.2023,Children's Services,Education & Childrens Services - CS Dir,TESCO STORES 2038,50.05,0,50.05,Consumable Supplies,Grocery stores
Buckinghamshire Council ,31.05.2023,31.05.2023,Deputy Chief Executive,Communities - DCE,MARKS&SPENCER PLC,30,0,30,General Provisions (Food),Grocery stores
Buckinghamshire Council ,31.05.2023,31.05.2023,"Planning, Growth & Sustainability",Housing & Homelessness & Regulatory PGS,IKEA LTD SHOP ONLINE,885,0,885,Furniture,Furniture & home furnishing
Buckinghamshire Council ,31.05.2023,31.05.2023,Deputy Chief Executive,AH&R- DCE Dir,WWW.ARGOS.CO.UK,-408.5,0,-408.5,Miscellaneous (Other)  Expenses,Department stores
Buckinghamshire Council ,31.05.2023,31.05.2023,Deputy Chief Executive,AH&R- DCE Dir,WWW.ARGOS.CO.UK,-3.95,0,-3.95,Miscellaneous (Other)  Expenses,Department stores
Buckinghamshire Council ,31.05.2023,31.05.2023,Children's Services,Education & Childrens Services - CS Dir,RUSH HIGH WYCOMBE,40.15,0,40.15,Activities & General Recreation,Misc. recreational services
Buckinghamshire Council ,31.05.2023,31.05.2023,Children's Services,Education & Childrens Services - CS Dir,WWW.BUCKINGHAMSHIRE.GOV,153,0,153,Sec 17: Accommodation,Government services
Buckinghamshire Council ,31.05.2023,31.05.2023,Deputy Chief Executive,AH&R- DCE Dir,AIRPAY 46464863-CABS4U,7.7,0,7.7,Staff Travelling Expenses,Taxicabs & limousines
Buckinghamshire Council ,31.05.2023,31.05.2023,Children's Services,Education & Childrens Services - CS Dir,AMAZON.CO.UK,29.23,0,29.23,Stationery & Office Supplies,Direct sales companies
Buckinghamshire Council ,31.05.2023,31.05.2023,Communities,Transport - Communities Dir,WH SMITH AMERSHAM,38.98,0,38.98,Materials,Newspapers / newsagents
Buckinghamshire Council ,31.05.2023,31.05.2023,Deputy Chief Executive,Communities - DCE,WWW.BUCKINGHAMSHIRE.GOV,21,0,21,Marketing,Government services
Buckinghamshire Council ,31.05.2023,31.05.2023,Deputy Chief Executive,Communities - DCE,SQ *MY PARTY WEAR,31.95,0,31.95,Marketing,"Bands, orchestras & misc entertainment"
Buckinghamshire Council ,31.05.2023,31.05.2023,Children's Services,Education & Childrens Services - CS Dir,NATIONAL EXPRESS LIMITED,41.4,0,41.4,Leaving Care - Transport,"Buses, charter & tour"
Buckinghamshire Council ,31.05.2023,31.05.2023,"Planning, Growth & Sustainability",AH&R - PGS Dir,TVLICENSING.CO.UK,159,0,159,Licenses General,Consultants & public relation services
Buckinghamshire Council ,31.05.2023,31.05.2023,Communities,Climate Change & Environment - Community,ST JOHN AMBULANCE,743.4,0,743.4,Equipment,Charitable organisations
Buckinghamshire Council ,31.05.2023,31.05.2023,Adults and Health,Health & Wellbeing - Adults & Health Dir,SWAN RIDER,180,0,180,Staff Travelling Expenses,Transportation services
Buckinghamshire Council ,31.05.2023,31.05.2023,"Planning, Growth & Sustainability",AH&R - PGS Dir,B & Q 1305,37.82,0,37.82,General Repairs & Maintenance,Home supply warehouse stores
Buckinghamshire Council ,31.05.2023,30.05.2023,Adults and Health,Health & Wellbeing - Adults & Health Dir,AMZNMKTPLACE,149.7,0,149.7,IT Equipment Purchase,Miscellaneous retail
Buckinghamshire Council ,31.05.2023,30.05.2023,Children's Services,Education & Childrens Services - CS Dir,TAXIPAY,71,0,71,Sec 20/31: Supp for Contact,Taxicabs & limousines
Buckinghamshire Council ,31.05.2023,30.05.2023,Children's Services,Education & Childrens Services - CS Dir,TRAINLINE.COM,-25.3,0,-25.3,Sec 20/31: Supp for Contact,Passenger railways
Buckinghamshire Council ,31.05.2023,30.05.2023,Children's Services,Education & Childrens Services - CS Dir,DOMINO S PIZZA,21.23,4.26,25.49,"Exp of School, Club & College Activities",Restaurants
Buckinghamshire Council ,31.05.2023,30.05.2023,Children's Services,Education & Childrens Services - CS Dir,WM MORRISONS STORE,9.3,0,9.3,"Exp of School, Club & College Activities",Grocery stores
Buckinghamshire Council ,31.05.2023,30.05.2023,Deputy Chief Executive,Communities - DCE,AO RETAIL LIMITED,-25,0,-25,Other Personal Needs,Household appliance stores
Buckinghamshire Council ,31.05.2023,30.05.2023,Deputy Chief Executive,Communities - DCE,AO RETAIL LIMITED,-20,0,-20,Other Personal Needs,Household appliance stores
Buckinghamshire Council ,31.05.2023,30.05.2023,Children's Services,Education & Childrens Services - CS Dir,VESTA,15,0,15,Sec 20/31: Financial Assistance One Off,Phone services
Buckinghamshire Council ,31.05.2023,30.05.2023,Children's Services,Education & Childrens Services - CS Dir,TESCO GIFT CARD,50,0,50,Sec 17: Financial Assistance One Off,Grocery stores
Buckinghamshire Council ,31.05.2023,30.05.2023,Children's Services,Education & Childrens Services - CS Dir,AMZNMKTPLACE,79.99,0,79.99,Leaving Care - Grants for Care Leavers,Miscellaneous retail
Buckinghamshire Council ,31.05.2023,30.05.2023,Children's Services,Education & Childrens Services - CS Dir,AMZNMKTPLACE,49.97,0,49.97,Leaving Care - Grants for Care Leavers,Miscellaneous retail
Buckinghamshire Council ,31.05.2023,30.05.2023,Deputy Chief Executive,Communities - DCE,RINGGO PARKING,1.2,0,1.2,Staff Travelling Expenses,Car parking & garages
Buckinghamshire Council ,31.05.2023,30.05.2023,Deputy Chief Executive,Communities - DCE,WWW.ARGOS.CO.UK,239.95,47.99,287.94,Other Personal Needs,Department stores
Buckinghamshire Council ,31.05.2023,30.05.2023,Deputy Chief Executive,Communities - DCE,WWW.ARGOS.CO.UK,0.01,0,0.01,Other Personal Needs,Department stores
Buckinghamshire Council ,31.05.2023,30.05.2023,Deputy Chief Executive,Communities - DCE,AO RETAIL LIMITED,726.65,145.33,871.98,Other Personal Needs,Household appliance stores
Buckinghamshire Council ,31.05.2023,30.05.2023,Deputy Chief Executive,Communities - DCE,AO RETAIL LIMITED,0.02,0,0.02,Other Personal Needs,Household appliance stores
Buckinghamshire Council ,31.05.2023,30.05.2023,Deputy Chief Executive,Communities - DCE,AO RETAIL LIMITED,532.5,106.5,639,Other Personal Needs,Household appliance stores
Buckinghamshire Council ,31.05.2023,30.05.2023,Deputy Chief Executive,Communities - DCE,AO RETAIL LIMITED,701.65,140.33,841.98,Other Personal Needs,Household appliance stores
Buckinghamshire Council ,31.05.2023,30.05.2023,Deputy Chief Executive,Communities - DCE,AO RETAIL LIMITED,0.02,0,0.02,Other Personal Needs,Household appliance stores
Buckinghamshire Council ,31.05.2023,30.05.2023,Deputy Chief Executive,Communities - DCE,AO RETAIL LIMITED,701.65,140.33,841.98,Other Personal Needs,Household appliance stores
Buckinghamshire Council ,31.05.2023,30.05.2023,Deputy Chief Executive,Communities - DCE,AO RETAIL LIMITED,0.02,0,0.02,Other Personal Needs,Household appliance stores
Buckinghamshire Council ,31.05.2023,30.05.2023,Communities,Climate Change & Environment - Community,DVLA VEHICLE TAX,302.5,0,302.5,Vehicle Insurance,Government services
Buckinghamshire Council ,31.05.2023,30.05.2023,"Planning, Growth & Sustainability",AH&R - PGS Dir,LONDIS,12.6,0,12.6,General Provisions (Food),Sweets & confectionary
Buckinghamshire Council ,31.05.2023,30.05.2023,Communities,Culture & Leisure - Communities Dir,MARKS&SPENCER PLC,55,0,55,Subsistence,Grocery stores
Buckinghamshire Council ,31.05.2023,30.05.2023,Adults and Health,Health & Wellbeing - Adults & Health Dir,TESCO STORES 5135,93.06,0,93.06,Purchase.of Refreshments and Food,Grocery stores
Buckinghamshire Council ,31.05.2023,30.05.2023,Communities,Culture & Leisure - Communities Dir,AMZNMKTPLACE,17.15,3.43,20.58,Administrative Equipment & Tools,Miscellaneous retail
Buckinghamshire Council ,31.05.2023,30.05.2023,Communities,Culture & Leisure - Communities Dir,AMZNMKTPLACE,0.02,0,0.02,Administrative Equipment & Tools,Miscellaneous retail
Buckinghamshire Council ,31.05.2023,30.05.2023,Communities,Culture & Leisure - Communities Dir,AMZNMKTPLACE,34.15,6.83,40.98,Administrative Equipment & Tools,Miscellaneous retail
Buckinghamshire Council ,31.05.2023,30.05.2023,Communities,Culture & Leisure - Communities Dir,AMZNMKTPLACE,0.01,0,0.01,Administrative Equipment & Tools,Miscellaneous retail
Buckinghamshire Council ,31.05.2023,30.05.2023,Communities,Culture & Leisure - Communities Dir,WEXHAM MOWER SVCS,65.9,13.18,79.08,"Workshop - Materials,Tools & Equipment",Lawn & garden supply/nursery
Buckinghamshire Council ,31.05.2023,30.05.2023,Communities,Culture & Leisure - Communities Dir,WEXHAM MOWER SVCS,77.94,15.59,93.53,"Workshop - Materials,Tools & Equipment",Lawn & garden supply/nursery
Buckinghamshire Council ,31.05.2023,30.05.2023,"Planning, Growth & Sustainability",AH&R - PGS Dir,AMZNMKTPLACE,40.57,0,40.57,Administrative Equipment & Tools,Miscellaneous retail
Buckinghamshire Council ,31.05.2023,30.05.2023,"Planning, Growth & Sustainability",AH&R - PGS Dir,CO-OP GROUP FOOD,7,0,7,Purchase.of Refreshments and Food,Grocery stores
Buckinghamshire Council ,31.05.2023,30.05.2023,"Planning, Growth & Sustainability",AH&R - PGS Dir,TOOLSTATION LTD,3.12,0,3.12,General Repairs & Maintenance,Timber & building supplies
Buckinghamshire Council ,31.05.2023,30.05.2023,"Planning, Growth & Sustainability",AH&R - PGS Dir,JEWSON LTD,137.98,0,137.98,General Repairs & Maintenance,Timber & building supplies
Buckinghamshire Council ,31.05.2023,30.05.2023,Children's Services,Education & Childrens Services - CS Dir,AMZN DIGITAL,-1.49,0,-1.49,Educational Equipment,
Buckinghamshire Council ,31.05.2023,30.05.2023,"Planning, Growth & Sustainability",Housing & Homelessness & Regulatory PGS,POST OFFICE COUNTER,7.05,0,7.05,General Postage,Postal services
Buckinghamshire Council ,31.05.2023,30.05.2023,Communities,Climate Change & Environment - Community,WWW.LSC-UK.COM,134.7,0,134.7,Equipment,Hardware stores
Buckinghamshire Council ,31.05.2023,30.05.2023,Children's Services,Education & Childrens Services - CS Dir,AMAZON.CO.UK,-3.99,0,-3.99,"Books, Records, Films & Oth Publications",Direct sales companies
Buckinghamshire Council ,31.05.2023,30.05.2023,Deputy Chief Executive,AH&R- DCE Dir,PAYPAL,152.31,0,152.31,Subscriptions to National Bodies,Membership organisations
Buckinghamshire Council ,31.05.2023,30.05.2023,Deputy Chief Executive,AH&R- DCE Dir,KIMPTON CLOCKTOWER,"1,486.20",0,"1,486.20",Subsistence,Restaurants
Buckinghamshire Council ,31.05.2023,30.05.2023,Children's Services,Education & Childrens Services - CS Dir,HM PASSPORT OFFICE,53.5,0,53.5,Sec 20/31: Financial Assistance,Government services
Buckinghamshire Council ,31.05.2023,30.05.2023,Children's Services,Education & Childrens Services - CS Dir,TAXIPAY,34,0,34,Sec 20/31: Transport,Taxicabs & limousines
Buckinghamshire Council ,31.05.2023,30.05.2023,Children's Services,Education & Childrens Services - CS Dir,BUCKINGHAMSHIRE CNCL,11,0,11,Sec 20/31: Financial Assistance,Government services
Buckinghamshire Council ,31.05.2023,30.05.2023,Children's Services,Education & Childrens Services - CS Dir,BUCKINGHAMSHIRE CNCL,11,0,11,Sec 20/31: Financial Assistance,Government services
Buckinghamshire Council ,31.05.2023,30.05.2023,Children's Services,Education & Childrens Services - CS Dir,TAXIPAY,33,0,33,Activities & General Recreation,Taxicabs & limousines
Buckinghamshire Council ,31.05.2023,30.05.2023,Children's Services,Education & Childrens Services - CS Dir,TESCO STORES 2041,25.2,0,25.2,Activities & General Recreation,Grocery stores
Buckinghamshire Council ,31.05.2023,30.05.2023,Children's Services,Education & Childrens Services - CS Dir,BKG*HOTEL AT BOOKING.C,174.95,0,174.95,"Courses, Conference and Seminar Fees",Travel agencies
Buckinghamshire Council ,31.05.2023,30.05.2023,Children's Services,Education & Childrens Services - CS Dir,GENIEPOINT,7.7,0,7.7,Car Allowances Mileage & Lump Sum,
Buckinghamshire Council ,31.05.2023,30.05.2023,Children's Services,Education & Childrens Services - CS Dir,GENIEPOINT,8,0,8,Car Allowances Mileage & Lump Sum,
Buckinghamshire Council ,31.05.2023,30.05.2023,Children's Services,Education & Childrens Services - CS Dir,WWW.ARGOS.CO.UK,65.95,0,65.95,Equipment (including storage),Department stores
Buckinghamshire Council ,31.05.2023,30.05.2023,Children's Services,Education & Childrens Services - CS Dir,MY.MORRISONS.COM,20,0,20,"Exp of School, Club & College Activities",Grocery stores
Buckinghamshire Council ,31.05.2023,30.05.2023,Communities,Culture & Leisure - Communities Dir,LIDL GB BUCKINGHAM,7.8,0,7.8,Miscellaneous (Other)  Expenses,Grocery stores
Buckinghamshire Council ,31.05.2023,30.05.2023,Children's Services,Education & Childrens Services - CS Dir,ONE BELOW,10.22,0,10.22,General Repairs & Maintenance,Grocery stores
Buckinghamshire Council ,31.05.2023,30.05.2023,Adults and Health,Health & Wellbeing - Adults & Health Dir,AMZNMKTPLACE,50.52,0,50.52,General Provisions (Food),Miscellaneous retail
Buckinghamshire Council ,31.05.2023,30.05.2023,"Planning, Growth & Sustainability",AH&R - PGS Dir,DIGITAL ID,314.9,62.98,377.88,Administrative Equipment & Tools,"Computers, peripherals & software"
Buckinghamshire Council ,31.05.2023,30.05.2023,Communities,ommunities - Trust Accounts,WICKES SLOUGH,51,0,51,General Repairs & Maintenance,Timber & building supplies
Buckinghamshire Council ,31.05.2023,30.05.2023,"Planning, Growth & Sustainability",Housing & Homelessness & Regulatory PGS,SP FURNISHOP.CO.UK,158.95,0,158.95,Furniture,Furniture & home furnishing
Buckinghamshire Council ,31.05.2023,30.05.2023,Children's Services,Education & Childrens Services - CS Dir,ROGUE BOWLING,100.65,0,100.65,Activities & General Recreation,"Member clubs, sport, recreation & golf"
Buckinghamshire Council ,31.05.2023,30.05.2023,Deputy Chief Executive,AH&R- DCE Dir,CHARLIES TAXIS,40,0,40,Staff Travelling Expenses,Taxicabs & limousines
Buckinghamshire Council ,31.05.2023,30.05.2023,Children's Services,Education & Childrens Services - CS Dir,ARRIVA UK BUS,13,0,13,Sec 20/31: Transport,"Buses, charter & tour"
Buckinghamshire Council ,31.05.2023,30.05.2023,Communities,Climate Change & Environment - Community,LOGOSHACK,158.4,0,158.4,Professional Services (non curriculum) - External,Professional services
Buckinghamshire Council ,31.05.2023,30.05.2023,Adults and Health,Health & Wellbeing - Adults & Health Dir,TESCO STORES 5135,83.44,0,83.44,General Provisions (Food),Grocery stores
Buckinghamshire Council ,31.05.2023,30.05.2023,Children's Services,Education & Childrens Services - CS Dir,AMZNMKTPLACE,16.99,0,16.99,Consumable Supplies,Miscellaneous retail
Buckinghamshire Council ,31.05.2023,30.05.2023,Communities,Transport - Communities Dir,AMZ*YOUWOAUTO,-69.99,0,-69.99,Materials,Miscellaneous retail
Buckinghamshire Council ,31.05.2023,30.05.2023,Deputy Chief Executive,Communities - DCE,BUCKS STUDENTS UNION BSU,35,0,35,General Provisions (Food),"Bars, taverns, pubs & nightclubs"
Buckinghamshire Council ,31.05.2023,30.05.2023,Adults and Health,Health & Wellbeing - Adults & Health Dir,PREMIER INN,553,0,553,Other Short Term Support,Premier Inn
Buckinghamshire Council ,31.05.2023,30.05.2023,Deputy Chief Executive,Communities - DCE,PAYPAL,224.1,44.82,268.92,Other Personal Needs,Variety stores
Buckinghamshire Council ,31.05.2023,30.05.2023,Deputy Chief Executive,Communities - DCE,PAYPAL,0.03,0,0.03,Other Personal Needs,Variety stores
Buckinghamshire Council ,31.05.2023,30.05.2023,Deputy Chief Executive,Communities - DCE,PAYPAL,53.33,10.67,64,Other Personal Needs,Variety stores
Buckinghamshire Council ,31.05.2023,29.05.2023,Children's Services,Education & Childrens Services - CS Dir,TESCO STORES 2041,204.73,0,204.73,General Provisions (Food),Grocery stores
Buckinghamshire Council ,31.05.2023,29.05.2023,Deputy Chief Executive,Communities - DCE,SAINSBURYS S/MKTS,6.15,0,6.15,General Provisions (Food),Grocery stores
Buckinghamshire Council ,31.05.2023,29.05.2023,Children's Services,Education & Childrens Services - CS Dir,WWW.MEADOPENFARM.CO.UK,34.5,0,34.5,Activities & General Recreation,Tourist attractions and exhibitions
Buckinghamshire Council ,31.05.2023,29.05.2023,Children's Services,Education & Childrens Services - CS Dir,WM MORRISONS STORE,15.09,0,15.09,Other Equipment and Materials,Grocery stores
Buckinghamshire Council ,31.05.2023,29.05.2023,"Planning, Growth & Sustainability",Climate Change & Environment - PGS,AMZNMKTPLACE,22.45,4.5,26.95,Equipment,Miscellaneous retail
Buckinghamshire Council ,31.05.2023,29.05.2023,Deputy Chief Executive,AH&R- DCE Dir,WWW.ARGOS.CO.UK,694,0,694,Miscellaneous (Other)  Expenses,Department stores
Buckinghamshire Council ,31.05.2023,29.05.2023,Deputy Chief Executive,AH&R- DCE Dir,WWW.ARGOS.CO.UK,412.45,0,412.45,Miscellaneous (Other)  Expenses,Department stores
Buckinghamshire Council ,31.05.2023,29.05.2023,"Planning, Growth & Sustainability",Planning & Regeneration - PGS,UK CARS (HIGH WYCOMBE) LT,6,0,6,Staff Travelling Expenses,Taxicabs & limousines
Buckinghamshire Council ,31.05.2023,29.05.2023,"Planning, Growth & Sustainability",Planning & Regeneration - PGS,TFL TRAVEL CH,2.7,0,2.7,Staff Travelling Expenses,Local commuter transport
Buckinghamshire Council ,31.05.2023,29.05.2023,Communities,Transport - Communities Dir,AMZNMKTPLACE,69.99,0,69.99,Equipment,Miscellaneous retail
Buckinghamshire Council ,31.05.2023,29.05.2023,Communities,Transport - Communities Dir,AMZNMKTPLACE,65.99,0,65.99,Equipment,Miscellaneous retail
Buckinghamshire Council ,31.05.2023,29.05.2023,Deputy Chief Executive,AH&R- DCE Dir,PAYPAL,343.7,68.74,412.44,Miscellaneous (Other)  Expenses,Variety stores
Buckinghamshire Council ,31.05.2023,29.05.2023,Deputy Chief Executive,AH&R- DCE Dir,PAYPAL,0.06,0,0.06,Miscellaneous (Other)  Expenses,Variety stores
Buckinghamshire Council ,31.05.2023,29.05.2023,Deputy Chief Executive,AH&R- DCE Dir,PAYPAL,330,0,330,Miscellaneous (Other)  Expenses,Variety stores
Buckinghamshire Council ,31.05.2023,29.05.2023,Deputy Chief Executive,AH&R- DCE Dir,PAYPAL,494.5,0,494.5,Miscellaneous (Other)  Expenses,Variety stores
Buckinghamshire Council ,31.05.2023,29.05.2023,Deputy Chief Executive,AH&R- DCE Dir,PAYPAL,746.95,0,746.95,Miscellaneous (Other)  Expenses,Variety stores
Buckinghamshire Council ,31.05.2023,29.05.2023,Deputy Chief Executive,AH&R- DCE Dir,PAYPAL,552.15,0,552.15,Miscellaneous (Other)  Expenses,Variety stores
Buckinghamshire Council ,31.05.2023,29.05.2023,Deputy Chief Executive,AH&R- DCE Dir,PAYPAL,880.15,0,880.15,Miscellaneous (Other)  Expenses,Variety stores
Buckinghamshire Council ,31.05.2023,28.05.2023,Communities,Culture & Leisure - Communities Dir,AMZNMKTPLACE,2.49,0.5,2.99,Administrative Equipment & Tools,Miscellaneous retail
Buckinghamshire Council ,31.05.2023,28.05.2023,Communities,Culture & Leisure - Communities Dir,AMZNMKTPLACE,34.15,6.83,40.98,Administrative Equipment & Tools,Miscellaneous retail
Buckinghamshire Council ,31.05.2023,28.05.2023,Communities,Culture & Leisure - Communities Dir,AMZNMKTPLACE,0.01,0,0.01,Administrative Equipment & Tools,Miscellaneous retail
Buckinghamshire Council ,31.05.2023,28.05.2023,Children's Services,Education & Childrens Services - CS Dir,AMZN DIGITAL,1.49,0,1.49,Educational Equipment,
Buckinghamshire Council ,31.05.2023,28.05.2023,Resources,AH&R - Res Dir,ABRATAX - MTD,10,2,12,Computer Consumables,Computer software stores
Buckinghamshire Council ,31.05.2023,28.05.2023,Children's Services,Education & Childrens Services - CS Dir,POUNDLAND LTD 1301,31.25,0,31.25,Other Equipment and Materials,Discount stores
Buckinghamshire Council ,31.05.2023,28.05.2023,Children's Services,Education & Childrens Services - CS Dir,POUNDLAND LTD 1301,4.5,0,4.5,Other Equipment and Materials,Discount stores
Buckinghamshire Council ,31.05.2023,28.05.2023,Children's Services,Education & Childrens Services - CS Dir,WM MORRISONS STORE,15.5,0,15.5,Other Equipment and Materials,Grocery stores
Buckinghamshire Council ,31.05.2023,28.05.2023,Resources,AH&R - Res Dir,PAYPAL,7.2,0,7.2,IT - Computer Network Charges,Computer network information services
Buckinghamshire Council ,31.05.2023,28.05.2023,Communities,Housing & Homelessness & Regulatory PGS,AMAZON.CO.UK,39.32,0,39.32,Stationery & Office Supplies,Direct sales companies
Buckinghamshire Council ,31.05.2023,28.05.2023,Communities,Transport - Communities Dir,AMZNMKTPLACE,48.46,0,48.46,Protective Clothing & Uniforms,Miscellaneous retail
Buckinghamshire Council ,31.05.2023,27.05.2023,Children's Services,Education & Childrens Services - CS Dir,AMZNMKTPLACE,114.97,0,114.97,Consumable Supplies,Miscellaneous retail
Buckinghamshire Council ,31.05.2023,27.05.2023,Communities,Culture & Leisure - Communities Dir,AMZNMKTPLACE,10.35,2.07,12.42,"Workshop - Materials,Tools & Equipment",Miscellaneous retail
Buckinghamshire Council ,31.05.2023,27.05.2023,Communities,Culture & Leisure - Communities Dir,AMZNMKTPLACE,0.02,0,0.02,"Workshop - Materials,Tools & Equipment",Miscellaneous retail
Buckinghamshire Council ,31.05.2023,27.05.2023,Communities,Culture & Leisure - Communities Dir,AMZNMKTPLACE,13.73,2.75,16.48,"Workshop - Materials,Tools & Equipment",Miscellaneous retail
Buckinghamshire Council ,31.05.2023,27.05.2023,Children's Services,Education & Childrens Services - CS Dir,AMZNMKTPLACE,25.98,0,25.98,Printing & Stationery,Miscellaneous retail
Buckinghamshire Council ,31.05.2023,27.05.2023,Children's Services,Education & Childrens Services - CS Dir,AMZNMKTPLACE,26.99,0,26.99,Printing & Stationery,Miscellaneous retail
Buckinghamshire Council ,31.05.2023,27.05.2023,Children's Services,Education & Childrens Services - CS Dir,AMZNMKTPLACE,7.5,0,7.5,Printing & Stationery,Miscellaneous retail
Buckinghamshire Council ,31.05.2023,27.05.2023,Children's Services,Education & Childrens Services - CS Dir,THE WORKS,5,0,5,Other Equipment and Materials,Discount stores
Buckinghamshire Council ,31.05.2023,27.05.2023,Children's Services,Education & Childrens Services - CS Dir,ONE BELOW,20.09,0,20.09,Other Equipment and Materials,Grocery stores
Buckinghamshire Council ,31.05.2023,27.05.2023,Children's Services,Education & Childrens Services - CS Dir,CARD FACTORY,9.97,0,9.97,Other Personal Needs,"Gift, card & novelty shops"
Buckinghamshire Council ,31.05.2023,27.05.2023,Children's Services,Education & Childrens Services - CS Dir,SMART PARKING (E),2.55,0,2.55,Staff Travelling Expenses,Car parking & garages
Buckinghamshire Council ,31.05.2023,27.05.2023,Communities,artnerships - Communities,DNH*GODADDY.COM EUROPE,23.96,0,23.96,Computer Support Services,Computer network information services
Buckinghamshire Council ,31.05.2023,27.05.2023,Children's Services,Education & Childrens Services - CS Dir,LINKEDIN ADS,94.15,0,94.15,Advertising,Advertising services
Buckinghamshire Council ,31.05.2023,27.05.2023,Children's Services,Education & Childrens Services - CS Dir,AMAZON.CO.UK,64.99,0,64.99,Sec 17: Financial Assistance,Direct sales companies
Buckinghamshire Council ,31.05.2023,27.05.2023,Resources,AH&R - Res Dir,LINKEDIN ADS,102.07,0,102.07,Permanent Recruitment Costs,Advertising services
Buckinghamshire Council ,31.05.2023,27.05.2023,Children's Services,Education & Childrens Services - CS Dir,AMAZON PRIME,8.99,0,8.99,Stationery & Office Supplies,Continuous subscriptions
Buckinghamshire Council ,31.05.2023,27.05.2023,Deputy Chief Executive,AH&R- DCE Dir,AMZNMKTPLACE,17.99,0,17.99,Stationery & Office Supplies,Miscellaneous retail
Buckinghamshire Council ,31.05.2023,26.05.2023,Children's Services,Education & Childrens Services - CS Dir,TAXIPAY,100,0,100,Sec 17: Financial Assistance,Taxicabs & limousines
Buckinghamshire Council ,31.05.2023,26.05.2023,Children's Services,Education & Childrens Services - CS Dir,TAXIPAY,73.5,0,73.5,Sec 17: Financial Assistance,Taxicabs & limousines
Buckinghamshire Council ,31.05.2023,26.05.2023,Children's Services,Education & Childrens Services - CS Dir,SLOUGH B/C ATP,33,0,33,Sec 20/31: Specialist Services,Government services
Buckinghamshire Council ,31.05.2023,26.05.2023,Children's Services,Education & Childrens Services - CS Dir,BUCKINGHAMSHIRE CNCL,11,0,11,Sec 20/31: Specialist Services,Government services
Buckinghamshire Council ,31.05.2023,26.05.2023,"Planning, Growth & Sustainability",Housing & Homelessness & Regulatory PGS,VOUCHER EXPRESS,40,0,40,Homelessness,Misc business services
Buckinghamshire Council ,31.05.2023,26.05.2023,Communities,Transport - Communities Dir,LUL TICKET MACHINE,6.7,0,6.7,Staff Travelling Expenses,Passenger railways
Buckinghamshire Council ,31.05.2023,26.05.2023,Communities,Transport - Communities Dir,MARYLEBONE SSTP,31.7,0,31.7,Staff Travelling Expenses,Passenger railways
Buckinghamshire Council ,31.05.2023,26.05.2023,Deputy Chief Executive,Communities - DCE,AO RETAIL LIMITED,215.8,43.16,258.96,Other Personal Needs,Household appliance stores
Buckinghamshire Council ,31.05.2023,26.05.2023,Deputy Chief Executive,Communities - DCE,AO RETAIL LIMITED,0.04,0,0.04,Other Personal Needs,Household appliance stores
Buckinghamshire Council ,31.05.2023,26.05.2023,Deputy Chief Executive,Communities - DCE,AO RETAIL LIMITED,793.3,158.66,951.96,Other Personal Needs,Household appliance stores
Buckinghamshire Council ,31.05.2023,26.05.2023,Deputy Chief Executive,Communities - DCE,AO RETAIL LIMITED,0.04,0,0.04,Other Personal Needs,Household appliance stores
Buckinghamshire Council ,31.05.2023,26.05.2023,Deputy Chief Executive,Communities - DCE,WWW.ARGOS.CO.UK,268.95,0,268.95,Other Personal Needs,Department stores
Buckinghamshire Council ,31.05.2023,26.05.2023,Deputy Chief Executive,Communities - DCE,WWW.ARGOS.CO.UK,212.95,0,212.95,Other Personal Needs,Department stores
Buckinghamshire Council ,31.05.2023,26.05.2023,Children's Services,Education & Childrens Services - CS Dir,CLUB SPORT,55,0,55,Sec 17: Childcare Assistance,Sport & recreational camps
Buckinghamshire Council ,31.05.2023,26.05.2023,Children's Services,Education & Childrens Services - CS Dir,WWW.SCS.CO.UK,438,0,438,Leaving Care - Grants for Care Leavers,Furniture & home furnishing
Buckinghamshire Council ,31.05.2023,26.05.2023,Children's Services,Education & Childrens Services - CS Dir,NAIRNTAXIS,30,0,30,Staff Travelling Expenses,Taxicabs & limousines
Buckinghamshire Council ,31.05.2023,26.05.2023,Children's Services,Education & Childrens Services - CS Dir,AO RETAIL LIMITED,937,0,937,Leaving Care - Grants for Care Leavers,Household appliance stores
Buckinghamshire Council ,31.05.2023,26.05.2023,Children's Services,Education & Childrens Services - CS Dir,DVLA DRIVER ONLINE,34,0,34,Leaving Care  - Financial Assistance,Government services
Buckinghamshire Council ,31.05.2023,26.05.2023,Children's Services,Education & Childrens Services - CS Dir,CURRYS ONLINE,299,0,299,Leaving Care  - Financial Assistance,Electronics shops
Buckinghamshire Council ,31.05.2023,26.05.2023,Deputy Chief Executive,Communities - DCE,WWW.ARGOS.CO.UK,761.6,152.32,913.92,Other Personal Needs,Department stores
Buckinghamshire Council ,31.05.2023,26.05.2023,Deputy Chief Executive,Communities - DCE,WWW.ARGOS.CO.UK,0.03,0,0.03,Other Personal Needs,Department stores
Buckinghamshire Council ,31.05.2023,26.05.2023,Deputy Chief Executive,Communities - DCE,AO RETAIL LIMITED,718.3,143.66,861.96,Other Personal Needs,Household appliance stores
Buckinghamshire Council ,31.05.2023,26.05.2023,Deputy Chief Executive,Communities - DCE,AO RETAIL LIMITED,0.04,0,0.04,Other Personal Needs,Household appliance stores
Buckinghamshire Council ,31.05.2023,26.05.2023,Deputy Chief Executive,Communities - DCE,AO RETAIL LIMITED,768.3,153.66,921.96,Other Personal Needs,Household appliance stores
Buckinghamshire Council ,31.05.2023,26.05.2023,Deputy Chief Executive,Communities - DCE,AO RETAIL LIMITED,0.04,0,0.04,Other Personal Needs,Household appliance stores
Buckinghamshire Council ,31.05.2023,26.05.2023,Deputy Chief Executive,Communities - DCE,AO RETAIL LIMITED,315.83,63.17,379,Other Personal Needs,Household appliance stores
Buckinghamshire Council ,31.05.2023,26.05.2023,"Planning, Growth & Sustainability",Climate Change & Environment - PGS,FACEBK KQ9TXM7HB2,90.87,0,90.87,Advertising,Advertising services
Buckinghamshire Council ,31.05.2023,26.05.2023,Deputy Chief Executive,Communities - DCE,CROWN COFFEE,5.5,0,5.5,Subsistence,Restaurants
Buckinghamshire Council ,31.05.2023,26.05.2023,Children's Services,Education & Childrens Services - CS Dir,EB *THE AUTISM SHOW LO,75.24,0,75.24,"Courses, Conference and Seminar Fees",Misc business services
Buckinghamshire Council ,31.05.2023,26.05.2023,Communities,Culture & Leisure - Communities Dir,AMZNMKTPLACE,46.96,0,46.96,Administrative Equipment & Tools,Miscellaneous retail
Buckinghamshire Council ,31.05.2023,26.05.2023,Communities,Housing & Homelessness & Regulatory Comm,SHELL HAZLEMERE,47.96,0,47.96,Maintenance of Grounds,Service stations
Buckinghamshire Council ,31.05.2023,26.05.2023,Children's Services,Education & Childrens Services - CS Dir,OFSTED INTERNET,"2,104.00",0,"2,104.00",Professional Services (non curriculum) - External,Government services
Buckinghamshire Council ,31.05.2023,26.05.2023,"Planning, Growth & Sustainability",AH&R - PGS Dir,CJ'S LOCKSMITHS,6.95,0,6.95,Miscellaneous (Other)  Expenses,Misc. repair services
Buckinghamshire Council ,31.05.2023,26.05.2023,"Planning, Growth & Sustainability",AH&R - PGS Dir,TESCO STORES 5525,4.95,0,4.95,Purchase.of Refreshments and Food,Grocery stores
Buckinghamshire Council ,31.05.2023,26.05.2023,Children's Services,Education & Childrens Services - CS Dir,TESCO GIFT CARD,50,0,50,Consumable Supplies,Grocery stores
Buckinghamshire Council ,31.05.2023,26.05.2023,Children's Services,Education & Childrens Services - CS Dir,AMZNMKTPLACE,25.56,0,25.56,Consumable Supplies,Miscellaneous retail
Buckinghamshire Council ,31.05.2023,26.05.2023,Deputy Chief Executive,Communities - DCE,RINGGO PARKING,1.65,0,1.65,Staff Travelling Expenses,Car parking & garages
Buckinghamshire Council ,31.05.2023,26.05.2023,Deputy Chief Executive,Communities - DCE,CAFFE NERO CHESHAM,2.78,0,2.78,Subsistence,Fast food restaurants
Buckinghamshire Council ,31.05.2023,26.05.2023,Deputy Chief Executive,Communities - DCE,SQ *THE KOKUM,41.47,0,41.47,Subsistence,Restaurants
Buckinghamshire Council ,31.05.2023,26.05.2023,Communities,Culture & Leisure - Communities Dir,AMZNMKTPLACE,17.49,3.5,20.99,Events Expenditure,Miscellaneous retail
Buckinghamshire Council ,31.05.2023,26.05.2023,Deputy Chief Executive,AH&R- DCE Dir,POST OFFICE COUNTER,1.6,0,1.6,Printing & Stationery,Postal services
Buckinghamshire Council ,31.05.2023,26.05.2023,Children's Services,Education & Childrens Services - CS Dir,WWW.MEADOPENFARM.CO.UK,17.25,0,17.25,Other Equipment and Materials,Tourist attractions and exhibitions
Buckinghamshire Council ,31.05.2023,26.05.2023,Children's Services,Education & Childrens Services - CS Dir,CURRYS AYLESBURY,188.99,0,188.99,Other Equipment and Materials,Electronics shops
Buckinghamshire Council ,31.05.2023,26.05.2023,Communities,Climate Change & Environment - Community,THE Z HOTEL VICTORIA,185,0,185,Staff Travelling Expenses,"Hotels, motels & resorts"
Buckinghamshire Council ,31.05.2023,26.05.2023,Communities,Climate Change & Environment - Community,THE Z HOTEL VICTORIA,185,0,185,Staff Travelling Expenses,"Hotels, motels & resorts"
Buckinghamshire Council ,31.05.2023,26.05.2023,Communities,Climate Change & Environment - Community,THE Z HOTEL VICTORIA,185,0,185,Staff Travelling Expenses,"Hotels, motels & resorts"
Buckinghamshire Council ,31.05.2023,26.05.2023,"Planning, Growth & Sustainability",AH&R - PGS Dir,AMZNMKTPLACE,49.99,10,59.99,Administrative Equipment & Tools,Miscellaneous retail
Buckinghamshire Council ,31.05.2023,26.05.2023,"Planning, Growth & Sustainability",AH&R - PGS Dir,LYRECO UK LTD,21.3,4.26,25.56,Printing & Stationery,Stationery & office supplies
Buckinghamshire Council ,31.05.2023,26.05.2023,"Planning, Growth & Sustainability",AH&R - PGS Dir,LYRECO UK LTD,0.01,0,0.01,Printing & Stationery,Stationery & office supplies
Buckinghamshire Council ,31.05.2023,26.05.2023,Resources,AH&R - Res Dir,PAYPAL,8.99,0,8.99,IT - Computer Network Charges,Computer network information services
Buckinghamshire Council ,31.05.2023,26.05.2023,Deputy Chief Executive,AH&R- DCE Dir,WP ENGINE,30.12,0,30.12,Computer Support Services,Computer network information services
Buckinghamshire Council ,31.05.2023,26.05.2023,Children's Services,Education & Childrens Services - CS Dir,AMZNMKTPLACE,20.27,0,20.27,Training (Inc. Health & Safety Courses),Miscellaneous retail
Buckinghamshire Council ,31.05.2023,26.05.2023,Resources,AH&R - Res Dir,H SAMUEL,250,0,250,Long Service Awards,Jewellers
Buckinghamshire Council ,31.05.2023,26.05.2023,Children's Services,Education & Childrens Services - CS Dir,AMAZON.CO.UK,16.99,0,16.99,Stationery & Office Supplies,Direct sales companies
Buckinghamshire Council ,31.05.2023,26.05.2023,Children's Services,Education & Childrens Services - CS Dir,ODEON AYLESBURY,4.05,0,4.05,Miscellaneous (Other)  Expenses,Cinemas
Buckinghamshire Council ,31.05.2023,26.05.2023,Communities,artnerships - Communities,THE BELL,6.35,0,6.35,Subsistence,Restaurants
Buckinghamshire Council ,31.05.2023,26.05.2023,Communities,artnerships - Communities,THE BELL,57.55,0,57.55,Subsistence,Restaurants
Buckinghamshire Council ,31.05.2023,26.05.2023,Children's Services,Education & Childrens Services - CS Dir,ST JOHN AMBULANCE,360,0,360,Training (Inc. Health & Safety Courses),Charitable organisations
Buckinghamshire Council ,31.05.2023,26.05.2023,Children's Services,Education & Childrens Services - CS Dir,AMZNMKTPLACE,149.25,0,149.25,Leaving Care - Grants for Care Leavers,Miscellaneous retail
Buckinghamshire Council ,31.05.2023,26.05.2023,Deputy Chief Executive,Communities - DCE,CROWN COFFEE,3.2,0,3.2,Subsistence,Restaurants
Buckinghamshire Council ,31.05.2023,26.05.2023,"Planning, Growth & Sustainability",Housing & Homelessness & Regulatory PGS,AMZNMKTPLACE,351.37,0,351.37,Furniture,Miscellaneous retail
Buckinghamshire Council ,31.05.2023,26.05.2023,Deputy Chief Executive,AH&R- DCE Dir,PAYPAL,"1,172.15",0,"1,172.15",Miscellaneous (Other)  Expenses,Variety stores
Buckinghamshire Council ,31.05.2023,26.05.2023,Deputy Chief Executive,AH&R- DCE Dir,PAYPAL,272.85,54.57,327.42,Miscellaneous (Other)  Expenses,Variety stores
Buckinghamshire Council ,31.05.2023,26.05.2023,Deputy Chief Executive,AH&R- DCE Dir,PAYPAL,0.08,0,0.08,Miscellaneous (Other)  Expenses,Variety stores
Buckinghamshire Council ,31.05.2023,26.05.2023,"Planning, Growth & Sustainability",Planning & Regeneration - PGS,PREMIER INN,834,0,834,"Courses, Conference and Seminar Fees",Premier Inn
Buckinghamshire Council ,31.05.2023,26.05.2023,"Planning, Growth & Sustainability",Planning & Regeneration - PGS,PREMIER INN,834,0,834,"Courses, Conference and Seminar Fees",Premier Inn
Buckinghamshire Council ,31.05.2023,26.05.2023,"Planning, Growth & Sustainability",Leader - PGS,1 AND 1 IONOS LTD,16.82,0,16.82,Computer Support Services,Computer network information services
Buckinghamshire Council ,31.05.2023,26.05.2023,Children's Services,Education & Childrens Services - CS Dir,ARRIVA UK BUS,13,0,13,Sec 20/31: Transport,"Buses, charter & tour"
Buckinghamshire Council ,31.05.2023,26.05.2023,Adults and Health,Health & Wellbeing - Adults & Health Dir,TRAVELODGE GB0000,90.76,0,90.76,Other Short Term Support,Travelodge
Buckinghamshire Council ,31.05.2023,26.05.2023,Adults and Health,Health & Wellbeing - Adults & Health Dir,TRAVELODGE GB0000,579,0,579,Other Short Term Support,Travelodge
Buckinghamshire Council ,31.05.2023,26.05.2023,Children's Services,Education & Childrens Services - CS Dir,NEALES TAXIS LTD,104.15,20.83,124.98,Sec 17: Transport,Taxicabs & limousines
Buckinghamshire Council ,31.05.2023,26.05.2023,Children's Services,Education & Childrens Services - CS Dir,NEALES TAXIS LTD,0.02,0,0.02,Sec 17: Transport,Taxicabs & limousines
Buckinghamshire Council ,31.05.2023,26.05.2023,Children's Services,Education & Childrens Services - CS Dir,AMZNMKTPLACE,29.98,0,29.98,Equipment (including storage),Miscellaneous retail
Buckinghamshire Council ,31.05.2023,25.05.2023,Communities,Transport - Communities Dir,CLUB QUARTERS,260,52,312,"Courses, Conference and Seminar Fees","Hotels, motels & resorts"
Buckinghamshire Council ,31.05.2023,25.05.2023,Communities,Transport - Communities Dir,CLUB QUARTERS,260,52,312,"Courses, Conference and Seminar Fees","Hotels, motels & resorts"
Buckinghamshire Council ,31.05.2023,25.05.2023,"Planning, Growth & Sustainability",Planning & Regeneration - PGS,TRAINLINE.COM,11.34,0,11.34,Staff Travelling Expenses,Passenger railways
Buckinghamshire Council ,31.05.2023,25.05.2023,"Planning, Growth & Sustainability",Planning & Regeneration - PGS,TRAINLINE,-16.5,0,-16.5,Staff Travelling Expenses,Passenger railways
Buckinghamshire Council ,31.05.2023,25.05.2023,"Planning, Growth & Sustainability",AH&R - PGS Dir,BHN*MORRISONSGCUK,250,0,250,Long Service Awards,Misc. general merchandise
Buckinghamshire Council ,31.05.2023,25.05.2023,Adults and Health,Health & Wellbeing - Adults & Health Dir,SAINSBURYS S/MKTS,21.5,0,21.5,Activities & General Recreation,Grocery stores
Buckinghamshire Council ,31.05.2023,25.05.2023,Adults and Health,Health & Wellbeing - Adults & Health Dir,SAINSBURYS S/MKTS,16.8,0,16.8,General Provisions (Food),Grocery stores
Buckinghamshire Council ,31.05.2023,25.05.2023,Children's Services,Education & Childrens Services - CS Dir,TRAINLINE.COM,37.27,0,37.27,Sec 20/31: Supp for Contact,Passenger railways
Buckinghamshire Council ,31.05.2023,25.05.2023,"Planning, Growth & Sustainability",Housing & Homelessness & Regulatory PGS,LAND REGISTRY ECOM CCC,3,0,3,Homelessness,Government services
Buckinghamshire Council ,31.05.2023,25.05.2023,Communities,Transport - Communities Dir,GWR OXFORD SST,85.3,0,85.3,Staff Travelling Expenses,Passenger railways
Buckinghamshire Council ,31.05.2023,25.05.2023,Deputy Chief Executive,Communities - DCE,AO RETAIL LIMITED,220,44,264,Other Personal Needs,Household appliance stores
Buckinghamshire Council ,31.05.2023,25.05.2023,Deputy Chief Executive,Communities - DCE,AO RETAIL LIMITED,490,98,588,Other Personal Needs,Household appliance stores
Buckinghamshire Council ,31.05.2023,25.05.2023,Deputy Chief Executive,Communities - DCE,WWW.ARGOS.CO.UK,62.87,12.58,75.45,Other Personal Needs,Department stores
Buckinghamshire Council ,31.05.2023,25.05.2023,Children's Services,Education & Childrens Services - CS Dir,PYN*BEDS CO UK,409,0,409,Leaving Care - Grants for Care Leavers,Furniture & home furnishing
Buckinghamshire Council ,31.05.2023,25.05.2023,Children's Services,Education & Childrens Services - CS Dir,DUNELM SOFTFURNISHINGS,384.35,0,384.35,Leaving Care - Grants for Care Leavers,Furniture & home furnishing
Buckinghamshire Council ,31.05.2023,25.05.2023,Children's Services,Education & Childrens Services - CS Dir,TRAINLINE.COM,85.44,0,85.44,Leaving Care - Transport,Passenger railways
Buckinghamshire Council ,31.05.2023,25.05.2023,Deputy Chief Executive,Leader - DCE,SMART PARKING (E),10.5,0,10.5,Staff Travelling Expenses,Car parking & garages
Buckinghamshire Council ,31.05.2023,25.05.2023,Children's Services,Education & Childrens Services - CS Dir,CURRYS BUSINESS,499.15,99.83,598.98,Computer Consumables,Computer software stores
Buckinghamshire Council ,31.05.2023,25.05.2023,Children's Services,Education & Childrens Services - CS Dir,CURRYS BUSINESS,0.01,0,0.01,Computer Consumables,Computer software stores
Buckinghamshire Council ,31.05.2023,25.05.2023,"Planning, Growth & Sustainability",AH&R - PGS Dir,BREWERS AYLESBURY,61.07,0,61.07,Other Equipment and Materials,Hardware stores
Buckinghamshire Council ,31.05.2023,25.05.2023,"Planning, Growth & Sustainability",AH&R - PGS Dir,ISAAC LORD LIMITED,42.09,0,42.09,Other Equipment and Materials,Hardware stores
Buckinghamshire Council ,31.05.2023,25.05.2023,"Planning, Growth & Sustainability",AH&R - PGS Dir,SCREWFIX DIR LTD,12.49,0,12.49,General Repairs & Maintenance,Timber & building supplies
Buckinghamshire Council ,31.05.2023,25.05.2023,Children's Services,Education & Childrens Services - CS Dir,TAXIPAY,42,0,42,Sec 20/31: Transport,Taxicabs & limousines
Buckinghamshire Council ,31.05.2023,25.05.2023,Communities,artnerships - Communities,AMZNMKTPLACE,5.99,0,5.99,Miscellaneous (Other)  Expenses,Miscellaneous retail
Buckinghamshire Council ,31.05.2023,25.05.2023,Communities,artnerships - Communities,CAFE OLYMPIA,41.75,0,41.75,Miscellaneous (Other)  Expenses,Fast food restaurants
Buckinghamshire Council ,31.05.2023,25.05.2023,Children's Services,Education & Childrens Services - CS Dir,BT BUSINESS BILL,162.92,0,162.92,Telephones,Phone services
Buckinghamshire Council ,31.05.2023,25.05.2023,Children's Services,Education & Childrens Services - CS Dir,BT.COM CONSUMER BP,29.73,0,29.73,Accomodation Costs,Phone services
Buckinghamshire Council ,31.05.2023,25.05.2023,"Planning, Growth & Sustainability",AH&R - PGS Dir,SAINSBURYS - AYLESBURY,4,0,4,Other Equipment and Materials,Car washes
Buckinghamshire Council ,31.05.2023,25.05.2023,"Planning, Growth & Sustainability",AH&R - PGS Dir,AMAZON.CO.UK,57.18,0,57.18,Purchase.of Refreshments and Food,Direct sales companies
Buckinghamshire Council ,31.05.2023,25.05.2023,Adults and Health,Communities - Adults & Health,AMZNMKTPLACE,3.99,0,3.99,Other Employees Expenses,Miscellaneous retail
Buckinghamshire Council ,31.05.2023,25.05.2023,Adults and Health,Communities - Adults & Health,AMZNMKTPLACE,6.99,0,6.99,Other Employees Expenses,Miscellaneous retail
Buckinghamshire Council ,31.05.2023,25.05.2023,Children's Services,Education & Childrens Services - CS Dir,AMZNMKTPLACE,41.98,0,41.98,Consumable Supplies,Miscellaneous retail
Buckinghamshire Council ,31.05.2023,25.05.2023,Children's Services,Education & Childrens Services - CS Dir,TESCO GIFT CARD,100,0,100,Consumable Supplies,Grocery stores
Buckinghamshire Council ,31.05.2023,25.05.2023,Deputy Chief Executive,Communities - DCE,RINGGO PARKING,2.25,0,2.25,Staff Travelling Expenses,Car parking & garages
Buckinghamshire Council ,31.05.2023,25.05.2023,Communities,Culture & Leisure - Communities Dir,TESCO STORES 3099,34.68,0,34.68,Events Expenditure,Grocery stores
Buckinghamshire Council ,31.05.2023,25.05.2023,Children's Services,Education & Childrens Services - CS Dir,AMAZON.CO.UK,50.31,0,50.31,"Workshop - Materials,Tools & Equipment",Direct sales companies
Buckinghamshire Council ,31.05.2023,25.05.2023,Children's Services,Education & Childrens Services - CS Dir,AMZNMKTPLACE,169,0,169,Miscellaneous (Other)  Expenses,Miscellaneous retail
Buckinghamshire Council ,31.05.2023,25.05.2023,Children's Services,Education & Childrens Services - CS Dir,AMZNMKTPLACE,84.15,0,84.15,Miscellaneous (Other)  Expenses,Miscellaneous retail
Buckinghamshire Council ,31.05.2023,25.05.2023,Adults and Health,Health & Wellbeing - Adults & Health Dir,AMZNMKTPLACE,32.13,0,32.13,Other Supplies,Miscellaneous retail
Buckinghamshire Council ,31.05.2023,25.05.2023,Adults and Health,Health & Wellbeing - Adults & Health Dir,TRAVELODGE GB0000,864.93,0,864.93,Other Short Term Support,Travelodge
Buckinghamshire Council ,31.05.2023,25.05.2023,Children's Services,Education & Childrens Services - CS Dir,AMZNMKTPLACE,53.19,0,53.19,Equipment (including storage),Miscellaneous retail
Buckinghamshire Council ,31.05.2023,25.05.2023,Communities,Climate Change & Environment - Community,PAYPAL,41.44,0,41.44,Advertising,Advertising services
Buckinghamshire Council ,31.05.2023,25.05.2023,Children's Services,Education & Childrens Services - CS Dir,ASDA SUPERSTORE,19.99,0,19.99,General Provisions (Food),Grocery stores
Buckinghamshire Council ,31.05.2023,25.05.2023,Children's Services,Education & Childrens Services - CS Dir,ASDA  STORES 4396,3.8,0,3.8,General Provisions (Food),Grocery stores
Buckinghamshire Council ,31.05.2023,25.05.2023,Children's Services,Education & Childrens Services - CS Dir,SAINSBURY S S/MKTS,22.87,0,22.87,Educational Equipment,Grocery stores
Buckinghamshire Council ,31.05.2023,25.05.2023,Children's Services,Education & Childrens Services - CS Dir,ODEON AYLESBURY,7.7,0,7.7,Miscellaneous (Other)  Expenses,Cinemas
Buckinghamshire Council ,31.05.2023,25.05.2023,Deputy Chief Executive,Leader - DCE,FACEBK BGAV2QBQN2,840,0,840,Advertising,Advertising services
Buckinghamshire Council ,31.05.2023,25.05.2023,Deputy Chief Executive,AH&R- DCE Dir,CLICK-POST.CO.UK,56.24,11.25,67.49,"Courses, Conference and Seminar Fees",Publishing & printing services
Buckinghamshire Council ,31.05.2023,25.05.2023,Deputy Chief Executive,AH&R- DCE Dir,AMAZON.CO.UK,12.48,2.5,14.98,"Courses, Conference and Seminar Fees",Direct sales companies
Buckinghamshire Council ,31.05.2023,25.05.2023,Children's Services,Education & Childrens Services - CS Dir,AMZNMKTPLACE,109.99,0,109.99,Leaving Care - Grants for Care Leavers,Miscellaneous retail
Buckinghamshire Council ,31.05.2023,25.05.2023,Children's Services,Education & Childrens Services - CS Dir,AMZNMKTPLACE,364.99,0,364.99,Leaving Care - Grants for Care Leavers,Miscellaneous retail
Buckinghamshire Council ,31.05.2023,25.05.2023,Children's Services,Education & Childrens Services - CS Dir,AMZNMKTPLACE,244.49,0,244.49,Leaving Care - Grants for Care Leavers,Miscellaneous retail
Buckinghamshire Council ,31.05.2023,25.05.2023,Children's Services,Education & Childrens Services - CS Dir,TRIPP LTD,54.5,0,54.5,Leaving Care  - Financial Assistance,Misc. clothing & accessory shops
Buckinghamshire Council ,31.05.2023,25.05.2023,Communities,ommunities - Trust Accounts,BOOKER LIMITED ECOM,612.08,0,612.08,Purchase of Food for Re-sale,Grocery stores
Buckinghamshire Council ,31.05.2023,25.05.2023,"Planning, Growth & Sustainability",Planning & Regeneration - PGS,TRAINLINE,16.5,0,16.5,Staff Travelling Expenses,Passenger railways
Buckinghamshire Council ,31.05.2023,25.05.2023,"Planning, Growth & Sustainability",Planning & Regeneration - PGS,TRAINLINE.COM,16.5,0,16.5,Staff Travelling Expenses,Passenger railways
Buckinghamshire Council ,31.05.2023,25.05.2023,"Planning, Growth & Sustainability",Planning & Regeneration - PGS,TFL TRAVEL CH,5.5,0,5.5,Staff Travelling Expenses,Local commuter transport
Buckinghamshire Council ,31.05.2023,25.05.2023,Communities,Housing & Homelessness & Regulatory PGS,SAINSBURY S S/MKTS,20.95,0,20.95,"Courses, Conference and Seminar Fees",Grocery stores
Buckinghamshire Council ,31.05.2023,25.05.2023,Communities,Climate Change & Environment - Community,GSF CAR PARTS,156.41,0,156.41,Repair & Maint of Vehicles & Plant,Motor vehicle supplies & parts
Buckinghamshire Council ,31.05.2023,25.05.2023,Communities,Climate Change & Environment - Community,JAYNE RICHARDS FLOWERS,56,0,56,Seeds & Plants,Florists
Buckinghamshire Council ,31.05.2023,25.05.2023,Communities,Climate Change & Environment - Community,MOTTS COACHES,121.2,0,121.2,Vehicle Hire,Car rental
Buckinghamshire Council ,31.05.2023,25.05.2023,Communities,Climate Change & Environment - Community,GSF CAR PARTS,-23.17,0,-23.17,Repair & Maint of Vehicles & Plant,Motor vehicle supplies & parts
Buckinghamshire Council ,31.05.2023,25.05.2023,Communities,Transport - Communities Dir,ROBERT DYAS AMERSHAM,15.97,0,15.97,Materials,Hardware stores
Buckinghamshire Council ,31.05.2023,24.05.2023,Children's Services,Education & Childrens Services - CS Dir,APPLE.COM/UK,450,0,450,Computer Consumables,Electronics shops
Buckinghamshire Council ,31.05.2023,24.05.2023,Adults and Health,Health & Wellbeing - Adults & Health Dir,AMZNMKTPLACE,21.07,0,21.07,Health & Safety Supplies & Services,Miscellaneous retail
Buckinghamshire Council ,31.05.2023,24.05.2023,Communities,Culture & Leisure - Communities Dir,AMZNMKTPLACE,24.98,5,29.98,Events Expenditure,Miscellaneous retail
Buckinghamshire Council ,31.05.2023,24.05.2023,"Planning, Growth & Sustainability",Housing & Homelessness & Regulatory PGS,LAND REGISTRY ECOM CCC,3,0,3,Homelessness,Government services
Buckinghamshire Council ,31.05.2023,24.05.2023,Deputy Chief Executive,Communities - DCE,WWW.ARGOS.CO.UK,268.95,0,268.95,Other Personal Needs,Department stores
Buckinghamshire Council ,31.05.2023,24.05.2023,Deputy Chief Executive,Communities - DCE,AO RETAIL LIMITED,477.45,95.49,572.94,Other Personal Needs,Household appliance stores
Buckinghamshire Council ,31.05.2023,24.05.2023,Deputy Chief Executive,Communities - DCE,AO RETAIL LIMITED,0.06,0,0.06,Other Personal Needs,Household appliance stores
Buckinghamshire Council ,31.05.2023,24.05.2023,Deputy Chief Executive,Communities - DCE,AO RETAIL LIMITED,685,137,822,Other Personal Needs,Household appliance stores
Buckinghamshire Council ,31.05.2023,24.05.2023,Deputy Chief Executive,Communities - DCE,AO RETAIL LIMITED,822.5,164.5,987,Other Personal Needs,Household appliance stores
Buckinghamshire Council ,31.05.2023,24.05.2023,Deputy Chief Executive,Communities - DCE,AO RETAIL LIMITED,195,39,234,Other Personal Needs,Household appliance stores
Buckinghamshire Council ,31.05.2023,24.05.2023,Children's Services,Education & Childrens Services - CS Dir,WWW.PORT.AC.UK,542,0,542,Leaving Care - Higher Education Supp,Colleges & universities
Buckinghamshire Council ,31.05.2023,24.05.2023,Children's Services,Education & Childrens Services - CS Dir,WWW.ARGOS.CO.UK,141,0,141,Leaving Care - Grants for Care Leavers,Department stores
Buckinghamshire Council ,31.05.2023,24.05.2023,Communities,Climate Change & Environment - Community,DVLA DRIVERS TACHOGRAPH W,19,0,19,DVLA Enquiries,Government services
Buckinghamshire Council ,31.05.2023,24.05.2023,Communities,Climate Change & Environment - Community,PIX*NVR,-250,0,-250,Subscriptions to National Bodies,Miscellaneous retail
Buckinghamshire Council ,31.05.2023,24.05.2023,"Planning, Growth & Sustainability",AH&R - PGS Dir,UNIVERSAL SERVICES,209.68,0,209.68,Other Equipment and Materials,Sporting goods shops
Buckinghamshire Council ,31.05.2023,24.05.2023,Deputy Chief Executive,AH&R- DCE Dir,VARIDESK*,490,0,490,Stationery & Office Supplies,Office & commercial furniture
Buckinghamshire Council ,31.05.2023,24.05.2023,Deputy Chief Executive,AH&R- DCE Dir,ONE BELOW,1,0,1,Stationery & Office Supplies,Grocery stores
Buckinghamshire Council ,31.05.2023,24.05.2023,"Planning, Growth & Sustainability",Housing & Homelessness & Regulatory PGS,MOBILE PARADISE,104.94,0,104.94,Other General Office Expenses,"Radio, TV & stereo repairs"
Buckinghamshire Council ,31.05.2023,24.05.2023,Communities,artnerships - Communities,ASDA  STORES 4396,15.6,0,15.6,Miscellaneous (Other)  Expenses,Grocery stores
Buckinghamshire Council ,31.05.2023,24.05.2023,Communities,Housing & Homelessness & Regulatory Comm,CHILTERN VIEW NURSER 01,49,0,49,Maintenance of Grounds,Florist supplies & nursery stock
Buckinghamshire Council ,31.05.2023,24.05.2023,Children's Services,Education & Childrens Services - CS Dir,VOUCHER EXPRESS,100,0,100,Other Employees Expenses,Misc business services
Buckinghamshire Council ,31.05.2023,24.05.2023,"Planning, Growth & Sustainability",AH&R - PGS Dir,SCREWFIX DIR LTD,6.58,0,6.58,General Repairs & Maintenance,Timber & building supplies
Buckinghamshire Council ,31.05.2023,24.05.2023,"Planning, Growth & Sustainability",AH&R - PGS Dir,ARGOS  AYLESBURY GATEHOU,15,0,15,General Repairs & Maintenance,Discount stores
Buckinghamshire Council ,31.05.2023,24.05.2023,Communities,Housing & Homelessness & Regulatory Comm,BRITISH GAS OTP,10.3,0,10.3,Gas,Utilities
Buckinghamshire Council ,31.05.2023,24.05.2023,"Planning, Growth & Sustainability",AH&R - PGS Dir,HALFORDS 0529,22.48,0,22.48,General Repairs & Maintenance,"Bicycle shops, sales & service"
Buckinghamshire Council ,31.05.2023,24.05.2023,Adults and Health,Communities - Adults & Health,AMZNMKTPLACE,17.99,0,17.99,Miscellaneous (Other)  Expenses,Miscellaneous retail
Buckinghamshire Council ,31.05.2023,24.05.2023,Children's Services,Education & Childrens Services - CS Dir,AMZNMKTPLACE,52.98,0,52.98,YOS - Direct Work,Miscellaneous retail
Buckinghamshire Council ,31.05.2023,24.05.2023,Children's Services,Education & Childrens Services - CS Dir,GEAR4MUSIC,233.98,0,233.98,Miscellaneous (Other)  Expenses,Music stores & instruments
Buckinghamshire Council ,31.05.2023,24.05.2023,Adults and Health,Health & Wellbeing - Adults & Health Dir,AMZNMKTPLACE,94.95,0,94.95,Activities & General Recreation,Miscellaneous retail
Buckinghamshire Council ,31.05.2023,24.05.2023,Children's Services,Education & Childrens Services - CS Dir,TAXIPAY,130,0,130,Sec 20/31: Financial Assistance,Taxicabs & limousines
Buckinghamshire Council ,31.05.2023,24.05.2023,Children's Services,Education & Childrens Services - CS Dir,TAXIPAY,130,0,130,Sec 20/31: Financial Assistance,Taxicabs & limousines
Buckinghamshire Council ,31.05.2023,24.05.2023,Children's Services,Education & Childrens Services - CS Dir,TAXIPAY,130,0,130,Sec 20/31: Financial Assistance,Taxicabs & limousines
Buckinghamshire Council ,31.05.2023,24.05.2023,Adults and Health,Health & Wellbeing - Adults & Health Dir,TRAVELODGE GB0000,186.99,0,186.99,Other Short Term Support,Travelodge
Buckinghamshire Council ,31.05.2023,24.05.2023,Communities,Climate Change & Environment - Community,TESCO STORES 2020,22.29,0,22.29,Car Allowances Mileage & Lump Sum,Grocery stores
Buckinghamshire Council ,31.05.2023,24.05.2023,"Planning, Growth & Sustainability",AH&R - PGS Dir,INTEGRITY PRINT,90.6,0,90.6,General Repairs & Maintenance,Photocopy & reproduction services
Buckinghamshire Council ,31.05.2023,24.05.2023,"Planning, Growth & Sustainability",Climate Change & Environment - PGS,AMAZON.CO.UK,18.1,3.62,21.72,Equipment,Direct sales companies
Buckinghamshire Council ,31.05.2023,24.05.2023,Resources,AH&R - Res Dir,AMZNMKTPLACE,199.3,0,199.3,Computer Consumables,Miscellaneous retail
Buckinghamshire Council ,31.05.2023,24.05.2023,Children's Services,Education & Childrens Services - CS Dir,WWW.ARGOS.CO.UK,49.95,0,49.95,Equipment (including storage),Department stores
Buckinghamshire Council ,31.05.2023,24.05.2023,Children's Services,Education & Childrens Services - CS Dir,COSTA COFFEE 43011517,4.5,0,4.5,Miscellaneous (Other)  Expenses,Fast food restaurants
Buckinghamshire Council ,31.05.2023,24.05.2023,Children's Services,Education & Childrens Services - CS Dir,LINKEDIN ADS,101.75,0,101.75,Advertising,Advertising services
Buckinghamshire Council ,31.05.2023,24.05.2023,Adults and Health,Communities - Adults & Health,SP RLSS UK SHOP,18.25,0,18.25,Project Work and Project Management Costs,Men & womens clothing shops
Buckinghamshire Council ,31.05.2023,24.05.2023,Children's Services,Education & Childrens Services - CS Dir,AMZNMKTPLACE,108.95,0,108.95,Leaving Care - Grants for Care Leavers,Miscellaneous retail
Buckinghamshire Council ,31.05.2023,24.05.2023,Children's Services,Education & Childrens Services - CS Dir,AMZNMKTPLACE,26.99,0,26.99,Leaving Care - Grants for Care Leavers,Miscellaneous retail
Buckinghamshire Council ,31.05.2023,24.05.2023,Children's Services,Education & Childrens Services - CS Dir,AMZNMKTPLACE,28.79,0,28.79,Leaving Care - Grants for Care Leavers,Miscellaneous retail
Buckinghamshire Council ,31.05.2023,24.05.2023,Children's Services,Education & Childrens Services - CS Dir,AMZNMKTPLACE,239.99,0,239.99,Leaving Care - Grants for Care Leavers,Miscellaneous retail
Buckinghamshire Council ,31.05.2023,24.05.2023,Children's Services,Education & Childrens Services - CS Dir,NAIRNTAXIS,192,0,192,Staff Travelling Expenses,Taxicabs & limousines
Buckinghamshire Council ,31.05.2023,24.05.2023,Communities,ommunities - Trust Accounts,COSTCO WHOLESALE #102,365.35,0,365.35,Equipment,Buying & shopping services/clubs
Buckinghamshire Council ,31.05.2023,24.05.2023,Children's Services,Education & Childrens Services - CS Dir,RUSH HIGH WYCOMBE,191.5,0,191.5,Activities & General Recreation,Misc. recreational services
Buckinghamshire Council ,31.05.2023,24.05.2023,Children's Services,Education & Childrens Services - CS Dir,TRAVELODGE GB0862,6.5,0,6.5,Sec 17: Accommodation,Travelodge
Buckinghamshire Council ,31.05.2023,24.05.2023,Children's Services,Education & Childrens Services - CS Dir,TRAVELODGE GB0862,6.5,0,6.5,Sec 17: Accommodation,Travelodge
Buckinghamshire Council ,31.05.2023,24.05.2023,Deputy Chief Executive,AH&R- DCE Dir,SUMUP  *ARROW TRANSPOR,15,0,15,Staff Travelling Expenses,Taxicabs & limousines
Buckinghamshire Council ,31.05.2023,24.05.2023,Adults and Health,Health & Wellbeing - Adults & Health Dir,SUMUP  *JAMES MORGAN,20,0,20,Activities & General Recreation,General contractors
Buckinghamshire Council ,31.05.2023,24.05.2023,Deputy Chief Executive,Communities - DCE,AMZNMKTPLACE,26.95,0,26.95,Administrative Equipment & Tools,Miscellaneous retail
Buckinghamshire Council ,31.05.2023,24.05.2023,Communities,Climate Change & Environment - Community,EURO CAR PARTS P,45.49,0,45.49,Repair & Maint of Vehicles & Plant,Automotive parts & accessories
Buckinghamshire Council ,31.05.2023,24.05.2023,Children's Services,Education & Childrens Services - CS Dir,AMZNMKTPLACE,58.8,0,58.8,Consumable Supplies,Miscellaneous retail
Buckinghamshire Council ,31.05.2023,24.05.2023,Communities,Transport - Communities Dir,SHELL 40-42 WOODSIDE ROAD,5.46,0,5.46,Vehicle Hire,Service stations
Buckinghamshire Council ,31.05.2023,24.05.2023,Communities,Transport - Communities Dir,SHELL 40-42 WOODSIDE ROAD,8.99,0,8.99,Vehicle Hire,Service stations
Buckinghamshire Council ,31.05.2023,24.05.2023,Communities,Transport - Communities Dir,SHELL 40-42 WOODSIDE ROAD,6.52,0,6.52,Vehicle Hire,Service stations
Buckinghamshire Council ,31.05.2023,24.05.2023,Adults and Health,Health & Wellbeing - Adults & Health Dir,A2Z TAXIS AMERSHAM,54,0,54,Staff Travelling Expenses,Taxicabs & limousines
Buckinghamshire Council ,31.05.2023,24.05.2023,Adults and Health,Health & Wellbeing - Adults & Health Dir,CURRYS ONLINE,329,0,329,Specialist Equipment,Electronics shops
Buckinghamshire Council ,31.05.2023,24.05.2023,Adults and Health,Health & Wellbeing - Adults & Health Dir,AMAZON.CO.UK,250,0,250,Other Employees Expenses,Direct sales companies
Buckinghamshire Council ,31.05.2023,24.05.2023,Children's Services,Education & Childrens Services - CS Dir,NEALES TAXIS LTD,400,80,480,Sec 17: Transport,Taxicabs & limousines
Buckinghamshire Council ,31.05.2023,24.05.2023,Children's Services,Education & Childrens Services - CS Dir,NEALES TAXIS LTD,300,60,360,Sec 17: Transport,Taxicabs & limousines
Buckinghamshire Council ,31.05.2023,24.05.2023,Children's Services,Education & Childrens Services - CS Dir,NEALES TAXIS LTD,300,60,360,Sec 17: Transport,Taxicabs & limousines
Buckinghamshire Council ,31.05.2023,24.05.2023,Adults and Health,Health & Wellbeing - Adults & Health Dir,PREMIER INN,277.95,0,277.95,"Courses, Conference and Seminar Fees",Premier Inn
Buckinghamshire Council ,31.05.2023,24.05.2023,Communities,Culture & Leisure - Communities Dir,WWW.PRESERVATIONEQUIPM,53.94,0,53.94,Administrative Equipment & Tools,Warehousing
Buckinghamshire Council ,31.05.2023,24.05.2023,Children's Services,Education & Childrens Services - CS Dir,PARADIGM HOUSING GROUP,508.26,0,508.26,Leaving Care - Higher Education Supp,Government services
Buckinghamshire Council ,31.05.2023,24.05.2023,Communities,Leader - PGS,CROWNE PLAZA HOTELS,109.76,0,109.76,"Courses, Conference and Seminar Fees",Crowne Plaza Hotels
Buckinghamshire Council ,31.05.2023,23.05.2023,Children's Services,Education & Childrens Services - CS Dir,AMZNMKTPLACE,25.49,0,25.49,IT Equipment Purchase,Miscellaneous retail
Buckinghamshire Council ,31.05.2023,23.05.2023,Adults and Health,Health & Wellbeing - Adults & Health Dir,TESCO STORES 2020,4.95,0,4.95,General Provisions (Food),Grocery stores
Buckinghamshire Council ,31.05.2023,23.05.2023,Deputy Chief Executive,Communities - DCE,WWW.ARGOS.CO.UK,227.45,45.49,272.94,Other Personal Needs,Department stores
Buckinghamshire Council ,31.05.2023,23.05.2023,Deputy Chief Executive,Communities - DCE,WWW.ARGOS.CO.UK,0.01,0,0.01,Other Personal Needs,Department stores
Buckinghamshire Council ,31.05.2023,23.05.2023,Deputy Chief Executive,Communities - DCE,WWW.ARGOS.CO.UK,42.45,8.49,50.94,Other Personal Needs,Department stores
Buckinghamshire Council ,31.05.2023,23.05.2023,Deputy Chief Executive,Communities - DCE,WWW.ARGOS.CO.UK,0.01,0,0.01,Other Personal Needs,Department stores
Buckinghamshire Council ,31.05.2023,23.05.2023,Deputy Chief Executive,Communities - DCE,AO RETAIL LIMITED,195,39,234,Other Personal Needs,Household appliance stores
Buckinghamshire Council ,31.05.2023,23.05.2023,Deputy Chief Executive,Communities - DCE,AO RETAIL LIMITED,224.15,44.83,268.98,Other Personal Needs,Household appliance stores
Buckinghamshire Council ,31.05.2023,23.05.2023,Deputy Chief Executive,Communities - DCE,AO RETAIL LIMITED,0.02,0,0.02,Other Personal Needs,Household appliance stores
Buckinghamshire Council ,31.05.2023,23.05.2023,Deputy Chief Executive,Communities - DCE,AO RETAIL LIMITED,195,39,234,Other Personal Needs,Household appliance stores
Buckinghamshire Council ,31.05.2023,23.05.2023,Deputy Chief Executive,Communities - DCE,AO RETAIL LIMITED,195,39,234,Other Personal Needs,Household appliance stores
Buckinghamshire Council ,31.05.2023,23.05.2023,Children's Services,Education & Childrens Services - CS Dir,AMZNMKTPLACE,30,0,30,Cleaning & Domestic Equipment,Miscellaneous retail
Buckinghamshire Council ,31.05.2023,23.05.2023,"Planning, Growth & Sustainability",Climate Change & Environment - PGS,TRAVELODGE GB0000,296.77,0,296.77,"Courses, Conference and Seminar Fees",Travelodge
Buckinghamshire Council ,31.05.2023,23.05.2023,"Planning, Growth & Sustainability",Climate Change & Environment - PGS,TRAVELODGE GB0000,12.24,0,12.24,"Courses, Conference and Seminar Fees",Travelodge
Buckinghamshire Council ,31.05.2023,23.05.2023,Resources,AH&R - Res Dir,VOUCHER EXPRESS,106.95,0,106.95,Long Service Awards,Misc business services
Buckinghamshire Council ,31.05.2023,23.05.2023,"Planning, Growth & Sustainability",Planning & Regeneration - PGS,THANKBOX - VIV HAZELL,6.99,0,6.99,Miscellaneous (Other)  Expenses,
Buckinghamshire Council ,31.05.2023,23.05.2023,Children's Services,Education & Childrens Services - CS Dir,POST OFFICE COUNTER,14.5,0,14.5,General Postage,Postal services
Buckinghamshire Council ,31.05.2023,23.05.2023,Children's Services,Education & Childrens Services - CS Dir,BUCKINGHAM HOTELS,"1,890.00",0,"1,890.00",Sec 17: Accommodation,"Hotels, motels & resorts"
Buckinghamshire Council ,31.05.2023,23.05.2023,Children's Services,Education & Childrens Services - CS Dir,BUCKINGHAM HOTELS,"1,890.00",0,"1,890.00",Sec 17: Accommodation,"Hotels, motels & resorts"
Buckinghamshire Council ,31.05.2023,23.05.2023,Resources,AH&R - Res Dir,WWW.REGISTRY-TRUST.ORG,24,0,24,Bailiffs Commission,Professional services
Buckinghamshire Council ,31.05.2023,23.05.2023,Adults and Health,Health & Wellbeing - Adults & Health Dir,DAVIES BROTHERS NURSER,47.93,0,47.93,Activities & General Recreation,Florist supplies & nursery stock
Buckinghamshire Council ,31.05.2023,23.05.2023,Adults and Health,Health & Wellbeing - Adults & Health Dir,MARSDEN FIRE SAFETY LT,171,0,171,Health & Safety Supplies & Services,Misc. general merchandise
Buckinghamshire Council ,31.05.2023,23.05.2023,Adults and Health,Health & Wellbeing - Adults & Health Dir,MARSDEN FIRE SAFETY LT,171,0,171,Health & Safety Supplies & Services,Misc. general merchandise
Buckinghamshire Council ,31.05.2023,23.05.2023,Communities,artnerships - Communities,AMZNMKTPLACE,20.97,0,20.97,Miscellaneous (Other)  Expenses,Miscellaneous retail
Buckinghamshire Council ,31.05.2023,23.05.2023,Children's Services,Education & Childrens Services - CS Dir,ST JOHN AMBULANCE,430.8,0,430.8,Training (Inc. Health & Safety Courses),Charitable organisations
Buckinghamshire Council ,31.05.2023,23.05.2023,Children's Services,Education & Childrens Services - CS Dir,PAYPAL,420,0,420,Professional Subscriptions re Employees,Schools
Buckinghamshire Council ,31.05.2023,23.05.2023,"Planning, Growth & Sustainability",AH&R - PGS Dir,AMZNMKTPLACE,19.49,0,19.49,Administrative Equipment & Tools,Miscellaneous retail
Buckinghamshire Council ,31.05.2023,23.05.2023,"Planning, Growth & Sustainability",AH&R - PGS Dir,MARKS&SPENCER PLC SF,6.2,0,6.2,Purchase.of Refreshments and Food,Grocery stores
Buckinghamshire Council ,31.05.2023,23.05.2023,"Planning, Growth & Sustainability",AH&R - PGS Dir,SCREWFIX HIGH WYCOMBE CRE,4.49,0,4.49,General Repairs & Maintenance,Timber & building supplies
Buckinghamshire Council ,31.05.2023,23.05.2023,Children's Services,Education & Childrens Services - CS Dir,AMZ*CHINABUYTHEM,-54.98,0,-54.98,YOS - Direct Work,Miscellaneous retail
Buckinghamshire Council ,31.05.2023,23.05.2023,Children's Services,Education & Childrens Services - CS Dir,AMZNMKTPLACE,21.56,0,21.56,Consumable Supplies,Miscellaneous retail
Buckinghamshire Council ,31.05.2023,23.05.2023,Children's Services,Education & Childrens Services - CS Dir,AMZNMKTPLACE,35.69,0,35.69,Consumable Supplies,Miscellaneous retail
Buckinghamshire Council ,31.05.2023,23.05.2023,Children's Services,Education & Childrens Services - CS Dir,AMZNMKTPLACE,98.4,0,98.4,Consumable Supplies,Miscellaneous retail
Buckinghamshire Council ,31.05.2023,23.05.2023,Communities,Culture & Leisure - Communities Dir,TOOLSTATION UK,20.8,4.16,24.96,Protective Clothing & Uniforms,Hardware stores
Buckinghamshire Council ,31.05.2023,23.05.2023,Communities,Culture & Leisure - Communities Dir,TOOLSTATION UK,0.02,0,0.02,Protective Clothing & Uniforms,Hardware stores
Buckinghamshire Council ,31.05.2023,23.05.2023,Deputy Chief Executive,Communities - DCE,METRO LOUNGE,3.75,0,3.75,General Provisions (Food),"Bars, taverns, pubs & nightclubs"
Buckinghamshire Council ,31.05.2023,23.05.2023,Adults and Health,Health & Wellbeing - Adults & Health Dir,ASDA GROCERIES ONLINE,98.62,0,98.62,General Provisions (Food),Grocery stores
Buckinghamshire Council ,31.05.2023,23.05.2023,Adults and Health,Health & Wellbeing - Adults & Health Dir,ASDA GROCERIES ONLINE,-9,0,-9,General Provisions (Food),Grocery stores
Buckinghamshire Council ,31.05.2023,23.05.2023,Children's Services,Education & Childrens Services - CS Dir,WWW.LEARNDIRECT.COM,699.99,0,699.99,"Courses, Conference and Seminar Fees",Correspondence schools
Buckinghamshire Council ,31.05.2023,23.05.2023,Adults and Health,Health & Wellbeing - Adults & Health Dir,TESCO STORES 2162,39.94,0,39.94,General Provisions (Food),Grocery stores
Buckinghamshire Council ,31.05.2023,23.05.2023,Children's Services,Education & Childrens Services - CS Dir,ASDA SUPERSTORE,42.14,0,42.14,General Provisions (Food),Grocery stores
Buckinghamshire Council ,31.05.2023,23.05.2023,Children's Services,artnerships - Children's Services,TRAINLINE.COM,171.71,0,171.71,Staff Travelling Expenses,Passenger railways
Buckinghamshire Council ,31.05.2023,23.05.2023,Children's Services,Education & Childrens Services - CS Dir,AMZNMKTPLACE,6.59,0,6.59,Other Equipment and Materials,Miscellaneous retail
Buckinghamshire Council ,31.05.2023,23.05.2023,Children's Services,Education & Childrens Services - CS Dir,AMZNMKTPLACE,15.16,0,15.16,Other Equipment and Materials,Miscellaneous retail
Buckinghamshire Council ,31.05.2023,23.05.2023,Children's Services,Education & Childrens Services - CS Dir,AMZNMKTPLACE,12.17,0,12.17,Other Equipment and Materials,Miscellaneous retail
Buckinghamshire Council ,31.05.2023,23.05.2023,"Planning, Growth & Sustainability",Partnership Climate Change & Envir - PGS,MYQRCODE.COM,179.4,0,179.4,Computer Consumables,Computer software stores
Buckinghamshire Council ,31.05.2023,23.05.2023,Resources,AH&R - Res Dir,GMO GLOBALSIGN LIM,805.2,0,805.2,Annual Licence (IT),Computer network information services
Buckinghamshire Council ,31.05.2023,23.05.2023,Children's Services,Education & Childrens Services - CS Dir,AYLESBURY SSTP,11.5,0,11.5,Staff Travelling Expenses,Passenger railways
Buckinghamshire Council ,31.05.2023,23.05.2023,Children's Services,Education & Childrens Services - CS Dir,STUDENT ROOST,750,0,750,Leaving Care - Higher Education Supp,Estate Agents & Property Management
Buckinghamshire Council ,31.05.2023,23.05.2023,Children's Services,Education & Childrens Services - CS Dir,BOUNDS TAXIS,463.4,0,463.4,Sec 20/31: Transport,Taxicabs & limousines
Buckinghamshire Council ,31.05.2023,23.05.2023,Children's Services,Education & Childrens Services - CS Dir,GEN REGISTER OFFICE,14,0,14,Sec 20/31: Specialist Services,Government services
Buckinghamshire Council ,31.05.2023,23.05.2023,Deputy Chief Executive,Communities - DCE,COSTA IVER,4.05,0,4.05,Subsistence,Fast food restaurants
Buckinghamshire Council ,31.05.2023,23.05.2023,"Planning, Growth & Sustainability",Planning & Regeneration - PGS,TRAINLINE,16.5,0,16.5,Staff Travelling Expenses,Passenger railways
Buckinghamshire Council ,31.05.2023,23.05.2023,Resources,AH&R - Res Dir,LINKEDIN ADS 9068753634,24.22,0,24.22,Permanent Recruitment Costs,Advertising services
Buckinghamshire Council ,31.05.2023,23.05.2023,Deputy Chief Executive,AH&R- DCE Dir,TRAVELODGE GB0000,166.21,0,166.21,"Courses, Conference and Seminar Fees",Travelodge
Buckinghamshire Council ,31.05.2023,23.05.2023,Children's Services,Education & Childrens Services - CS Dir,WWW.ARGOS.CO.UK,179.98,0,179.98,IT Equipment Purchase,Department stores
Buckinghamshire Council ,31.05.2023,23.05.2023,Resources,AH&R - Res Dir,TEAMGANTT,48.94,0,48.94,Computer Software Licences & Purchase,"Computers, peripherals & software"
Buckinghamshire Council ,31.05.2023,23.05.2023,Children's Services,Education & Childrens Services - CS Dir,TESCO STORES 2020,10.75,0,10.75,Activities Programme,Grocery stores
Buckinghamshire Council ,31.05.2023,23.05.2023,Communities,Climate Change & Environment - Community,GSF CAR PARTS,16.15,0,16.15,Repair & Maint of Vehicles & Plant,Motor vehicle supplies & parts
Buckinghamshire Council ,31.05.2023,23.05.2023,Children's Services,Education & Childrens Services - CS Dir,AMZNMKTPLACE,32.98,0,32.98,Consumable Supplies,Miscellaneous retail
Buckinghamshire Council ,31.05.2023,23.05.2023,Children's Services,Education & Childrens Services - CS Dir,AMZNMKTPLACE,362.71,0,362.71,Consumable Supplies,Miscellaneous retail
Buckinghamshire Council ,31.05.2023,23.05.2023,Children's Services,Education & Childrens Services - CS Dir,MARKS&SPENCER PLC SF,143.5,0,143.5,Consumable Supplies,Grocery stores
Buckinghamshire Council ,31.05.2023,23.05.2023,Communities,Transport - Communities Dir,AMZNMKTPLACE,44.89,0,44.89,Protective Clothing & Uniforms,Miscellaneous retail
Buckinghamshire Council ,31.05.2023,23.05.2023,Children's Services,Education & Childrens Services - CS Dir,THE OXFORDSHIRE TAXI COMP,585,0,585,Sec 20/31: Transport,Taxicabs & limousines
Buckinghamshire Council ,31.05.2023,23.05.2023,Adults and Health,Health & Wellbeing - Adults & Health Dir,AMZNMKTPLACE,282.5,56.5,339,Other General Office Expenses,Miscellaneous retail
Buckinghamshire Council ,31.05.2023,23.05.2023,Adults and Health,Health & Wellbeing - Adults & Health Dir,AMZ*THE LITTLE BRAND,-53.29,-10.66,-63.95,Other General Office Expenses,Miscellaneous retail
Buckinghamshire Council ,31.05.2023,23.05.2023,Children's Services,Education & Childrens Services - CS Dir,FREEDOM PROGRAMME LIMITED,12,0,12,Sec 17: Financial Assistance One Off,Schools
Buckinghamshire Council ,31.05.2023,23.05.2023,Adults and Health,Health & Wellbeing - Adults & Health Dir,SAINSBURYS S/MKTS,71.1,0,71.1,General Provisions (Food),Grocery stores
Buckinghamshire Council ,31.05.2023,23.05.2023,Children's Services,Education & Childrens Services - CS Dir,HAVEN HOLIDAYS,969,0,969,Activities & General Recreation,Trailer parks & camp sites
Buckinghamshire Council ,31.05.2023,23.05.2023,Children's Services,Education & Childrens Services - CS Dir,HAVEN HOLIDAYS,969,0,969,Activities & General Recreation,Trailer parks & camp sites
Buckinghamshire Council ,31.05.2023,23.05.2023,Children's Services,Education & Childrens Services - CS Dir,TRAINLINE,29.65,0,29.65,Sec 20/31: Transport,Passenger railways
Buckinghamshire Council ,31.05.2023,23.05.2023,Children's Services,Education & Childrens Services - CS Dir,TRAINLINE,29.65,0,29.65,Sec 20/31: Transport,Passenger railways
Buckinghamshire Council ,31.05.2023,23.05.2023,Children's Services,Education & Childrens Services - CS Dir,TRAINLINE,85.1,0,85.1,Sec 20/31: Supp for Contact,Passenger railways
Buckinghamshire Council ,31.05.2023,23.05.2023,Children's Services,Education & Childrens Services - CS Dir,TRAVELODGE GB0862,13,0,13,Sec 17: Accommodation,Travelodge
Buckinghamshire Council ,31.05.2023,23.05.2023,"Planning, Growth & Sustainability",AH&R - PGS Dir,B & Q 1305,11.5,0,11.5,General Repairs & Maintenance,Home supply warehouse stores
Buckinghamshire Council ,31.05.2023,22.05.2023,Deputy Chief Executive,Communities - DCE,WWW.ARGOS.CO.UK,60.37,12.08,72.45,Other Personal Needs,Department stores
Buckinghamshire Council ,31.05.2023,22.05.2023,Deputy Chief Executive,Communities - DCE,AO RETAIL LIMITED,315.83,63.17,379,Other Personal Needs,Household appliance stores
Buckinghamshire Council ,31.05.2023,22.05.2023,Deputy Chief Executive,Communities - DCE,AO RETAIL LIMITED,190.83,38.17,229,Other Personal Needs,Household appliance stores
Buckinghamshire Council ,31.05.2023,22.05.2023,Children's Services,Education & Childrens Services - CS Dir,UK CARS (HIGH WYCOMBE) LT,"1,000.00",200,"1,200.00",Sec 20/31: Transport,Taxicabs & limousines
Buckinghamshire Council ,31.05.2023,22.05.2023,Children's Services,Education & Childrens Services - CS Dir,ODEON AYLESBURY,40.5,0,40.5,Activities & General Recreation,Cinemas
Buckinghamshire Council ,31.05.2023,22.05.2023,Children's Services,Education & Childrens Services - CS Dir,COSTCO WHOLESALE #117,198.74,0,198.74,General Provisions (Food),Buying & shopping services/clubs
Buckinghamshire Council ,31.05.2023,22.05.2023,"Planning, Growth & Sustainability",Planning & Regeneration - PGS,AMZNMKTPLACE,30.98,0,30.98,Stationery & Office Supplies,Miscellaneous retail
Buckinghamshire Council ,31.05.2023,22.05.2023,Children's Services,Education & Childrens Services - CS Dir,CURRYS BUSINESS,743.25,148.65,891.9,Computer Consumables,Computer software stores
Buckinghamshire Council ,31.05.2023,22.05.2023,"Planning, Growth & Sustainability",Housing & Homelessness & Regulatory PGS,LAND REGISTRY ECOM CCC,3,0,3,Homelessness,Government services
Buckinghamshire Council ,31.05.2023,22.05.2023,Resources,AH&R - Res Dir,GEN REGISTER OFFICE,14,0,14,Miscellaneous (Other)  Expenses,Government services
Buckinghamshire Council ,31.05.2023,22.05.2023,Resources,AH&R - Res Dir,ROYAL MAIL GROUP LTD,11.65,0,11.65,General Postage,Postal services
Buckinghamshire Council ,31.05.2023,22.05.2023,Adults and Health,Health & Wellbeing - Adults & Health Dir,TESCO STORES 5135,143.41,0,143.41,General Provisions (Food),Grocery stores
Buckinghamshire Council ,31.05.2023,22.05.2023,Children's Services,Education & Childrens Services - CS Dir,ARE YOU OWED MONEY LTD,176.72,0,176.72,Staff Advertising,Financial institutions
Buckinghamshire Council ,31.05.2023,22.05.2023,Children's Services,Education & Childrens Services - CS Dir,ST JOHN AMBULANCE,636,0,636,National Advertising - Teaching Staff,Charitable organisations
Buckinghamshire Council ,31.05.2023,22.05.2023,Communities,Housing & Homelessness & Regulatory Comm,AMZNMKTPLACE,17.49,3.5,48.97,Printing & Stationery,Miscellaneous retail
Buckinghamshire Council ,31.05.2023,22.05.2023,Communities,Housing & Homelessness & Regulatory Comm,AMZNMKTPLACE,23.3,4.66,27.96,Printing & Stationery,Miscellaneous retail
Buckinghamshire Council ,31.05.2023,22.05.2023,Communities,Housing & Homelessness & Regulatory Comm,AMZNMKTPLACE,0.02,0,0.02,Printing & Stationery,Miscellaneous retail
Buckinghamshire Council ,31.05.2023,22.05.2023,"Planning, Growth & Sustainability",AH&R - PGS Dir,TOOLSTATION LTD,32.66,0,32.66,General Repairs & Maintenance,Timber & building supplies
Buckinghamshire Council ,31.05.2023,22.05.2023,Children's Services,Education & Childrens Services - CS Dir,AMAZON.CO.UK,19.99,0,19.99,Stationery & Office Supplies,Direct sales companies
Buckinghamshire Council ,31.05.2023,22.05.2023,Children's Services,Education & Childrens Services - CS Dir,AMZNMKTPLACE,91.57,0,91.57,"Books, Records, Films & Oth Publications",Miscellaneous retail
Buckinghamshire Council ,31.05.2023,22.05.2023,Children's Services,Education & Childrens Services - CS Dir,TAXIPAY,130,0,130,Sec 20/31: Financial Assistance,Taxicabs & limousines
Buckinghamshire Council ,31.05.2023,22.05.2023,Children's Services,Education & Childrens Services - CS Dir,CPD ONLINE COLLEGE,96,0,96,Course Fees & Post Entry Training,Schools
Buckinghamshire Council ,31.05.2023,22.05.2023,"Planning, Growth & Sustainability",Partnership Climate Change & Envir - PGS,THE LION,286,0,286,Subsistence,"Bars, taverns, pubs & nightclubs"
Buckinghamshire Council ,31.05.2023,22.05.2023,"Planning, Growth & Sustainability",Partnership Climate Change & Envir - PGS,THE LION,11.3,0,11.3,Subsistence,"Bars, taverns, pubs & nightclubs"
Buckinghamshire Council ,31.05.2023,22.05.2023,"Planning, Growth & Sustainability",Climate Change & Environment - PGS,AMZNMKTPLACE,79.8,15.96,95.76,Equipment,Miscellaneous retail
Buckinghamshire Council ,31.05.2023,22.05.2023,Children's Services,Education & Childrens Services - CS Dir,SAINSBURY S S/MKTS,12.35,0,12.35,Activities & General Recreation,Grocery stores
Buckinghamshire Council ,31.05.2023,22.05.2023,Children's Services,Education & Childrens Services - CS Dir,WWW.ARGOS.CO.UK,20.45,0,20.45,Supply of consultancy services,Department stores
Buckinghamshire Council ,31.05.2023,22.05.2023,Children's Services,Education & Childrens Services - CS Dir,ASDA  STORES 4396,7.35,0,7.35,Equipment for Training and Mats for Ins.,Grocery stores
Buckinghamshire Council ,31.05.2023,22.05.2023,Deputy Chief Executive,Leader - DCE,AMZNMKTPLACE,59.98,0,59.98,Advertising,Miscellaneous retail
Buckinghamshire Council ,31.05.2023,22.05.2023,"Planning, Growth & Sustainability",AH&R - PGS Dir,VOUCHER EXPRESS,50,0,50,Long Service Awards,Misc business services
Buckinghamshire Council ,31.05.2023,22.05.2023,"Planning, Growth & Sustainability",AH&R - PGS Dir,VOUCHER EXPRESS,250,0,250,Long Service Awards,Misc business services
Buckinghamshire Council ,31.05.2023,22.05.2023,Children's Services,Education & Childrens Services - CS Dir,ONWARD TRAVEL SOLUTIONS,33,0,33,Staff Travelling Expenses,Taxicabs & limousines
Buckinghamshire Council ,31.05.2023,22.05.2023,Children's Services,Education & Childrens Services - CS Dir,WWW.ARGOS.CO.UK,58.95,0,58.95,Leaving Care - Grants for Care Leavers,Department stores
Buckinghamshire Council ,31.05.2023,22.05.2023,Children's Services,Education & Childrens Services - CS Dir,BOUNDS TAXIS,66.2,0,66.2,Sec 20/31: Transport,Taxicabs & limousines
Buckinghamshire Council ,31.05.2023,22.05.2023,Children's Services,Education & Childrens Services - CS Dir,TAXIPAY,20,0,20,Sec 20/31: Transport,Taxicabs & limousines
Buckinghamshire Council ,31.05.2023,22.05.2023,Deputy Chief Executive,Communities - DCE,TESCO STORES 2038,24,0,24,General Provisions (Food),Grocery stores
Buckinghamshire Council ,31.05.2023,22.05.2023,Communities,ommunities - Trust Accounts,WEXHAM MOWER SVCS,46.8,0,46.8,Repair & Maint of Vehicles & Plant,Lawn & garden supply/nursery
Buckinghamshire Council ,31.05.2023,22.05.2023,"Planning, Growth & Sustainability",Housing & Homelessness & Regulatory PGS,AMZNMKTPLACE,239.8,0,239.8,Furniture,Miscellaneous retail
Buckinghamshire Council ,31.05.2023,22.05.2023,Children's Services,Education & Childrens Services - CS Dir,TRAVELODGE GB0862,6.5,0,6.5,Sec 17: Accommodation,Travelodge
Buckinghamshire Council ,31.05.2023,22.05.2023,Children's Services,Education & Childrens Services - CS Dir,TRAVELODGE GB0862,6.5,0,6.5,Sec 17: Accommodation,Travelodge
Buckinghamshire Council ,31.05.2023,22.05.2023,"Planning, Growth & Sustainability",Housing & Homelessness & Regulatory PGS,TRAVELODGE GB0000,333.5,0,333.5,Bed & Breakfast,Travelodge
Buckinghamshire Council ,31.05.2023,22.05.2023,Communities,Housing & Homelessness & Regulatory PGS,CHARTERED INSTITUTE OF EN,99,0,99,"Courses, Conference and Seminar Fees",Charitable organisations
Buckinghamshire Council ,31.05.2023,22.05.2023,Communities,Climate Change & Environment - Community,PERRYS AYLESBURY DACIA,68.86,0,68.86,Repair & Maint of Vehicles & Plant,Automobile dealers - new & used
Buckinghamshire Council ,31.05.2023,22.05.2023,Communities,Climate Change & Environment - Community,GSF CAR PARTS,20.2,0,20.2,Repair & Maint of Vehicles & Plant,Motor vehicle supplies & parts
Buckinghamshire Council ,31.05.2023,22.05.2023,Adults and Health,Health & Wellbeing - Adults & Health Dir,TESCO STORES 5135,98.99,0,98.99,General Provisions (Food),Grocery stores
Buckinghamshire Council ,31.05.2023,22.05.2023,Adults and Health,Health & Wellbeing - Adults & Health Dir,AMZNMKTPLACE,155.79,0,155.79,Activities & General Recreation,Miscellaneous retail
Buckinghamshire Council ,31.05.2023,22.05.2023,Children's Services,Education & Childrens Services - CS Dir,AMAZON.CO.UK,6.01,0,6.01,Stationery & Office Supplies,Direct sales companies
Buckinghamshire Council ,31.05.2023,22.05.2023,Communities,Transport - Communities Dir,AMZNMKTPLACE,18.56,0,18.56,Materials,Miscellaneous retail
Buckinghamshire Council ,31.05.2023,22.05.2023,Communities,Transport - Communities Dir,AMZNMKTPLACE,126.98,0,126.98,Protective Clothing & Uniforms,Miscellaneous retail
Buckinghamshire Council ,31.05.2023,22.05.2023,Adults and Health,Health & Wellbeing - Adults & Health Dir,ONE4ALL,256.5,0,256.5,Other Employees Expenses,Department stores
Buckinghamshire Council ,31.05.2023,22.05.2023,Adults and Health,Health & Wellbeing - Adults & Health Dir,TRAVELODGE GB0000,618.03,0,618.03,Other Short Term Support,Travelodge
Buckinghamshire Council ,31.05.2023,22.05.2023,Children's Services,Education & Childrens Services - CS Dir,TRAINLINE,55.1,0,55.1,Sec 20/31: Financial Assistance,Passenger railways
Buckinghamshire Council ,31.05.2023,21.05.2023,Children's Services,Education & Childrens Services - CS Dir,AMZNMKTPLACE,13.99,0,13.99,Cleaning & Domestic Equipment,Miscellaneous retail
Buckinghamshire Council ,31.05.2023,21.05.2023,Children's Services,Education & Childrens Services - CS Dir,AMAZON.CO.UK,77.97,0,77.97,Cleaning & Domestic Equipment,Direct sales companies
Buckinghamshire Council ,31.05.2023,21.05.2023,Children's Services,Education & Childrens Services - CS Dir,AMZNMKTPLACE,9.99,0,9.99,Cleaning & Domestic Equipment,Miscellaneous retail
Buckinghamshire Council ,31.05.2023,21.05.2023,Children's Services,Education & Childrens Services - CS Dir,AMZNMKTPLACE,6.99,0,6.99,Cleaning & Domestic Equipment,Miscellaneous retail
Buckinghamshire Council ,31.05.2023,21.05.2023,Children's Services,Education & Childrens Services - CS Dir,AMAZON.CO.UK,28.23,0,28.23,"Books, Records, Films & Oth Publications",Direct sales companies
Buckinghamshire Council ,31.05.2023,21.05.2023,Adults and Health,Health & Wellbeing - Adults & Health Dir,AMZNMKTPLACE,113.6,0,113.6,Activities & General Recreation,Miscellaneous retail
Buckinghamshire Council ,31.05.2023,21.05.2023,Communities,Climate Change & Environment - Community,PAYPAL,90,0,90,Advertising,Advertising services
Buckinghamshire Council ,31.05.2023,21.05.2023,Resources,AH&R - Res Dir,PAYPAL,8.99,0,8.99,IT - Computer Network Charges,Computer network information services
Buckinghamshire Council ,31.05.2023,21.05.2023,Resources,AH&R - Res Dir,PAYPAL,14.39,0,14.39,IT - Computer Network Charges,Computer network information services
Buckinghamshire Council ,31.05.2023,21.05.2023,Children's Services,Education & Childrens Services - CS Dir,TRAVELODGE GB0862,13,0,13,Sec 17: Accommodation,Travelodge
Buckinghamshire Council ,31.05.2023,21.05.2023,"Planning, Growth & Sustainability",Housing & Homelessness & Regulatory PGS,AMZNMKTPLACE,69.99,0,69.99,Furniture,Miscellaneous retail
Buckinghamshire Council ,31.05.2023,21.05.2023,Children's Services,Education & Childrens Services - CS Dir,B&M 426 - HS AYLESBURY,58,0,58,Activities & General Recreation,Misc. general merchandise
Buckinghamshire Council ,31.05.2023,21.05.2023,Children's Services,Education & Childrens Services - CS Dir,ICELAND FOODS LTD 1748,60,0,60,Activities & General Recreation,Grocery stores
Buckinghamshire Council ,31.05.2023,21.05.2023,Children's Services,Education & Childrens Services - CS Dir,SAINSBURY S S/MKTS,7,0,7,Consumable Supplies,Grocery stores
Buckinghamshire Council ,31.05.2023,21.05.2023,Adults and Health,Health & Wellbeing - Adults & Health Dir,AMZNMKTPLACE,15.8,3.16,18.96,Security & Safety Supplies & Equipment,Miscellaneous retail
Buckinghamshire Council ,31.05.2023,21.05.2023,Adults and Health,Health & Wellbeing - Adults & Health Dir,AMZNMKTPLACE,0.02,0,0.02,Security & Safety Supplies & Equipment,Miscellaneous retail
Buckinghamshire Council ,31.05.2023,21.05.2023,Adults and Health,Health & Wellbeing - Adults & Health Dir,AMZNMKTPLACE,62.36,0,62.36,Other Personal Needs,Miscellaneous retail
Buckinghamshire Council ,31.05.2023,21.05.2023,Communities,Transport - Communities Dir,AMZNMKTPLACE,141.76,0,141.76,Protective Clothing & Uniforms,Miscellaneous retail
Buckinghamshire Council ,31.05.2023,21.05.2023,Adults and Health,Health & Wellbeing - Adults & Health Dir,AMZNMKTPLACE,60.26,0,60.26,Activities & General Recreation,Miscellaneous retail
Buckinghamshire Council ,31.05.2023,20.05.2023,Children's Services,Education & Childrens Services - CS Dir,AMZNMKTPLACE,7.99,0,7.99,Stationery & Office Supplies,Miscellaneous retail
Buckinghamshire Council ,31.05.2023,20.05.2023,Children's Services,Education & Childrens Services - CS Dir,HTTP://SHOP.ICAN.ORG.U,80,0,80,"Books, Records, Films & Oth Publications",Charitable organisations
Buckinghamshire Council ,31.05.2023,20.05.2023,Children's Services,Education & Childrens Services - CS Dir,SCREWFIX DIRECT,-10.9,0,-10.9,Leaving Care  - Financial Assistance,Timber & building supplies
Buckinghamshire Council ,31.05.2023,20.05.2023,Children's Services,Education & Childrens Services - CS Dir,TRAVELODGE GB0862,6.5,0,6.5,Sec 17: Accommodation,Travelodge
Buckinghamshire Council ,31.05.2023,20.05.2023,Children's Services,Education & Childrens Services - CS Dir,TRAVELODGE GB0862,6.5,0,6.5,Sec 17: Accommodation,Travelodge
Buckinghamshire Council ,31.05.2023,20.05.2023,Communities,Culture & Leisure - Communities Dir,SAFETY FIRST,78.25,15.65,93.9,Health & Safety Supplies & Services,Men & womens clothing shops
Buckinghamshire Council ,31.05.2023,20.05.2023,Communities,Transport - Communities Dir,EBAY O*03-10082-17818,26.95,0,26.95,Materials,Department stores
Buckinghamshire Council ,31.05.2023,19.05.2023,Communities,artnerships - Communities,AMZNMKTPLACE,56.3,0,56.3,Miscellaneous (Other)  Expenses,Miscellaneous retail
Buckinghamshire Council ,31.05.2023,19.05.2023,"Planning, Growth & Sustainability",Housing & Homelessness & Regulatory PGS,ARGOS LTD,-360,0,-360,General Allowances,Discount stores
Buckinghamshire Council ,31.05.2023,19.05.2023,Children's Services,Education & Childrens Services - CS Dir,GEN REGISTER OFFICE,28,0,28,Sec 17: Specialist Services,Government services
Buckinghamshire Council ,31.05.2023,19.05.2023,Children's Services,Education & Childrens Services - CS Dir,COSTA COFFEE 43011096,5.65,0,5.65,"Exp of School, Club & College Activities",Fast food restaurants
Buckinghamshire Council ,31.05.2023,19.05.2023,Children's Services,Education & Childrens Services - CS Dir,ODEON AYLESBURY,4.4,0,4.4,Miscellaneous (Other)  Expenses,Cinemas
Buckinghamshire Council ,31.05.2023,19.05.2023,Deputy Chief Executive,Communities - DCE,AO RETAIL LIMITED,415.83,83.17,499,Other Personal Needs,Household appliance stores
Buckinghamshire Council ,31.05.2023,19.05.2023,Deputy Chief Executive,Communities - DCE,WWW.ARGOS.CO.UK,-98,0,-98,Other Personal Needs,Department stores
Buckinghamshire Council ,31.05.2023,19.05.2023,"Planning, Growth & Sustainability",Planning & Regeneration - PGS,INTERFLORA BRITISH UNI,47,0,47,Miscellaneous (Other)  Expenses,Florists
Buckinghamshire Council ,31.05.2023,19.05.2023,Communities,Housing & Homelessness & Regulatory PGS,ROYAL MAIL GROUP LTD,11.45,0,11.45,Burial Costs,Postal services
Buckinghamshire Council ,31.05.2023,19.05.2023,"Planning, Growth & Sustainability",AH&R - PGS Dir,LONDIS,8.1,0,8.1,General Provisions (Food),Sweets & confectionary
Buckinghamshire Council ,31.05.2023,19.05.2023,Deputy Chief Executive,Communities - DCE,AO RETAIL LIMITED,60,0,60,Other Personal Needs,Household appliance stores
Buckinghamshire Council ,31.05.2023,19.05.2023,Children's Services,Education & Childrens Services - CS Dir,TESCO GIFT CARD,50,0,50,Sec 17: Financial Assistance One Off,Grocery stores
Buckinghamshire Council ,31.05.2023,19.05.2023,"Planning, Growth & Sustainability",Housing & Homelessness & Regulatory PGS,LAND REGISTRY ECOM CCC,3,0,3,Homelessness,Government services
Buckinghamshire Council ,31.05.2023,19.05.2023,Communities,Housing & Homelessness & Regulatory Comm,WICKES CHESHAM,32.55,0,32.55,Maintenance of Grounds,Timber & building supplies
Buckinghamshire Council ,31.05.2023,19.05.2023,Communities,Housing & Homelessness & Regulatory Comm,CHENIES GARDEN CENTRE,20,0,20,Maintenance of Grounds,Lawn & garden supply/nursery
Buckinghamshire Council ,31.05.2023,19.05.2023,Communities,Housing & Homelessness & Regulatory Comm,ZETTLE_*SHANTOCK NURSERIE,500,0,500,Maintenance of Grounds,Miscellaneous retail
Buckinghamshire Council ,31.05.2023,19.05.2023,Communities,Housing & Homelessness & Regulatory Comm,ZETTLE_*SHANTOCK NURSE,717.6,0,717.6,Maintenance of Grounds,Miscellaneous retail
Buckinghamshire Council ,31.05.2023,19.05.2023,Communities,Housing & Homelessness & Regulatory Comm,ZETTLE_*SHANTOCK NURSERIE,59,0,59,Maintenance of Grounds,Miscellaneous retail
Buckinghamshire Council ,31.05.2023,19.05.2023,Communities,Housing & Homelessness & Regulatory Comm,ZETTLE_*SHANTOCK NURSERIE,712.4,0,712.4,Maintenance of Grounds,Miscellaneous retail
Buckinghamshire Council ,31.05.2023,19.05.2023,Children's Services,Education & Childrens Services - CS Dir,STARBUCKS AYLESBURY SAINS,15.25,3.05,31.05,Subsistence,Fast food restaurants
Buckinghamshire Council ,31.05.2023,19.05.2023,Children's Services,Education & Childrens Services - CS Dir,STARBUCKS AYLESBURY SAINS,19.5,3.9,36.9,Subsistence,Fast food restaurants
Buckinghamshire Council ,31.05.2023,19.05.2023,Children's Services,Education & Childrens Services - CS Dir,STARBUCKS AYLESBURY SAINS,9.65,1.93,11.58,Subsistence,Fast food restaurants
Buckinghamshire Council ,31.05.2023,19.05.2023,Children's Services,Education & Childrens Services - CS Dir,STARBUCKS AYLESBURY SAINS,0.02,0,0.02,Subsistence,Fast food restaurants
Buckinghamshire Council ,31.05.2023,19.05.2023,Children's Services,Education & Childrens Services - CS Dir,STARBUCKS AYLESBURY SAINS,12.75,0,12.75,Subsistence,Fast food restaurants
Buckinghamshire Council ,31.05.2023,19.05.2023,Children's Services,Education & Childrens Services - CS Dir,STARBUCKS AYLESBURY SAINS,13.5,0,13.5,Subsistence,Fast food restaurants
Buckinghamshire Council ,31.05.2023,19.05.2023,Children's Services,Education & Childrens Services - CS Dir,STARBUCKS AYLESBURY SAINS,6.15,0,6.15,Subsistence,Fast food restaurants
Buckinghamshire Council ,31.05.2023,19.05.2023,Communities,Culture & Leisure - Communities Dir,TOOLSTATION UK,-20.8,-4.16,-24.96,Protective Clothing & Uniforms,Hardware stores
Buckinghamshire Council ,31.05.2023,19.05.2023,Communities,Culture & Leisure - Communities Dir,TOOLSTATION UK,-0.02,0,-0.02,Protective Clothing & Uniforms,Hardware stores
Buckinghamshire Council ,31.05.2023,19.05.2023,Deputy Chief Executive,AH&R- DCE Dir,AMZ*AMAZON EU,-66.95,0,-66.95,Stationery & Office Supplies,Miscellaneous retail
Buckinghamshire Council ,31.05.2023,19.05.2023,Children's Services,Education & Childrens Services - CS Dir,AMZNMKTPLACE,69.98,0,69.98,"Books, Records, Films & Oth Publications",Miscellaneous retail
Buckinghamshire Council ,31.05.2023,19.05.2023,Adults and Health,Health & Wellbeing - Adults & Health Dir,PREMIER INN,394,0,394,Other Short Term Support,Premier Inn
Buckinghamshire Council ,31.05.2023,19.05.2023,Adults and Health,Health & Wellbeing - Adults & Health Dir,PREMIER INN,381,0,381,Other Short Term Support,Premier Inn
Buckinghamshire Council ,31.05.2023,19.05.2023,"Planning, Growth & Sustainability",AH&R - PGS Dir,ASDA SUPERSTORE,15.5,0,15.5,General Provisions (Food),Grocery stores
Buckinghamshire Council ,31.05.2023,19.05.2023,Children's Services,Education & Childrens Services - CS Dir,LINKEDIN ADS,76.92,0,76.92,Advertising,Advertising services
Buckinghamshire Council ,31.05.2023,19.05.2023,Communities,Culture & Leisure - Communities Dir,SPRINGBRIDGE DIREC,62,12.4,74.4,"Workshop - Materials,Tools & Equipment",Lawn & garden supply/nursery
Buckinghamshire Council ,31.05.2023,19.05.2023,"Planning, Growth & Sustainability",Housing & Homelessness & Regulatory PGS,AMZNMKTPLACE,203.67,0,203.67,Furniture,Miscellaneous retail
Buckinghamshire Council ,31.05.2023,19.05.2023,Children's Services,Education & Childrens Services - CS Dir,TRAVELODGE GB0862,6.5,0,6.5,Sec 17: Accommodation,Travelodge
Buckinghamshire Council ,31.05.2023,19.05.2023,Children's Services,Education & Childrens Services - CS Dir,TRAVELODGE GB0862,6.5,0,6.5,Sec 17: Accommodation,Travelodge
Buckinghamshire Council ,31.05.2023,19.05.2023,Resources,AH&R - Res Dir,FACEBK *Q84BRMFM72,158.11,0,158.11,Permanent Recruitment Costs,Advertising services
Buckinghamshire Council ,31.05.2023,19.05.2023,"Planning, Growth & Sustainability",Housing & Homelessness & Regulatory PGS,AMZNMKTPLACE,43.99,0,43.99,Furniture,Miscellaneous retail
Buckinghamshire Council ,31.05.2023,19.05.2023,"Planning, Growth & Sustainability",Housing & Homelessness & Regulatory PGS,AMAZON PRIME,8.99,0,8.99,Stationery & Office Supplies,Continuous subscriptions
Buckinghamshire Council ,31.05.2023,19.05.2023,Children's Services,Education & Childrens Services - CS Dir,ARRIVA UK BUS,28.6,0,28.6,Sec 20/31: Supp for Contact,"Buses, charter & tour"
Buckinghamshire Council ,31.05.2023,19.05.2023,Adults and Health,Health & Wellbeing - Adults & Health Dir,WWW.BUCKINGHAMSHIRE.GOV,55,0,55,"Trade Refuse Disposal, Cesspools & Pests",Government services
Buckinghamshire Council ,31.05.2023,19.05.2023,Children's Services,Education & Childrens Services - CS Dir,YELLOW CARS HW LTD,104.15,20.83,124.98,Sec 17: Transport,Taxicabs & limousines
Buckinghamshire Council ,31.05.2023,19.05.2023,Children's Services,Education & Childrens Services - CS Dir,YELLOW CARS HW LTD,0.02,0,0.02,Sec 17: Transport,Taxicabs & limousines
Buckinghamshire Council ,31.05.2023,19.05.2023,Children's Services,Education & Childrens Services - CS Dir,GEN REGISTER OFFICE,-7.5,0,-7.5,Sec 17: Specialist Services,Government services
Buckinghamshire Council ,31.05.2023,18.05.2023,Adults and Health,Health & Wellbeing - Adults & Health Dir,SAINSBURYS S/MKTS,14,0,14,Activities & General Recreation,Grocery stores
Buckinghamshire Council ,31.05.2023,18.05.2023,Children's Services,Education & Childrens Services - CS Dir,TRAINLINE,37.27,0,37.27,Sec 20/31: Supp for Contact,Passenger railways
Buckinghamshire Council ,31.05.2023,18.05.2023,Children's Services,Education & Childrens Services - CS Dir,HEART OF ENGLAND NHS,21,0,21,Sec 20/31: Specialist Services,Medical & health services
Buckinghamshire Council ,31.05.2023,18.05.2023,Communities,Housing & Homelessness & Regulatory PGS,WH SMITH HIGH WYCOMBE,4.4,0,4.4,General Postage,Newspapers / newsagents
Buckinghamshire Council ,31.05.2023,18.05.2023,Communities,Transport - Communities Dir,GWR OXFORD SST,85.3,0,85.3,Staff Travelling Expenses,Passenger railways
Buckinghamshire Council ,31.05.2023,18.05.2023,Children's Services,Education & Childrens Services - CS Dir,PAYPAL,39.99,0,39.99,Project Funding,Misc. home furnishing
Buckinghamshire Council ,31.05.2023,18.05.2023,Deputy Chief Executive,Communities - DCE,WWW.ARGOS.CO.UK,92.45,18.49,110.94,Other Personal Needs,Department stores
Buckinghamshire Council ,31.05.2023,18.05.2023,Deputy Chief Executive,Communities - DCE,WWW.ARGOS.CO.UK,0.01,0,0.01,Other Personal Needs,Department stores
Buckinghamshire Council ,31.05.2023,18.05.2023,Deputy Chief Executive,Communities - DCE,WWW.ARGOS.CO.UK,84.1,16.82,100.92,Other Personal Needs,Department stores
Buckinghamshire Council ,31.05.2023,18.05.2023,Deputy Chief Executive,Communities - DCE,WWW.ARGOS.CO.UK,0.03,0,0.03,Other Personal Needs,Department stores
Buckinghamshire Council ,31.05.2023,18.05.2023,Deputy Chief Executive,Communities - DCE,WWW.ARGOS.CO.UK,173.29,34.66,207.95,Other Personal Needs,Department stores
Buckinghamshire Council ,31.05.2023,18.05.2023,Deputy Chief Executive,Communities - DCE,AO RETAIL LIMITED,743.3,148.66,891.96,Other Personal Needs,Household appliance stores
Buckinghamshire Council ,31.05.2023,18.05.2023,Deputy Chief Executive,Communities - DCE,AO RETAIL LIMITED,0.04,0,0.04,Other Personal Needs,Household appliance stores
Buckinghamshire Council ,31.05.2023,18.05.2023,Deputy Chief Executive,Communities - DCE,AO RETAIL LIMITED,531.65,106.33,637.98,Other Personal Needs,Household appliance stores
Buckinghamshire Council ,31.05.2023,18.05.2023,Deputy Chief Executive,Communities - DCE,AO RETAIL LIMITED,0.02,0,0.02,Other Personal Needs,Household appliance stores
Buckinghamshire Council ,31.05.2023,18.05.2023,Deputy Chief Executive,Communities - DCE,AO RETAIL LIMITED,755.83,151.17,907,Other Personal Needs,Household appliance stores
Buckinghamshire Council ,31.05.2023,18.05.2023,Deputy Chief Executive,Communities - DCE,AO RETAIL LIMITED,485.83,97.17,583,Other Personal Needs,Household appliance stores
Buckinghamshire Council ,31.05.2023,18.05.2023,Deputy Chief Executive,Communities - DCE,AO RETAIL LIMITED,452.45,90.49,542.94,Other Personal Needs,Household appliance stores
Buckinghamshire Council ,31.05.2023,18.05.2023,Deputy Chief Executive,Communities - DCE,AO RETAIL LIMITED,0.06,0,0.06,Other Personal Needs,Household appliance stores
Buckinghamshire Council ,31.05.2023,18.05.2023,Deputy Chief Executive,Communities - DCE,AO RETAIL LIMITED,776.65,155.33,931.98,Other Personal Needs,Household appliance stores
Buckinghamshire Council ,31.05.2023,18.05.2023,Deputy Chief Executive,Communities - DCE,AO RETAIL LIMITED,0.02,0,0.02,Other Personal Needs,Household appliance stores
Buckinghamshire Council ,31.05.2023,18.05.2023,Deputy Chief Executive,Communities - DCE,AO RETAIL LIMITED,-65,0,-65,Other Personal Needs,Household appliance stores
Buckinghamshire Council ,31.05.2023,18.05.2023,Children's Services,Education & Childrens Services - CS Dir,NEALES TAXIS LTD,256.65,51.33,307.98,Sec 20/31: Transport,Taxicabs & limousines
Buckinghamshire Council ,31.05.2023,18.05.2023,Children's Services,Education & Childrens Services - CS Dir,NEALES TAXIS LTD,0.02,0,0.02,Sec 20/31: Transport,Taxicabs & limousines
Buckinghamshire Council ,31.05.2023,18.05.2023,Children's Services,Education & Childrens Services - CS Dir,HOBBYCRAFT,7.5,0,7.5,Other Personal Needs,Art & craft shops
Buckinghamshire Council ,31.05.2023,18.05.2023,Children's Services,Education & Childrens Services - CS Dir,B & Q 1305,23.25,0,23.25,Repair and Maintenance of Equipment,Home supply warehouse stores
Buckinghamshire Council ,31.05.2023,18.05.2023,Children's Services,Education & Childrens Services - CS Dir,THE RANGE,33.48,0,33.48,Repair and Maintenance of Equipment,Department stores
Buckinghamshire Council ,31.05.2023,18.05.2023,Children's Services,Education & Childrens Services - CS Dir,DUNELM LTD,50,0,50,Repair and Maintenance of Equipment,Drapery & upholstery shops
Buckinghamshire Council ,31.05.2023,18.05.2023,Children's Services,Education & Childrens Services - CS Dir,F HINDS,300,0,300,Miscellaneous (Other)  Expenses,Jewellers
Buckinghamshire Council ,31.05.2023,18.05.2023,Communities,Climate Change & Environment - Community,HALFORDS E.COMM,845,0,845,Repair & Maint of Vehicles & Plant,Automotive parts & accessories
Buckinghamshire Council ,31.05.2023,18.05.2023,Deputy Chief Executive,Communities - DCE,AO RETAIL LIMITED,-75,0,-75,Other Personal Needs,Household appliance stores
Buckinghamshire Council ,31.05.2023,18.05.2023,Communities,Culture & Leisure - Communities Dir,HSQE LTD,18,0,18,Course Fees & Post Entry Training,Schools
Buckinghamshire Council ,31.05.2023,18.05.2023,Children's Services,Education & Childrens Services - CS Dir,TRAVELODGE GB0000,"1,035.41",0,"1,035.41",Sec 17: Financial Assistance,Travelodge
Buckinghamshire Council ,31.05.2023,18.05.2023,Communities,artnerships - Communities,TESCO STORES 2038,3.3,0,3.3,Miscellaneous (Other)  Expenses,Grocery stores
Buckinghamshire Council ,31.05.2023,18.05.2023,Deputy Chief Executive,AH&R- DCE Dir,REMOVALS B2U,540,0,540,Other Personal Needs,Transportation services
Buckinghamshire Council ,31.05.2023,18.05.2023,Children's Services,Education & Childrens Services - CS Dir,AMZNMKTPLACE,18.99,0,18.99,Consumable Supplies,Miscellaneous retail
Buckinghamshire Council ,31.05.2023,18.05.2023,Children's Services,Education & Childrens Services - CS Dir,HIGH STREET VOUCHERS,20,0,20,Other Training Expenses,Department stores
Buckinghamshire Council ,31.05.2023,18.05.2023,Children's Services,Education & Childrens Services - CS Dir,HIGH STREET VOUCHERS,20,0,20,Other Training Expenses,Department stores
Buckinghamshire Council ,31.05.2023,18.05.2023,Children's Services,Education & Childrens Services - CS Dir,HIGH STREET VOUCHERS,20,0,20,Other Training Expenses,Department stores
Buckinghamshire Council ,31.05.2023,18.05.2023,Children's Services,Education & Childrens Services - CS Dir,WM MORRISONS STORE,13.1,0,13.1,Stationery & Office Supplies,Grocery stores
Buckinghamshire Council ,31.05.2023,18.05.2023,Children's Services,Education & Childrens Services - CS Dir,WM MORRISONS STORE,1.25,0,1.25,Equipment (including storage),Grocery stores
Buckinghamshire Council ,31.05.2023,18.05.2023,Children's Services,Education & Childrens Services - CS Dir,BUDGETCARS.UK.COM,80,0,80,Sec 17: Financial Assistance,Taxicabs & limousines
Buckinghamshire Council ,31.05.2023,18.05.2023,Children's Services,Education & Childrens Services - CS Dir,ASDA  STORES 4396,17.3,0,17.3,General Provisions (Food),Grocery stores
Buckinghamshire Council ,31.05.2023,18.05.2023,Deputy Chief Executive,AH&R- DCE Dir,VOUCHER EXPRESS,500,0,500,General Allowances,Misc business services
Buckinghamshire Council ,31.05.2023,18.05.2023,Children's Services,Education & Childrens Services - CS Dir,TESCO STORES 2038,6.73,0,6.73,Educational Equipment,Grocery stores
Buckinghamshire Council ,31.05.2023,18.05.2023,Children's Services,Education & Childrens Services - CS Dir,ALDI 110 775,9.14,0,9.14,Educational Equipment,Grocery stores
Buckinghamshire Council ,31.05.2023,18.05.2023,Children's Services,Education & Childrens Services - CS Dir,ODEON AYLESBURY,7,0,7,Miscellaneous (Other)  Expenses,Cinemas
Buckinghamshire Council ,31.05.2023,18.05.2023,Children's Services,Education & Childrens Services - CS Dir,TIMPSON LTD,25,0,25,Consumable Supplies,Miscellaneous retail
Buckinghamshire Council ,31.05.2023,18.05.2023,Adults and Health,Health & Wellbeing - Adults & Health Dir,ASDA SUPERSTORE,21.74,0,21.74,General Provisions (Food),Grocery stores
Buckinghamshire Council ,31.05.2023,18.05.2023,Children's Services,Education & Childrens Services - CS Dir,CURRYS ONLINE,134.98,0,134.98,Leaving Care - Grants for Care Leavers,Electronics shops
Buckinghamshire Council ,31.05.2023,18.05.2023,Children's Services,Education & Childrens Services - CS Dir,AMZNMKTPLACE,341.91,0,341.91,Leaving Care - Grants for Care Leavers,Miscellaneous retail
Buckinghamshire Council ,31.05.2023,18.05.2023,Communities,ommunities - Trust Accounts,COSTCO WHOLESALE #102,14.68,0,14.68,Purchase of Food for Re-sale,Buying & shopping services/clubs
Buckinghamshire Council ,31.05.2023,18.05.2023,Communities,ommunities - Trust Accounts,HOME & INTERIORS,6,0,6,General Repairs & Maintenance,Misc. general merchandise
Buckinghamshire Council ,31.05.2023,18.05.2023,"Planning, Growth & Sustainability",Planning & Regeneration - PGS,TRAINLINE,16.5,0,16.5,Staff Travelling Expenses,Passenger railways
Buckinghamshire Council ,31.05.2023,18.05.2023,"Planning, Growth & Sustainability",Planning & Regeneration - PGS,WH SMITH HIGH WYCOMBE,36.48,0,36.48,Stationery & Office Supplies,Newspapers / newsagents
Buckinghamshire Council ,31.05.2023,18.05.2023,Children's Services,Education & Childrens Services - CS Dir,WOB.COM,8.4,0,8.4,"Books, Records, Films & Oth Publications","Books, periodicals & newspapers"
Buckinghamshire Council ,31.05.2023,18.05.2023,Children's Services,Education & Childrens Services - CS Dir,AELP.ORG.UK,159,31.8,190.8,Training (Inc. Health & Safety Courses),Schools
Buckinghamshire Council ,31.05.2023,18.05.2023,Children's Services,Education & Childrens Services - CS Dir,WWW.NISBETS.COM,275.95,55.19,331.14,Administrative Equipment & Tools,Catalogue sales
Buckinghamshire Council ,31.05.2023,18.05.2023,Children's Services,Education & Childrens Services - CS Dir,WWW.NISBETS.COM,0.02,0,0.02,Administrative Equipment & Tools,Catalogue sales
Buckinghamshire Council ,31.05.2023,18.05.2023,Children's Services,Education & Childrens Services - CS Dir,ONE4ALL,220,0,220,Miscellaneous (Other)  Expenses,Department stores
Buckinghamshire Council ,31.05.2023,18.05.2023,Children's Services,Education & Childrens Services - CS Dir,AELP.ORG.UK,99,19.8,118.8,Training (Inc. Health & Safety Courses),Schools
Buckinghamshire Council ,31.05.2023,18.05.2023,Children's Services,Education & Childrens Services - CS Dir,TEST METER GROUP LTD.,167.45,33.49,200.94,Health & Safety Supplies & Services,Misc commercial machines equipment
Buckinghamshire Council ,31.05.2023,18.05.2023,"Planning, Growth & Sustainability",Housing & Homelessness & Regulatory PGS,FEE2PAYONLINE,2.5,0,2.5,General Postage,Postal services
Buckinghamshire Council ,31.05.2023,18.05.2023,"Planning, Growth & Sustainability",Housing & Homelessness & Regulatory PGS,FEE2PAYONLINE,2.5,0,2.5,General Postage,Postal services
Buckinghamshire Council ,31.05.2023,18.05.2023,Children's Services,Education & Childrens Services - CS Dir,HOLIDAY INN AYLESB,74.9,0,74.9,Activities & General Recreation,"Hotels, motels & resorts"
Buckinghamshire Council ,31.05.2023,18.05.2023,Communities,Climate Change & Environment - Community,WWW.NEXTBASE.COM,854.91,0,854.91,Repair & Maint of Vehicles & Plant,Automotive parts & accessories
Buckinghamshire Council ,31.05.2023,18.05.2023,Children's Services,Education & Childrens Services - CS Dir,HOLIDAY INN AYLESB,10.95,0,10.95,"Courses, Conference and Seminar Fees","Hotels, motels & resorts"
Buckinghamshire Council ,31.05.2023,18.05.2023,Adults and Health,Health & Wellbeing - Adults & Health Dir,AMZNMKTPLACE,22.68,4.54,27.22,Other General Office Expenses,Miscellaneous retail
Buckinghamshire Council ,31.05.2023,18.05.2023,Children's Services,Education & Childrens Services - CS Dir,NEALES TAXIS LTD,300,60,360,Sec 17: Transport,Taxicabs & limousines
Buckinghamshire Council ,31.05.2023,18.05.2023,Deputy Chief Executive,Communities - DCE,PAYPAL,91.65,18.33,109.98,Other Personal Needs,Variety stores
Buckinghamshire Council ,31.05.2023,18.05.2023,Deputy Chief Executive,Communities - DCE,PAYPAL,0.02,0,0.02,Other Personal Needs,Variety stores
Buckinghamshire Council ,31.05.2023,18.05.2023,Deputy Chief Executive,Communities - DCE,PAYPAL,173.29,34.66,207.95,Other Personal Needs,Variety stores
Buckinghamshire Council ,31.05.2023,18.05.2023,"Planning, Growth & Sustainability",Planning & Regeneration - PGS,TFL TRAVEL CH,5.5,0,5.5,Staff Travelling Expenses,Local commuter transport
Buckinghamshire Council ,31.05.2023,18.05.2023,Children's Services,Education & Childrens Services - CS Dir,TRAINLINE,-25.3,0,-25.3,Sec 20/31: Supp for Contact,Passenger railways
Buckinghamshire Council ,31.05.2023,17.05.2023,Deputy Chief Executive,Communities - DCE,PAYPAL,134.95,26.99,161.94,Other Personal Needs,Variety stores
Buckinghamshire Council ,31.05.2023,17.05.2023,Deputy Chief Executive,Communities - DCE,PAYPAL,0.06,0,0.06,Other Personal Needs,Variety stores
Buckinghamshire Council ,31.05.2023,17.05.2023,Deputy Chief Executive,Communities - DCE,PAYPAL,227.45,45.49,272.94,Other Personal Needs,Variety stores
Buckinghamshire Council ,31.05.2023,17.05.2023,Deputy Chief Executive,Communities - DCE,PAYPAL,0.01,0,0.01,Other Personal Needs,Variety stores
Buckinghamshire Council ,31.05.2023,17.05.2023,Deputy Chief Executive,Communities - DCE,PAYPAL,173.29,34.66,207.95,Other Personal Needs,Variety stores
Buckinghamshire Council ,31.05.2023,17.05.2023,Deputy Chief Executive,Communities - DCE,PAYPAL,308.33,61.67,370,Other Personal Needs,Variety stores
Buckinghamshire Council ,31.05.2023,17.05.2023,Children's Services,Education & Childrens Services - CS Dir,CANVA* 03788-19265189,22.99,0,22.99,Marketing,"Commercial photo, art & graphic"
Buckinghamshire Council ,31.05.2023,17.05.2023,Resources,AH&R - Res Dir,RADISSON BLU EDWARDIAN MA,"1,025.65",205.13,"1,230.78","Courses, Conference and Seminar Fees","Hotels, motels & resorts"
Buckinghamshire Council ,31.05.2023,17.05.2023,Resources,AH&R - Res Dir,RADISSON BLU EDWARDIAN MA,0.02,0,0.02,"Courses, Conference and Seminar Fees","Hotels, motels & resorts"
Buckinghamshire Council ,31.05.2023,17.05.2023,Resources,AH&R - Res Dir,RADISSON BLU EDWARDIAN MA,4.8,0,4.8,"Courses, Conference and Seminar Fees","Hotels, motels & resorts"
Buckinghamshire Council ,31.05.2023,17.05.2023,Children's Services,Education & Childrens Services - CS Dir,AMZNMKTPLACE,27.98,0,27.98,Leaving Care - Grants for Care Leavers,Miscellaneous retail
Buckinghamshire Council ,31.05.2023,17.05.2023,Children's Services,Education & Childrens Services - CS Dir,AMZNMKTPLACE,5.99,0,5.99,Other Personal Needs,Miscellaneous retail
Buckinghamshire Council ,31.05.2023,17.05.2023,Adults and Health,Health & Wellbeing - Adults & Health Dir,SAINSBURYS S/MKTS,20.43,0,20.43,General Provisions (Food),Grocery stores
Buckinghamshire Council ,31.05.2023,17.05.2023,Adults and Health,Health & Wellbeing - Adults & Health Dir,SP DECHOKER EUROPE,261.59,0,261.59,Health & Safety Supplies & Services,"Laboratory, medical & hospital equipment"
Buckinghamshire Council ,31.05.2023,17.05.2023,"Planning, Growth & Sustainability",AH&R - PGS Dir,INDICATOR - FL MEMO,372,0,372,"Books, Records, Films & Oth Publications","Books, periodicals & newspapers"
Buckinghamshire Council ,31.05.2023,17.05.2023,Children's Services,Education & Childrens Services - CS Dir,DOMINO S PIZZA,39.95,0,39.95,"Exp of School, Club & College Activities",Restaurants
Buckinghamshire Council ,31.05.2023,17.05.2023,Deputy Chief Executive,Communities - DCE,WWW.ARGOS.CO.UK,277.45,55.49,332.94,Other Personal Needs,Department stores
Buckinghamshire Council ,31.05.2023,17.05.2023,Deputy Chief Executive,Communities - DCE,WWW.ARGOS.CO.UK,0.01,0,0.01,Other Personal Needs,Department stores
Buckinghamshire Council ,31.05.2023,17.05.2023,Deputy Chief Executive,Communities - DCE,AO RETAIL LIMITED,789.15,157.83,946.98,Other Personal Needs,Household appliance stores
Buckinghamshire Council ,31.05.2023,17.05.2023,Deputy Chief Executive,Communities - DCE,AO RETAIL LIMITED,0.02,0,0.02,Other Personal Needs,Household appliance stores
Buckinghamshire Council ,31.05.2023,17.05.2023,Deputy Chief Executive,Communities - DCE,AO RETAIL LIMITED,768.3,153.66,921.96,Other Personal Needs,Household appliance stores
Buckinghamshire Council ,31.05.2023,17.05.2023,Deputy Chief Executive,Communities - DCE,AO RETAIL LIMITED,0.04,0,0.04,Other Personal Needs,Household appliance stores
Buckinghamshire Council ,31.05.2023,17.05.2023,Deputy Chief Executive,Communities - DCE,AO RETAIL LIMITED,-20,0,-20,Other Personal Needs,Household appliance stores
Buckinghamshire Council ,31.05.2023,17.05.2023,Communities,Climate Change & Environment - Community,WWW QDR SOLICITORS CO UK,160.9,0,160.9,Professional Services (non curriculum) - External,Legal services
Buckinghamshire Council ,31.05.2023,17.05.2023,"Planning, Growth & Sustainability",AH&R - PGS Dir,PROMAC LOCKSMITHS,26,0,26,Other Equipment and Materials,Hardware stores
Buckinghamshire Council ,31.05.2023,17.05.2023,"Planning, Growth & Sustainability",AH&R - PGS Dir,SCREWFIX HIGH WYCOMBE CRE,10.79,0,10.79,Other Equipment and Materials,Timber & building supplies
Buckinghamshire Council ,31.05.2023,17.05.2023,"Planning, Growth & Sustainability",AH&R - PGS Dir,ISAAC LORD LIMITED,7.13,0,7.13,Other Equipment and Materials,Hardware stores
Buckinghamshire Council ,31.05.2023,17.05.2023,Deputy Chief Executive,Communities - DCE,AO RETAIL LIMITED,-24,0,-24,Other Personal Needs,Household appliance stores
Buckinghamshire Council ,31.05.2023,17.05.2023,Resources,AH&R - Res Dir,GEN REGISTER OFFICE,14,0,14,Miscellaneous (Other)  Expenses,Government services
Buckinghamshire Council ,31.05.2023,17.05.2023,Communities,Transport - Communities Dir,DVLA OEPPWEBECOM,90.84,0,90.84,Vehicle Hire,Government services
Buckinghamshire Council ,31.05.2023,17.05.2023,Communities,Transport - Communities Dir,E AND R MEAKES LTD,312,0,312,General Repairs & Maintenance,"Roofing, siding & sheet metal contractors"
Buckinghamshire Council ,31.05.2023,17.05.2023,Adults and Health,Health & Wellbeing - Adults & Health Dir,AMZNMKTPLACE,20.97,0,20.97,Health & Safety Supplies & Services,Miscellaneous retail
Buckinghamshire Council ,31.05.2023,17.05.2023,Adults and Health,Health & Wellbeing - Adults & Health Dir,NEW YORK DELI (AYLESBURY),6,1.2,7.2,Subsistence,Restaurants
Buckinghamshire Council ,31.05.2023,17.05.2023,"Planning, Growth & Sustainability",AH&R - PGS Dir,BOOKER LTD - 38534944,51.95,0,51.95,Purchase.of Refreshments and Food,Grocery stores
Buckinghamshire Council ,31.05.2023,17.05.2023,Children's Services,Education & Childrens Services - CS Dir,SAINSBURYS S/MKTS,7.55,0,7.55,Consumable Supplies,Grocery stores
Buckinghamshire Council ,31.05.2023,17.05.2023,Adults and Health,Health & Wellbeing - Adults & Health Dir,TESCO STORES 2162,56.69,0,56.69,General Provisions (Food),Grocery stores
Buckinghamshire Council ,31.05.2023,17.05.2023,"Planning, Growth & Sustainability",AH&R - PGS Dir,AMZNMKTPLACE,29.99,0,29.99,Miscellaneous (Other)  Expenses,Miscellaneous retail
Buckinghamshire Council ,31.05.2023,17.05.2023,"Planning, Growth & Sustainability",AH&R - PGS Dir,AMAZON.CO.UK,15.98,0,15.98,Administrative Equipment & Tools,Direct sales companies
Buckinghamshire Council ,31.05.2023,17.05.2023,"Planning, Growth & Sustainability",AH&R - PGS Dir,GRANT AND STONE,20.09,0,20.09,General Repairs & Maintenance,Hardware stores
Buckinghamshire Council ,31.05.2023,17.05.2023,Deputy Chief Executive,AH&R- DCE Dir,SEQUENCE  UK  LTD RE CONN,405,0,405,Other Personal Needs,Estate Agents & Property Management
Buckinghamshire Council ,31.05.2023,17.05.2023,Children's Services,Education & Childrens Services - CS Dir,AMAZON.CO.UK,4.99,0,4.99,Stationery & Office Supplies,Direct sales companies
Buckinghamshire Council ,31.05.2023,17.05.2023,Children's Services,Education & Childrens Services - CS Dir,AMAZON.CO.UK,149.99,0,149.99,Stationery & Office Supplies,Direct sales companies
Buckinghamshire Council ,31.05.2023,17.05.2023,Deputy Chief Executive,Communities - DCE,RINGGO PARKING,0.95,0,0.95,Staff Travelling Expenses,Car parking & garages
Buckinghamshire Council ,31.05.2023,17.05.2023,Communities,Culture & Leisure - Communities Dir,AMZNMKTPLACE,19.15,3.83,22.98,Events Expenditure,Miscellaneous retail
Buckinghamshire Council ,31.05.2023,17.05.2023,Communities,Culture & Leisure - Communities Dir,AMZNMKTPLACE,0.01,0,0.01,Events Expenditure,Miscellaneous retail
Buckinghamshire Council ,31.05.2023,17.05.2023,Communities,Transport - Communities Dir,WWW.RIBABOOKSHOPS.COM,51,0,51,Other Works,Book stores
Buckinghamshire Council ,31.05.2023,17.05.2023,Children's Services,Education & Childrens Services - CS Dir,SAINSBURYS S/MKTS,4,0,4,Miscellaneous (Other)  Expenses,Grocery stores
Buckinghamshire Council ,31.05.2023,17.05.2023,Communities,Transport - Communities Dir,CURRYS AYLESBURY,119.99,0,119.99,Repair and Maintenance of Equipment,Electronics shops
Buckinghamshire Council ,31.05.2023,17.05.2023,Children's Services,Education & Childrens Services - CS Dir,IKEA LTD 461 READING MAIN,176.25,0,176.25,Cleaning & Domestic Equipment,Furniture & home furnishing
Buckinghamshire Council ,31.05.2023,17.05.2023,Children's Services,Education & Childrens Services - CS Dir,B & Q 1354,53,0,53,Cleaning & Domestic Equipment,Home supply warehouse stores
Buckinghamshire Council ,31.05.2023,17.05.2023,Children's Services,Education & Childrens Services - CS Dir,TRAINLINE.COM,56.97,0,56.97,Sec 20/31: Specialist Services,Passenger railways
Buckinghamshire Council ,31.05.2023,17.05.2023,Children's Services,Education & Childrens Services - CS Dir,AMZNMKTPLACE,35.17,0,35.17,Equipment (including storage),Miscellaneous retail
Buckinghamshire Council ,31.05.2023,17.05.2023,Children's Services,Education & Childrens Services - CS Dir,AMZNMKTPLACE,18.58,0,18.58,Equipment (including storage),Miscellaneous retail
Buckinghamshire Council ,31.05.2023,17.05.2023,Children's Services,Education & Childrens Services - CS Dir,AMZNMKTPLACE,7.59,0,7.59,Equipment (including storage),Miscellaneous retail
Buckinghamshire Council ,31.05.2023,17.05.2023,Resources,AH&R - Res Dir,WWW.CIPS.ORG,223,0,223,Long Service Awards,Membership organisations
Buckinghamshire Council ,31.05.2023,17.05.2023,Communities,Climate Change & Environment - Community,SUMUP  *BUCKINGHAM PRIMAR,50,0,50,Waste Prevention costs,Schools
Buckinghamshire Council ,31.05.2023,17.05.2023,Communities,Climate Change & Environment - Community,DART-CHARGE,2.5,0,2.5,Staff Travelling Expenses,Toll and bridge fees
Buckinghamshire Council ,31.05.2023,17.05.2023,Children's Services,Education & Childrens Services - CS Dir,WWW.ANYVAN.COM,69,0,69,Sec 20/31: Transport,"Haulage, removals & delivery"
Buckinghamshire Council ,31.05.2023,17.05.2023,"Planning, Growth & Sustainability",Climate Change & Environment - PGS,AMZNMKTPLACE,81.45,16.29,97.74,Events Expenditure,Miscellaneous retail
Buckinghamshire Council ,31.05.2023,17.05.2023,Children's Services,Education & Childrens Services - CS Dir,BAKER ROSS,-50.43,0,-50.43,General Allowances,Art & craft shops
Buckinghamshire Council ,31.05.2023,17.05.2023,Children's Services,Education & Childrens Services - CS Dir,ONWARD TRAVEL SOLUTIONS,90,0,90,Leaving Care  - Financial Assistance,Taxicabs & limousines
Buckinghamshire Council ,31.05.2023,17.05.2023,Children's Services,Education & Childrens Services - CS Dir,ONWARD TRAVEL SOLUTIONS,102,0,102,Staff Travelling Expenses,Taxicabs & limousines
Buckinghamshire Council ,31.05.2023,17.05.2023,Children's Services,Education & Childrens Services - CS Dir,ONWARD TRAVEL SOLUTIONS,126,0,126,Staff Travelling Expenses,Taxicabs & limousines
Buckinghamshire Council ,31.05.2023,17.05.2023,Children's Services,Education & Childrens Services - CS Dir,AMZNMKTPLACE,48.63,0,48.63,Leaving Care - Grants for Care Leavers,Miscellaneous retail
Buckinghamshire Council ,31.05.2023,17.05.2023,Children's Services,Education & Childrens Services - CS Dir,AMZNMKTPLACE,9.19,0,9.19,Leaving Care - Grants for Care Leavers,Miscellaneous retail
Buckinghamshire Council ,31.05.2023,17.05.2023,Children's Services,Education & Childrens Services - CS Dir,AMZNMKTPLACE,50.42,0,50.42,Leaving Care - Grants for Care Leavers,Miscellaneous retail
Buckinghamshire Council ,31.05.2023,17.05.2023,Children's Services,Education & Childrens Services - CS Dir,AMZNMKTPLACE,49.31,0,49.31,Leaving Care - Grants for Care Leavers,Miscellaneous retail
Buckinghamshire Council ,31.05.2023,17.05.2023,Children's Services,Education & Childrens Services - CS Dir,AMZNMKTPLACE,138.24,0,138.24,Leaving Care - Grants for Care Leavers,Miscellaneous retail
Buckinghamshire Council ,31.05.2023,17.05.2023,Children's Services,Education & Childrens Services - CS Dir,AMZNMKTPLACE,109.99,0,109.99,Leaving Care - Grants for Care Leavers,Miscellaneous retail
Buckinghamshire Council ,31.05.2023,17.05.2023,Children's Services,Education & Childrens Services - CS Dir,AMZNMKTPLACE,70.99,0,70.99,Leaving Care - Grants for Care Leavers,Miscellaneous retail
Buckinghamshire Council ,31.05.2023,17.05.2023,Children's Services,Education & Childrens Services - CS Dir,AMZNMKTPLACE,58.99,0,58.99,Leaving Care - Grants for Care Leavers,Miscellaneous retail
Buckinghamshire Council ,31.05.2023,17.05.2023,Children's Services,Education & Childrens Services - CS Dir,AMZNMKTPLACE,90.89,0,90.89,Leaving Care - Grants for Care Leavers,Miscellaneous retail
Buckinghamshire Council ,31.05.2023,17.05.2023,Adults and Health,Health & Wellbeing - Adults & Health Dir,BUDGENS SWEENEYS,29.87,0,29.87,General Provisions (Food),Grocery stores
Buckinghamshire Council ,31.05.2023,17.05.2023,Communities,ommunities - Trust Accounts,BOOKER LIMITED ECOM,475.5,0,475.5,Purchase of Food for Re-sale,Grocery stores
Buckinghamshire Council ,31.05.2023,17.05.2023,"Planning, Growth & Sustainability",Housing & Homelessness & Regulatory PGS,AMZNMKTPLACE,252.51,0,252.51,Furniture,Miscellaneous retail
Buckinghamshire Council ,31.05.2023,17.05.2023,Deputy Chief Executive,AH&R- DCE Dir,PAYPAL,884.14,176.84,"1,060.98",Miscellaneous (Other)  Expenses,Variety stores
Buckinghamshire Council ,31.05.2023,17.05.2023,Deputy Chief Executive,AH&R- DCE Dir,WWW.ARGOS.CO.UK,93.25,18.65,111.9,Miscellaneous (Other)  Expenses,Department stores
Buckinghamshire Council ,31.05.2023,17.05.2023,Deputy Chief Executive,AH&R- DCE Dir,WWW.ARGOS.CO.UK,0.05,0,0.05,Miscellaneous (Other)  Expenses,Department stores
Buckinghamshire Council ,31.05.2023,17.05.2023,Deputy Chief Executive,AH&R- DCE Dir,PAYPAL,"1,494.10",298.82,"1,792.92",Miscellaneous (Other)  Expenses,Variety stores
Buckinghamshire Council ,31.05.2023,17.05.2023,Deputy Chief Executive,AH&R- DCE Dir,PAYPAL,0.03,0,0.03,Miscellaneous (Other)  Expenses,Variety stores
Buckinghamshire Council ,31.05.2023,17.05.2023,Deputy Chief Executive,AH&R- DCE Dir,CURRYS ONLINE,885,177,"1,062.00",Miscellaneous (Other)  Expenses,Electronics shops
Buckinghamshire Council ,31.05.2023,17.05.2023,Children's Services,Education & Childrens Services - CS Dir,TRAVELODGE GB0862,13,0,13,Sec 17: Accommodation,Travelodge
Buckinghamshire Council ,31.05.2023,17.05.2023,Children's Services,Education & Childrens Services - CS Dir,GO WALLPAPER LTD,55.94,0,55.94,Equipment (including storage),Miscellaneous retail
Buckinghamshire Council ,31.05.2023,17.05.2023,"Planning, Growth & Sustainability",Housing & Homelessness & Regulatory PGS,TAPLOW TO,19.1,0,19.1,Staff Travelling Expenses,Passenger railways
Buckinghamshire Council ,31.05.2023,17.05.2023,Communities,Climate Change & Environment - Community,HOBBYCRAFT,3.3,0,3.3,Repair & Maint of Vehicles & Plant,Art & craft shops
Buckinghamshire Council ,31.05.2023,17.05.2023,Communities,Transport - Communities Dir,CJ'S LOCKSMITHS,77.4,0,77.4,Materials,Misc. repair services
Buckinghamshire Council ,31.05.2023,17.05.2023,Communities,ommunities - Trading Accounts,DVLA VEHICLE TAX,320,0,320,Vehicle Taxation Costs,Tax payments
Buckinghamshire Council ,31.05.2023,17.05.2023,Communities,ommunities - Trading Accounts,DVLA VEHICLE TAX,320,0,320,Vehicle Taxation Costs,Tax payments
Buckinghamshire Council ,31.05.2023,17.05.2023,Communities,ommunities - Trading Accounts,DVLA VEHICLE TAX,165,0,165,Vehicle Taxation Costs,Tax payments
Buckinghamshire Council ,31.05.2023,17.05.2023,Communities,ommunities - Trading Accounts,DVLA VEHICLE TAX,320,0,320,Vehicle Taxation Costs,Tax payments
Buckinghamshire Council ,31.05.2023,17.05.2023,Communities,ommunities - Trading Accounts,DVLA VEHICLE TAX,165,0,165,Vehicle Taxation Costs,Tax payments
Buckinghamshire Council ,31.05.2023,17.05.2023,Communities,ommunities - Trading Accounts,DVLA VEHICLE TAX,165,0,165,Vehicle Taxation Costs,Tax payments
Buckinghamshire Council ,31.05.2023,17.05.2023,Communities,ommunities - Trading Accounts,DVLA VEHICLE TAX,180,0,180,Vehicle Taxation Costs,Tax payments
Buckinghamshire Council ,31.05.2023,17.05.2023,Children's Services,Education & Childrens Services - CS Dir,THE OXFORDSHIRE TAXI COMP,290,0,290,Sec 20/31: Transport,Taxicabs & limousines
Buckinghamshire Council ,31.05.2023,16.05.2023,Communities,Culture & Leisure - Communities Dir,EBAY O*07-10067-02076,-3.49,0,-3.49,"Workshop - Materials,Tools & Equipment",Department stores
Buckinghamshire Council ,31.05.2023,16.05.2023,Communities,Culture & Leisure - Communities Dir,EBAY O*22-10059-66617,-13.63,0,-13.63,"Workshop - Materials,Tools & Equipment",Department stores
Buckinghamshire Council ,31.05.2023,16.05.2023,Children's Services,Education & Childrens Services - CS Dir,VOUCHER EXPRESS,100,0,100,Sec 20/31: Specialist Services,Misc business services
Buckinghamshire Council ,31.05.2023,16.05.2023,Children's Services,Education & Childrens Services - CS Dir,TRAINLINE.COM,364.51,0,364.51,Staff Travelling Expenses,Passenger railways
Buckinghamshire Council ,31.05.2023,16.05.2023,Children's Services,Education & Childrens Services - CS Dir,MCDONALDS 296,5.24,1.05,6.29,Miscellaneous (Other)  Expenses,Fast food restaurants
Buckinghamshire Council ,31.05.2023,16.05.2023,Deputy Chief Executive,Communities - DCE,AO RETAIL LIMITED,730.83,146.17,877,Other Personal Needs,Household appliance stores
Buckinghamshire Council ,31.05.2023,16.05.2023,Deputy Chief Executive,Communities - DCE,WWW.ARGOS.CO.UK,57.45,11.49,68.94,Other Personal Needs,Department stores
Buckinghamshire Council ,31.05.2023,16.05.2023,Deputy Chief Executive,Communities - DCE,WWW.ARGOS.CO.UK,0.01,0,0.01,Other Personal Needs,Department stores
Buckinghamshire Council ,31.05.2023,16.05.2023,Deputy Chief Executive,Communities - DCE,WWW.ARGOS.CO.UK,352.95,0,352.95,Other Personal Needs,Department stores
Buckinghamshire Council ,31.05.2023,16.05.2023,Deputy Chief Executive,Communities - DCE,AO RETAIL LIMITED,315.83,63.17,379,Other Personal Needs,Household appliance stores
Buckinghamshire Council ,31.05.2023,16.05.2023,Deputy Chief Executive,Communities - DCE,TU AT SAINSBURYS,53.45,0,53.45,Other Personal Needs,Grocery stores
Buckinghamshire Council ,31.05.2023,16.05.2023,Deputy Chief Executive,Communities - DCE,AO RETAIL LIMITED,211.65,42.33,253.98,Other Personal Needs,Household appliance stores
Buckinghamshire Council ,31.05.2023,16.05.2023,Deputy Chief Executive,Communities - DCE,AO RETAIL LIMITED,0.02,0,0.02,Other Personal Needs,Household appliance stores
Buckinghamshire Council ,31.05.2023,16.05.2023,Children's Services,Education & Childrens Services - CS Dir,BKG*HOTEL AT BOOKING.C,78.75,0,78.75,Other Employees Expenses,Travel agencies
Buckinghamshire Council ,31.05.2023,16.05.2023,Children's Services,Education & Childrens Services - CS Dir,AMZNMKTPLACE,19.99,0,19.99,Other Personal Needs,Miscellaneous retail
Buckinghamshire Council ,31.05.2023,16.05.2023,"Planning, Growth & Sustainability",Climate Change & Environment - PGS,SP LOOP EARPLUGS,19.91,0,19.91,Administrative Equipment & Tools,Miscellaneous retail
Buckinghamshire Council ,31.05.2023,16.05.2023,"Planning, Growth & Sustainability",Climate Change & Environment - PGS,AMZNMKTPLACE,24.98,0,24.98,Administrative Equipment & Tools,Miscellaneous retail
Buckinghamshire Council ,31.05.2023,16.05.2023,Communities,Culture & Leisure - Communities Dir,EBAY O*07-10067-02076,3.49,0,3.49,"Workshop - Materials,Tools & Equipment",Department stores
Buckinghamshire Council ,31.05.2023,16.05.2023,Communities,Culture & Leisure - Communities Dir,EBAY O*22-10059-66617,16.98,0,16.98,"Workshop - Materials,Tools & Equipment",Department stores
Buckinghamshire Council ,31.05.2023,16.05.2023,Children's Services,Education & Childrens Services - CS Dir,ASDA STORES LTD,30,0,30,Sec 17: Financial Assistance One Off,Grocery stores
Buckinghamshire Council ,31.05.2023,16.05.2023,Children's Services,Education & Childrens Services - CS Dir,AMZNMKTPLACE,134.98,0,134.98,"Workshop - Materials,Tools & Equipment",Miscellaneous retail
Buckinghamshire Council ,31.05.2023,16.05.2023,"Planning, Growth & Sustainability",AH&R - PGS Dir,PROCONFERENCES.COM,142.8,0,142.8,Course Fees & Post Entry Training,Colleges & universities
Buckinghamshire Council ,31.05.2023,16.05.2023,"Planning, Growth & Sustainability",AH&R - PGS Dir,PROCONFERENCES.COM,142.8,0,142.8,Course Fees & Post Entry Training,Colleges & universities
Buckinghamshire Council ,31.05.2023,16.05.2023,Adults and Health,Health & Wellbeing - Adults & Health Dir,WM MORRISONS STORE,42.22,0,42.22,Activities & General Recreation,Grocery stores
Buckinghamshire Council ,31.05.2023,16.05.2023,Adults and Health,Health & Wellbeing - Adults & Health Dir,WM MORRISONS STORE,40.78,0,40.78,Activities & General Recreation,Grocery stores
Buckinghamshire Council ,31.05.2023,16.05.2023,Children's Services,Education & Childrens Services - CS Dir,NEW YORK DELI (AYLESBURY),27,0,27,Purchase.of Refreshments and Food,Restaurants
Buckinghamshire Council ,31.05.2023,16.05.2023,"Planning, Growth & Sustainability",AH&R - PGS Dir,WWW.ARGOS.CO.UK,38.49,0,38.49,General Repairs & Maintenance,Department stores
Buckinghamshire Council ,31.05.2023,16.05.2023,"Planning, Growth & Sustainability",AH&R - PGS Dir,TESCO STORES 5525,9.9,0,9.9,Purchase.of Refreshments and Food,Grocery stores
Buckinghamshire Council ,31.05.2023,16.05.2023,Children's Services,Education & Childrens Services - CS Dir,AMZ*BLITZHANDEL24DE,136.1,0,136.1,Computer Software Licences & Purchase,Computer software stores
Buckinghamshire Council ,31.05.2023,16.05.2023,Children's Services,Education & Childrens Services - CS Dir,SAINSBURYS S/MKTS,24.25,0,24.25,Consumable Supplies,Grocery stores
Buckinghamshire Council ,31.05.2023,16.05.2023,Children's Services,Education & Childrens Services - CS Dir,AMZNMKTPLACE,12.94,0,12.94,Activities & General Recreation,Miscellaneous retail
Buckinghamshire Council ,31.05.2023,16.05.2023,Children's Services,Education & Childrens Services - CS Dir,AMZNMKTPLACE,16.99,0,16.99,Activities & General Recreation,Miscellaneous retail
Buckinghamshire Council ,31.05.2023,16.05.2023,Communities,Climate Change & Environment - Community,SCREWFIX DIR LTD,26.36,0,26.36,Equipment,Timber & building supplies
Buckinghamshire Council ,31.05.2023,16.05.2023,Communities,Transport - Communities Dir,TRAINLINE,99.34,0,99.34,Staff Travelling Expenses,Passenger railways
Buckinghamshire Council ,31.05.2023,16.05.2023,Communities,Culture & Leisure - Communities Dir,AMZNMKTPLACE,11.24,2.25,13.49,Events Expenditure,Miscellaneous retail
Buckinghamshire Council ,31.05.2023,16.05.2023,Communities,Culture & Leisure - Communities Dir,WWW.BUCKINGHAMSHIRE.GOV,21,0,21,Events Expenditure,Government services
Buckinghamshire Council ,31.05.2023,16.05.2023,Communities,Culture & Leisure - Communities Dir,AMZNMKTPLACE,10.45,2.09,12.54,Events Expenditure,Miscellaneous retail
Buckinghamshire Council ,31.05.2023,16.05.2023,Communities,Culture & Leisure - Communities Dir,AMZNMKTPLACE,0.03,0,0.03,Events Expenditure,Miscellaneous retail
Buckinghamshire Council ,31.05.2023,16.05.2023,Communities,Culture & Leisure - Communities Dir,AMZNMKTPLACE,6.65,1.33,7.98,Events Expenditure,Miscellaneous retail
Buckinghamshire Council ,31.05.2023,16.05.2023,Communities,Culture & Leisure - Communities Dir,AMZNMKTPLACE,0.01,0,0.01,Events Expenditure,Miscellaneous retail
Buckinghamshire Council ,31.05.2023,16.05.2023,Children's Services,Education & Childrens Services - CS Dir,SP CARDSPLUG,38.73,0,38.73,Other Personal Needs,"Gift, card & novelty shops"
Buckinghamshire Council ,31.05.2023,16.05.2023,Children's Services,Education & Childrens Services - CS Dir,LEBARA MOBILE LIMITED,25,0,25,Miscellaneous (Other)  Expenses,Computer network information services
Buckinghamshire Council ,31.05.2023,16.05.2023,Children's Services,Education & Childrens Services - CS Dir,AMZNMKTPLACE,154.11,0,154.11,Other Equipment and Materials,Miscellaneous retail
Buckinghamshire Council ,31.05.2023,16.05.2023,Children's Services,Education & Childrens Services - CS Dir,AMAZON.CO.UK,31.99,0,31.99,Stationery & Office Supplies,Direct sales companies
Buckinghamshire Council ,31.05.2023,16.05.2023,Children's Services,Education & Childrens Services - CS Dir,AMZNMKTPLACE,22.95,0,22.95,Other Equipment and Materials,Miscellaneous retail
Buckinghamshire Council ,31.05.2023,16.05.2023,Deputy Chief Executive,Communities - DCE,CARD FACTORY,15.12,0,15.12,Administrative Equipment & Tools,"Gift, card & novelty shops"
Buckinghamshire Council ,31.05.2023,16.05.2023,Deputy Chief Executive,Communities - DCE,TESCO STORES 2041,45.5,0,45.5,Administrative Equipment & Tools,Grocery stores
Buckinghamshire Council ,31.05.2023,16.05.2023,Resources,AH&R - Res Dir,AMZNMKTPLACE,8.99,0,8.99,Computer Consumables,Miscellaneous retail
Buckinghamshire Council ,31.05.2023,16.05.2023,Resources,AH&R - Res Dir,AMAZON.CO.UK,150,0,150,Computer Consumables,Direct sales companies
Buckinghamshire Council ,31.05.2023,16.05.2023,Children's Services,Education & Childrens Services - CS Dir,HEALTH AND CARE,-171.99,0,-171.99,Medical Supplies & Services inc Vet'nary,"Laboratory, medical & hospital equipment"
Buckinghamshire Council ,31.05.2023,16.05.2023,Resources,AH&R - Res Dir,C2E853700968G UKVI,199,0,199,Professional Services (non curriculum) - External,Government services
Buckinghamshire Council ,31.05.2023,16.05.2023,Communities,artnerships - Communities,CH&CO CATERING,16.05,3.21,19.26,Staff Travelling Expenses,Caterers
Buckinghamshire Council ,31.05.2023,16.05.2023,Communities,artnerships - Communities,CH&CO CATERING,0.04,0,0.04,Staff Travelling Expenses,Caterers
Buckinghamshire Council ,31.05.2023,16.05.2023,Adults and Health,Communities - Adults & Health,WM MORRISONS STORE,19.67,0,19.67,Purchase.of Refreshments and Food,Grocery stores
Buckinghamshire Council ,31.05.2023,16.05.2023,Children's Services,Education & Childrens Services - CS Dir,EASYJET,106.96,0,106.96,Staff Travelling Expenses,Easyjet
Buckinghamshire Council ,31.05.2023,16.05.2023,Children's Services,Education & Childrens Services - CS Dir,BKG*HOTEL AT BOOKING.C,179,0,179,Staff Travelling Expenses,Travel agencies
Buckinghamshire Council ,31.05.2023,16.05.2023,Children's Services,Education & Childrens Services - CS Dir,AO RETAIL LIMITED,"1,317.00",0,"1,317.00",Leaving Care - Grants for Care Leavers,Household appliance stores
Buckinghamshire Council ,31.05.2023,16.05.2023,"Planning, Growth & Sustainability",Housing & Homelessness & Regulatory PGS,AMAZON.CO.UK,154.53,0,154.53,Stationery & Office Supplies,Direct sales companies
Buckinghamshire Council ,31.05.2023,16.05.2023,"Planning, Growth & Sustainability",Housing & Homelessness & Regulatory PGS,AMAZON.CO.UK,37.96,0,37.96,Stationery & Office Supplies,Direct sales companies
Buckinghamshire Council ,31.05.2023,16.05.2023,Deputy Chief Executive,AH&R- DCE Dir,PAYPAL,-4,0,-4,Miscellaneous (Other)  Expenses,Variety stores
Buckinghamshire Council ,31.05.2023,16.05.2023,Deputy Chief Executive,AH&R- DCE Dir,PAYPAL,-4,0,-4,Miscellaneous (Other)  Expenses,Variety stores
Buckinghamshire Council ,31.05.2023,16.05.2023,Children's Services,Education & Childrens Services - CS Dir,TRAVELODGE GB0862,13,0,13,Sec 17: Accommodation,Travelodge
Buckinghamshire Council ,31.05.2023,16.05.2023,Resources,AH&R - Res Dir,FACEBK *M5GWRRX4X2,13.35,0,13.35,Permanent Recruitment Costs,Advertising services
Buckinghamshire Council ,31.05.2023,16.05.2023,Resources,AH&R - Res Dir,LINKEDIN ADS 9045439184,23.41,0,23.41,Permanent Recruitment Costs,Advertising services
Buckinghamshire Council ,31.05.2023,16.05.2023,Children's Services,Education & Childrens Services - CS Dir,PAYPAL,99,0,99,Equipment (including storage),Medical & health services
Buckinghamshire Council ,31.05.2023,16.05.2023,Communities,Climate Change & Environment - Community,EXPO* NATIONAL LETSREC,215,0,215,"Courses, Conference and Seminar Fees",Misc business services
Buckinghamshire Council ,31.05.2023,16.05.2023,Communities,Climate Change & Environment - Community,ROADWARRIOR,8.28,0,8.28,Computer Support Services,"Programming, data processing & system design"
Buckinghamshire Council ,31.05.2023,16.05.2023,Communities,Climate Change & Environment - Community,ROADWARRIOR,8.28,0,8.28,Computer Support Services,"Programming, data processing & system design"
Buckinghamshire Council ,31.05.2023,16.05.2023,"Planning, Growth & Sustainability",Housing & Homelessness & Regulatory PGS,AMZNMKTPLACE,539.4,0,539.4,Furniture,Miscellaneous retail
Buckinghamshire Council ,31.05.2023,16.05.2023,"Planning, Growth & Sustainability",Housing & Homelessness & Regulatory PGS,VISTAPRINT,56.27,0,56.27,Stationery & Office Supplies,Misc business services
Buckinghamshire Council ,31.05.2023,16.05.2023,"Planning, Growth & Sustainability",Housing & Homelessness & Regulatory PGS,DUNELM SOFTFURNISHINGS,118.95,0,118.95,Furniture,Furniture & home furnishing
Buckinghamshire Council ,31.05.2023,16.05.2023,Deputy Chief Executive,AH&R- DCE Dir,LLG ENTERPRISES LTD,390,0,390,"Courses, Conference and Seminar Fees",Vocational & trade schools
Buckinghamshire Council ,31.05.2023,16.05.2023,Adults and Health,Health & Wellbeing - Adults & Health Dir,AMZNMKTPLACE,12.98,0,12.98,Other Supplies,Miscellaneous retail
Buckinghamshire Council ,31.05.2023,16.05.2023,Children's Services,Education & Childrens Services - CS Dir,BUCKINGHAMSHIRE CNCL,22,0,22,Sec 20/31: Financial Assistance,Government services
Buckinghamshire Council ,31.05.2023,16.05.2023,Children's Services,Education & Childrens Services - CS Dir,TRAINLINE,66.4,0,66.4,Staff Travelling Expenses,Passenger railways
Buckinghamshire Council ,31.05.2023,16.05.2023,Communities,Housing & Homelessness & Regulatory Comm,PREMIER INN,158,0,158,"Courses, Conference and Seminar Fees",Premier Inn
Buckinghamshire Council ,31.05.2023,16.05.2023,Resources,AH&R - Res Dir,REDACTIVE,795,159,954,"Courses, Conference and Seminar Fees",Misc business services
Buckinghamshire Council ,31.05.2023,15.05.2023,"Planning, Growth & Sustainability",Housing & Homelessness & Regulatory PGS,AMZNMKTPLACE,47.97,0,47.97,Furniture,Miscellaneous retail
Buckinghamshire Council ,31.05.2023,15.05.2023,Deputy Chief Executive,Communities - DCE,AO RETAIL LIMITED,718.3,143.66,861.96,Other Personal Needs,Household appliance stores
Buckinghamshire Council ,31.05.2023,15.05.2023,Deputy Chief Executive,Communities - DCE,AO RETAIL LIMITED,0.04,0,0.04,Other Personal Needs,Household appliance stores
Buckinghamshire Council ,31.05.2023,15.05.2023,Deputy Chief Executive,Communities - DCE,AO RETAIL LIMITED,743.3,148.66,891.96,Other Personal Needs,Household appliance stores
Buckinghamshire Council ,31.05.2023,15.05.2023,Deputy Chief Executive,Communities - DCE,AO RETAIL LIMITED,0.04,0,0.04,Other Personal Needs,Household appliance stores
Buckinghamshire Council ,31.05.2023,15.05.2023,Deputy Chief Executive,Communities - DCE,AO RETAIL LIMITED,336.66,67.34,404,Other Personal Needs,Household appliance stores
Buckinghamshire Council ,31.05.2023,15.05.2023,Deputy Chief Executive,Communities - DCE,WWW.ARGOS.CO.UK,317.45,63.49,380.94,Other Personal Needs,Department stores
Buckinghamshire Council ,31.05.2023,15.05.2023,Deputy Chief Executive,Communities - DCE,WWW.ARGOS.CO.UK,0.01,0,0.01,Other Personal Needs,Department stores
Buckinghamshire Council ,31.05.2023,15.05.2023,Deputy Chief Executive,Communities - DCE,AO RETAIL LIMITED,402.45,80.49,482.94,Other Personal Needs,Household appliance stores
Buckinghamshire Council ,31.05.2023,15.05.2023,Deputy Chief Executive,Communities - DCE,AO RETAIL LIMITED,0.06,0,0.06,Other Personal Needs,Household appliance stores
Buckinghamshire Council ,31.05.2023,15.05.2023,Deputy Chief Executive,Communities - DCE,WWW.ARGOS.CO.UK,602.45,120.49,722.94,Other Personal Needs,Department stores
Buckinghamshire Council ,31.05.2023,15.05.2023,Deputy Chief Executive,Communities - DCE,WWW.ARGOS.CO.UK,0.01,0,0.01,Other Personal Needs,Department stores
Buckinghamshire Council ,31.05.2023,15.05.2023,Deputy Chief Executive,Communities - DCE,WWW.ARGOS.CO.UK,169.95,33.99,203.94,Other Personal Needs,Department stores
Buckinghamshire Council ,31.05.2023,15.05.2023,Deputy Chief Executive,Communities - DCE,WWW.ARGOS.CO.UK,0.01,0,0.01,Other Personal Needs,Department stores
Buckinghamshire Council ,31.05.2023,15.05.2023,Deputy Chief Executive,Communities - DCE,WWW.ARGOS.CO.UK,50.79,10.16,60.95,Other Personal Needs,Department stores
Buckinghamshire Council ,31.05.2023,15.05.2023,"Planning, Growth & Sustainability",Planning & Regeneration - PGS,TEXTANYWHERE,54,0,54,Computer Consumables,Computer software stores
Buckinghamshire Council ,31.05.2023,15.05.2023,Children's Services,Education & Childrens Services - CS Dir,KENT COUNTY COUNCIL,90,0,90,"Courses, Conference and Seminar Fees",Government services
Buckinghamshire Council ,31.05.2023,15.05.2023,Children's Services,Education & Childrens Services - CS Dir,EB *THE AUTISM SHOW LO,175.56,0,175.56,"Courses, Conference and Seminar Fees",Misc business services
Buckinghamshire Council ,31.05.2023,15.05.2023,Communities,Climate Change & Environment - Community,DVLA VEHICLE TAX,167.5,0,167.5,Vehicle Insurance,Government services
Buckinghamshire Council ,31.05.2023,15.05.2023,Communities,Climate Change & Environment - Community,DVLA VEHICLE TAX,302.5,0,302.5,Vehicle Insurance,Government services
Buckinghamshire Council ,31.05.2023,15.05.2023,Communities,Climate Change & Environment - Community,DVLA VEHICLE TAX,322.5,0,322.5,Vehicle Insurance,Government services
Buckinghamshire Council ,31.05.2023,15.05.2023,Communities,Climate Change & Environment - Community,DVLA VEHICLE TAX,167.5,0,167.5,Vehicle Insurance,Government services
Buckinghamshire Council ,31.05.2023,15.05.2023,Communities,Climate Change & Environment - Community,DVLA VEHICLE TAX,302.5,0,302.5,Vehicle Insurance,Government services
Buckinghamshire Council ,31.05.2023,15.05.2023,Communities,Climate Change & Environment - Community,DVLA VEHICLE TAX,322.5,0,322.5,Vehicle Insurance,Government services
Buckinghamshire Council ,31.05.2023,15.05.2023,Communities,Climate Change & Environment - Community,DVLA VEHICLE TAX,562.5,0,562.5,Vehicle Insurance,Government services
Buckinghamshire Council ,31.05.2023,15.05.2023,Communities,Climate Change & Environment - Community,DVLA VEHICLE TAX,322.5,0,322.5,Vehicle Insurance,Government services
Buckinghamshire Council ,31.05.2023,15.05.2023,Communities,Climate Change & Environment - Community,DVLA VEHICLE TAX,302.5,0,302.5,Vehicle Insurance,Government services
Buckinghamshire Council ,31.05.2023,15.05.2023,Communities,Climate Change & Environment - Community,DVLA VEHICLE TAX,167.5,0,167.5,Vehicle Insurance,Government services
Buckinghamshire Council ,31.05.2023,15.05.2023,Communities,Climate Change & Environment - Community,DVLA VEHICLE TAX,167.5,0,167.5,Vehicle Insurance,Government services
Buckinghamshire Council ,31.05.2023,15.05.2023,"Planning, Growth & Sustainability",AH&R - PGS Dir,LONDIS,14.4,0,14.4,General Provisions (Food),Sweets & confectionary
Buckinghamshire Council ,31.05.2023,15.05.2023,Children's Services,Education & Childrens Services - CS Dir,BUCKINGHAM HOTELS,"1,890.00",0,"1,890.00",Sec 17: Accommodation,"Hotels, motels & resorts"
Buckinghamshire Council ,31.05.2023,15.05.2023,Communities,Housing & Homelessness & Regulatory Comm,WWW.TUDORENVIRONMENTAL,154.2,0,154.2,Seeds & Plants,Lawn & garden supply/nursery
Buckinghamshire Council ,31.05.2023,15.05.2023,Adults and Health,Health & Wellbeing - Adults & Health Dir,TESCO STORES 5135,146.25,0,146.25,General Provisions (Food),Grocery stores
Buckinghamshire Council ,31.05.2023,15.05.2023,Resources,AH&R - Res Dir,NABLE TECHNOLOGIES,179.28,0,179.28,Computer Support Services,Computer maintenance & repair
Buckinghamshire Council ,31.05.2023,15.05.2023,"Planning, Growth & Sustainability",AH&R - PGS Dir,DISCOUNTED CLEANING SUPPL,5.6,1.12,6.72,Cleaning Materials,Misc cleaning & polishing preparations
Buckinghamshire Council ,31.05.2023,15.05.2023,"Planning, Growth & Sustainability",AH&R - PGS Dir,ASDA SUPERSTORE,2.29,0.46,2.75,Cleaning Materials,Grocery stores
Buckinghamshire Council ,31.05.2023,15.05.2023,Children's Services,Education & Childrens Services - CS Dir,MAGSUBCRIPTIONS COM,170,0,170,Professional Subscriptions re Employees,Continuous subscriptions
Buckinghamshire Council ,31.05.2023,15.05.2023,"Planning, Growth & Sustainability",AH&R - PGS Dir,SCREWFIX DIR LTD,19.28,0,19.28,Other Equipment and Materials,Timber & building supplies
Buckinghamshire Council ,31.05.2023,15.05.2023,"Planning, Growth & Sustainability",AH&R - PGS Dir,CH MORGAN,20.68,0,20.68,Other Equipment and Materials,"Architectural, engineering & surveying"
Buckinghamshire Council ,31.05.2023,15.05.2023,"Planning, Growth & Sustainability",AH&R - PGS Dir,SCREWFIX DIR LTD,37.98,0,37.98,General Repairs & Maintenance,Timber & building supplies
Buckinghamshire Council ,31.05.2023,15.05.2023,Adults and Health,Communities - Adults & Health,AMAZON.CO.UK,20.27,0,20.27,Miscellaneous (Other)  Expenses,Direct sales companies
Buckinghamshire Council ,31.05.2023,15.05.2023,Children's Services,Education & Childrens Services - CS Dir,AMZNMKTPLACE,54.98,0,54.98,Activities & General Recreation,Miscellaneous retail
Buckinghamshire Council ,31.05.2023,15.05.2023,Adults and Health,Health & Wellbeing - Adults & Health Dir,TESCO STORES 5927,8.55,0,8.55,General Provisions (Food),Grocery stores
Buckinghamshire Council ,31.05.2023,15.05.2023,Deputy Chief Executive,Communities - DCE,SAINSBURY S S/MKTS,27.36,0,27.36,General Provisions (Food),Grocery stores
Buckinghamshire Council ,31.05.2023,15.05.2023,Adults and Health,Health & Wellbeing - Adults & Health Dir,SAINSBURY'S S/MKT,28.23,0,28.23,General Provisions (Food),Grocery stores
Buckinghamshire Council ,31.05.2023,15.05.2023,Children's Services,Education & Childrens Services - CS Dir,PRESTIG*EFLOWERS,32.49,0,32.49,Seeds & Plants,Florists
Buckinghamshire Council ,31.05.2023,15.05.2023,Children's Services,Education & Childrens Services - CS Dir,AMZNMKTPLACE,12.97,0,12.97,Cleaning & Domestic Equipment,Miscellaneous retail
Buckinghamshire Council ,31.05.2023,15.05.2023,Children's Services,Education & Childrens Services - CS Dir,AMZNMKTPLACE,16.18,0,16.18,Equipment (including storage),Miscellaneous retail
Buckinghamshire Council ,31.05.2023,15.05.2023,Resources,AH&R - Res Dir,WWW.CIPS.ORG,223,0,223,Long Service Awards,Membership organisations
Buckinghamshire Council ,31.05.2023,15.05.2023,Communities,Climate Change & Environment - Community,DVLA VEHICLE TAX,182.5,0,182.5,Vehicle Hire,Government services
Buckinghamshire Council ,31.05.2023,15.05.2023,Communities,Climate Change & Environment - Community,DVLA VEHICLE TAX,182.5,0,182.5,Vehicle Hire,Government services
Buckinghamshire Council ,31.05.2023,15.05.2023,"Planning, Growth & Sustainability",Climate Change & Environment - PGS,AMZNMKTPLACE,19.98,4,23.98,Equipment,Miscellaneous retail
Buckinghamshire Council ,31.05.2023,15.05.2023,Children's Services,Education & Childrens Services - CS Dir,SAINSBURY S S/MKTS,24.67,0,24.67,Activities & General Recreation,Grocery stores
Buckinghamshire Council ,31.05.2023,15.05.2023,Resources,AH&R - Res Dir,PAYPAL,8.4,0,8.4,IT - Computer Network Charges,Computer network information services
Buckinghamshire Council ,31.05.2023,15.05.2023,Children's Services,Education & Childrens Services - CS Dir,AMAZON.CO.UK,61.98,0,61.98,Stationery & Office Supplies,Direct sales companies
Buckinghamshire Council ,31.05.2023,15.05.2023,Deputy Chief Executive,AH&R- DCE Dir,SECURE SAFE LIMITED,69.38,13.88,83.26,Election Expenses,Misc. general merchandise
Buckinghamshire Council ,31.05.2023,15.05.2023,Deputy Chief Executive,AH&R- DCE Dir,AMAZON.CO.UK,74.25,14.85,89.1,Election Expenses,Direct sales companies
Buckinghamshire Council ,31.05.2023,15.05.2023,Deputy Chief Executive,AH&R- DCE Dir,AMAZON.CO.UK,0.02,0,0.02,Election Expenses,Direct sales companies
Buckinghamshire Council ,31.05.2023,15.05.2023,Children's Services,Education & Childrens Services - CS Dir,WWW.BUCKINGHAMSHIRE.GOV,156.92,0,156.92,Leaving Care  - Financial Assistance,Government services
Buckinghamshire Council ,31.05.2023,15.05.2023,Children's Services,Education & Childrens Services - CS Dir,A1 TAXI SERVICE,72,0,72,Sec 20/31: Transport,Taxicabs & limousines
Buckinghamshire Council ,31.05.2023,15.05.2023,Children's Services,Education & Childrens Services - CS Dir,TRAVELODGE GB0862,6.5,0,6.5,Sec 17: Accommodation,Travelodge
Buckinghamshire Council ,31.05.2023,15.05.2023,Children's Services,Education & Childrens Services - CS Dir,TRAVELODGE GB0862,6.5,0,6.5,Sec 17: Accommodation,Travelodge
Buckinghamshire Council ,31.05.2023,15.05.2023,Adults and Health,Health & Wellbeing - Adults & Health Dir,DAVIES BROTHERS NURSER,44.95,0,44.95,Activities & General Recreation,Florist supplies & nursery stock
Buckinghamshire Council ,31.05.2023,15.05.2023,Adults and Health,Health & Wellbeing - Adults & Health Dir,TESCO STORES 5135,87.15,0,87.15,General Provisions (Food),Grocery stores
Buckinghamshire Council ,31.05.2023,15.05.2023,Children's Services,Education & Childrens Services - CS Dir,NEALES TAXIS LTD,6,0,6,Sec 20/31: Financial Assistance,Taxicabs & limousines
Buckinghamshire Council ,31.05.2023,15.05.2023,Communities,Housing & Homelessness & Regulatory Comm,SETON,29.34,0,29.34,Maintenance of Grounds,Misc Durable goods
Buckinghamshire Council ,31.05.2023,15.05.2023,Communities,Housing & Homelessness & Regulatory Comm,SETON,96.65,0,96.65,Maintenance of Grounds,Misc Durable goods
Buckinghamshire Council ,31.05.2023,15.05.2023,Communities,Culture & Leisure - Communities Dir,AMAZON.CO.UK,8.32,0,8.32,Stationery & Office Supplies,Direct sales companies
Buckinghamshire Council ,31.05.2023,15.05.2023,Resources,AH&R - Res Dir,PREMIER INN,262.5,0,262.5,"Courses, Conference and Seminar Fees",Premier Inn
Buckinghamshire Council ,31.05.2023,14.05.2023,Children's Services,Education & Childrens Services - CS Dir,AMAZON PRIME,8.99,0,8.99,Stationery & Office Supplies,Continuous subscriptions
Buckinghamshire Council ,31.05.2023,14.05.2023,Children's Services,Education & Childrens Services - CS Dir,JD SPORTS FASHION PLC,125,0,125,Other Personal Needs,Sporting goods shops
Buckinghamshire Council ,31.05.2023,14.05.2023,Adults and Health,Health & Wellbeing - Adults & Health Dir,DOBBIES,25,5,30,Seeds & Plants,Lawn & garden supply/nursery
Buckinghamshire Council ,31.05.2023,14.05.2023,Adults and Health,Health & Wellbeing - Adults & Health Dir,DOBBIES,36.64,7.33,43.97,Seeds & Plants,Lawn & garden supply/nursery
Buckinghamshire Council ,31.05.2023,14.05.2023,Children's Services,Education & Childrens Services - CS Dir,D.G. PRIVATE HIRE,213.8,0,213.8,Staff Travelling Expenses,Taxicabs & limousines
Buckinghamshire Council ,31.05.2023,14.05.2023,Deputy Chief Executive,AH&R- DCE Dir,WWW.ARGOS.CO.UK,-13,0,-13,Miscellaneous (Other)  Expenses,Department stores
Buckinghamshire Council ,31.05.2023,14.05.2023,Children's Services,Education & Childrens Services - CS Dir,TRAVELODGE GB0862,13,0,13,Sec 17: Accommodation,Travelodge
Buckinghamshire Council ,31.05.2023,14.05.2023,Resources,AH&R - Res Dir,FACEBK *2WYPTPP4X2,125,0,125,Permanent Recruitment Costs,Advertising services
Buckinghamshire Council ,31.05.2023,14.05.2023,Communities,Leader - PGS,MAILCHIMP,50.65,0,50.65,Software Support,
Buckinghamshire Council ,31.05.2023,14.05.2023,Communities,Climate Change & Environment - Community,AMZNMKTPLACE,28.97,0,28.97,Protective Clothing & Uniforms,Miscellaneous retail
Buckinghamshire Council ,31.05.2023,14.05.2023,Children's Services,Education & Childrens Services - CS Dir,CARD FACTORY,15,0,15,Activities & General Recreation,"Gift, card & novelty shops"
Buckinghamshire Council ,31.05.2023,14.05.2023,Communities,Culture & Leisure - Communities Dir,AMZNMKTPLACE,7.99,0,7.99,Printing & Stationery,Miscellaneous retail
Buckinghamshire Council ,31.05.2023,13.05.2023,Adults and Health,Health & Wellbeing - Adults & Health Dir,WH SMITH UXBRIDGE,21.1,0,21.1,Stationery & Office Supplies,Newspapers / newsagents
Buckinghamshire Council ,31.05.2023,13.05.2023,Adults and Health,Health & Wellbeing - Adults & Health Dir,CARD FACTORY,5.36,0,5.36,Activities & General Recreation,"Gift, card & novelty shops"
Buckinghamshire Council ,31.05.2023,13.05.2023,Children's Services,Education & Childrens Services - CS Dir,TESCO STORES 2038,94.72,0,94.72,General Provisions (Food),Grocery stores
Buckinghamshire Council ,31.05.2023,13.05.2023,Communities,Culture & Leisure - Communities Dir,EBAY O*23-10047-39686,15.95,3.19,19.14,"Workshop - Materials,Tools & Equipment",Department stores
Buckinghamshire Council ,31.05.2023,13.05.2023,Communities,Culture & Leisure - Communities Dir,EBAY O*23-10047-39686,0.03,0,0.03,"Workshop - Materials,Tools & Equipment",Department stores
Buckinghamshire Council ,31.05.2023,13.05.2023,Communities,Culture & Leisure - Communities Dir,PROGREEN WEED CONTROL,202.7,40.54,243.24,"Workshop - Materials,Tools & Equipment",Lawn & garden supply/nursery
Buckinghamshire Council ,31.05.2023,13.05.2023,Communities,Culture & Leisure - Communities Dir,PROGREEN WEED CONTROL,0.02,0,0.02,"Workshop - Materials,Tools & Equipment",Lawn & garden supply/nursery
Buckinghamshire Council ,31.05.2023,13.05.2023,Communities,artnerships - Communities,TSOHOST,59.99,0,59.99,Equipment,Continuous subscriptions
Buckinghamshire Council ,31.05.2023,13.05.2023,Deputy Chief Executive,Communities - DCE,RINGGO PARKING,1.65,0,1.65,Staff Travelling Expenses,Car parking & garages
Buckinghamshire Council ,31.05.2023,13.05.2023,Deputy Chief Executive,AH&R- DCE Dir,AMAZON.CO.UK,609.61,0,609.61,Members' Allowances - Travel & Subsist,Direct sales companies
Buckinghamshire Council ,31.05.2023,13.05.2023,Resources,AH&R - Res Dir,CLOUDFLARE,170.05,0,170.05,Computer Consumables,Computer software stores
Buckinghamshire Council ,31.05.2023,13.05.2023,Resources,AH&R - Res Dir,PAYPAL,13.19,0,13.19,IT - Computer Network Charges,Computer network information services
Buckinghamshire Council ,31.05.2023,13.05.2023,Deputy Chief Executive,Leader - DCE,HOME BARGAINS,10.32,0,10.32,General Provisions (Food),Hardware stores
Buckinghamshire Council ,31.05.2023,13.05.2023,"Planning, Growth & Sustainability",Planning & Regeneration - PGS,LINKEDIN ADS 9036738064,83.52,0,83.52,Advertising,Advertising services
Buckinghamshire Council ,31.05.2023,13.05.2023,"Planning, Growth & Sustainability",Planning & Regeneration - PGS,FIRST CORNWALL,2.4,0,2.4,Staff Travelling Expenses,"Buses, charter & tour"
Buckinghamshire Council ,31.05.2023,13.05.2023,Children's Services,Education & Childrens Services - CS Dir,TRAVELODGE GB0862,13,0,13,Sec 17: Accommodation,Travelodge
Buckinghamshire Council ,31.05.2023,13.05.2023,"Planning, Growth & Sustainability",Housing & Homelessness & Regulatory PGS,DUNELM SOFTFURNISHINGS,353,0,353,Furniture,Furniture & home furnishing
Buckinghamshire Council ,31.05.2023,13.05.2023,"Planning, Growth & Sustainability",Housing & Homelessness & Regulatory PGS,THE WINDOW FILM COMPANY U,268,0,268,Furniture,Drapery & upholstery shops
Buckinghamshire Council ,31.05.2023,13.05.2023,"Planning, Growth & Sustainability",Housing & Homelessness & Regulatory PGS,DUNELM LTD,935.5,0,935.5,Furniture,Drapery & upholstery shops
Buckinghamshire Council ,31.05.2023,13.05.2023,Resources,AH&R - Res Dir,OPTIMAL WORKSHOP,206.04,0,206.04,Computer Consumables,Computer software stores
Buckinghamshire Council ,31.05.2023,13.05.2023,Deputy Chief Executive,AH&R- DCE Dir,SQ *STEMS OF BEAUTY LIMIT,70,0,70,Purchase.of Refreshments and Food,Misc. general merchandise
Buckinghamshire Council ,31.05.2023,12.05.2023,Children's Services,Education & Childrens Services - CS Dir,AMZNMKTPLACE,9.99,0,9.99,Consumable Supplies,Miscellaneous retail
Buckinghamshire Council ,31.05.2023,12.05.2023,Adults and Health,Health & Wellbeing - Adults & Health Dir,TESCO SUBSCRIPTION,7.99,0,7.99,General Provisions (Food),Continuous subscriptions
Buckinghamshire Council ,31.05.2023,12.05.2023,"Planning, Growth & Sustainability",Housing & Homelessness & Regulatory PGS,LAND REGISTRY ECOM CCC,3,0,3,Homelessness,Government services
Buckinghamshire Council ,31.05.2023,12.05.2023,"Planning, Growth & Sustainability",Housing & Homelessness & Regulatory PGS,LAND REGISTRY ECOM CCC,3,0,3,Homelessness,Government services
Buckinghamshire Council ,31.05.2023,12.05.2023,"Planning, Growth & Sustainability",Housing & Homelessness & Regulatory PGS,LAND REGISTRY ECOM CCC,3,0,3,Homelessness,Government services
Buckinghamshire Council ,31.05.2023,12.05.2023,Deputy Chief Executive,Communities - DCE,WWW.ARGOS.CO.UK,220.79,44.16,264.95,Other Personal Needs,Department stores
Buckinghamshire Council ,31.05.2023,12.05.2023,Deputy Chief Executive,Communities - DCE,WWW.ARGOS.CO.UK,0.01,0,0.01,Other Personal Needs,Department stores
Buckinghamshire Council ,31.05.2023,12.05.2023,Deputy Chief Executive,Communities - DCE,WWW.ARGOS.CO.UK,602.45,120.49,722.94,Other Personal Needs,Department stores
Buckinghamshire Council ,31.05.2023,12.05.2023,Deputy Chief Executive,Communities - DCE,PAYPAL,0.01,0,0.01,Other Personal Needs,Variety stores
Buckinghamshire Council ,31.05.2023,12.05.2023,Deputy Chief Executive,Communities - DCE,PAYPAL,227.45,45.49,272.94,Other Personal Needs,Variety stores
Buckinghamshire Council ,31.05.2023,12.05.2023,Deputy Chief Executive,Communities - DCE,AO RETAIL LIMITED,0.02,0,0.02,Other Personal Needs,Household appliance stores
Buckinghamshire Council ,31.05.2023,12.05.2023,Deputy Chief Executive,Communities - DCE,AO RETAIL LIMITED,814.15,162.83,976.98,Other Personal Needs,Household appliance stores
Buckinghamshire Council ,31.05.2023,12.05.2023,Deputy Chief Executive,Communities - DCE,PAYPAL,0.01,0,0.01,Other Personal Needs,Variety stores
Buckinghamshire Council ,31.05.2023,12.05.2023,Deputy Chief Executive,Communities - DCE,PAYPAL,277.45,55.49,332.94,Other Personal Needs,Variety stores
Buckinghamshire Council ,31.05.2023,12.05.2023,Deputy Chief Executive,Communities - DCE,PAYPAL,237.5,47.5,285,Other Personal Needs,Variety stores
Buckinghamshire Council ,31.05.2023,12.05.2023,Deputy Chief Executive,Communities - DCE,AO RETAIL LIMITED,0.04,0,0.04,Other Personal Needs,Household appliance stores
Buckinghamshire Council ,31.05.2023,12.05.2023,Deputy Chief Executive,Communities - DCE,AO RETAIL LIMITED,793.3,158.66,951.96,Other Personal Needs,Household appliance stores
Buckinghamshire Council ,31.05.2023,12.05.2023,Deputy Chief Executive,Communities - DCE,AO RETAIL LIMITED,0.06,0,0.06,Other Personal Needs,Household appliance stores
Buckinghamshire Council ,31.05.2023,12.05.2023,Deputy Chief Executive,Communities - DCE,AO RETAIL LIMITED,759.95,151.99,911.94,Other Personal Needs,Household appliance stores
Buckinghamshire Council ,31.05.2023,12.05.2023,Deputy Chief Executive,Communities - DCE,AO RETAIL LIMITED,0.04,0,0.04,Other Personal Needs,Household appliance stores
Buckinghamshire Council ,31.05.2023,12.05.2023,Deputy Chief Executive,Communities - DCE,AO RETAIL LIMITED,278.3,55.66,333.96,Other Personal Needs,Household appliance stores
Buckinghamshire Council ,31.05.2023,12.05.2023,Deputy Chief Executive,Communities - DCE,AO RETAIL LIMITED,485.83,97.17,583,Other Personal Needs,Household appliance stores
Buckinghamshire Council ,31.05.2023,12.05.2023,Deputy Chief Executive,Communities - DCE,WWW.ARGOS.CO.UK,310.79,62.16,372.95,Other Personal Needs,Department stores
Buckinghamshire Council ,31.05.2023,12.05.2023,Deputy Chief Executive,Communities - DCE,AO RETAIL LIMITED,0.02,0,0.02,Other Personal Needs,Household appliance stores
Buckinghamshire Council ,31.05.2023,12.05.2023,Deputy Chief Executive,Communities - DCE,AO RETAIL LIMITED,764.15,152.83,916.98,Other Personal Needs,Household appliance stores
Buckinghamshire Council ,31.05.2023,12.05.2023,Deputy Chief Executive,Communities - DCE,PAYPAL,0.04,0,0.04,Other Personal Needs,Variety stores
Buckinghamshire Council ,31.05.2023,12.05.2023,Deputy Chief Executive,Communities - DCE,PAYPAL,118.3,23.66,141.96,Other Personal Needs,Variety stores
Buckinghamshire Council ,31.05.2023,12.05.2023,Communities,Culture & Leisure - Communities Dir,VISTAPRINT,242,0,242,Events Expenditure,Misc business services
Buckinghamshire Council ,31.05.2023,12.05.2023,Children's Services,Education & Childrens Services - CS Dir,BUCKINGHAMSHIRE CNCL,33,0,33,Sec 20/31: Specialist Services,Government services
Buckinghamshire Council ,31.05.2023,12.05.2023,Communities,Climate Change & Environment - Community,HALFORDS E.COMM,-741,0,-741,Repair & Maint of Vehicles & Plant,Automotive parts & accessories
Buckinghamshire Council ,31.05.2023,12.05.2023,Children's Services,Education & Childrens Services - CS Dir,ASDA STORES LTD,30,0,30,Sec 17: Financial Assistance One Off,Grocery stores
Buckinghamshire Council ,31.05.2023,12.05.2023,"Planning, Growth & Sustainability",Housing & Homelessness & Regulatory PGS,LAND REGISTRY ECOM CCC,3,0,3,Homelessness,Government services
Buckinghamshire Council ,31.05.2023,12.05.2023,"Planning, Growth & Sustainability",Housing & Homelessness & Regulatory PGS,LAND REGISTRY ECOM CCC,3,0,3,Homelessness,Government services
Buckinghamshire Council ,31.05.2023,12.05.2023,Communities,Culture & Leisure - Communities Dir,AMZ*AMAZON.CO.UK,-20.29,0,-20.29,Administrative Equipment & Tools,Miscellaneous retail
Buckinghamshire Council ,31.05.2023,12.05.2023,Adults and Health,Health & Wellbeing - Adults & Health Dir,TESCO STORES 5135,166.31,0,166.31,General Provisions (Food),Grocery stores
Buckinghamshire Council ,31.05.2023,12.05.2023,"Planning, Growth & Sustainability",Planning & Regeneration - PGS,THE MYERSBRIGGS COMPANY L,59.4,0,59.4,Course Fees & Post Entry Training,Misc business services
Buckinghamshire Council ,31.05.2023,12.05.2023,Communities,artnerships - Communities,ZETTLE_*DORNEY LAKE,36.5,0,36.5,Subsistence,Restaurants
Buckinghamshire Council ,31.05.2023,12.05.2023,Communities,Housing & Homelessness & Regulatory Comm,DERBYSHIRE AGGREGATES ECO,293.2,0,293.2,Maintenance of Grounds,Timber & building supplies
Buckinghamshire Council ,31.05.2023,12.05.2023,Communities,Housing & Homelessness & Regulatory Comm,WWW.OFFICEFURNITUREONLINE,459,91.8,550.8,Furniture,Office & commercial furniture
Buckinghamshire Council ,31.05.2023,12.05.2023,Communities,Housing & Homelessness & Regulatory Comm,TIMPSON LTD,31.5,0,31.5,General Repairs & Maintenance,Miscellaneous retail
Buckinghamshire Council ,31.05.2023,12.05.2023,Children's Services,Education & Childrens Services - CS Dir,MAILCHIMP,217.17,0,217.17,Service Development,
Buckinghamshire Council ,31.05.2023,12.05.2023,Children's Services,Education & Childrens Services - CS Dir,AMZNMKTPLACE,22.09,0,22.09,Consumable Supplies,Miscellaneous retail
Buckinghamshire Council ,31.05.2023,12.05.2023,Communities,Transport - Communities Dir,WWW.SCREWFIX.COM,368.13,0,368.13,General Repairs & Maintenance,Timber & building supplies
Buckinghamshire Council ,31.05.2023,12.05.2023,Adults and Health,Health & Wellbeing - Adults & Health Dir,TESCO STORES 2162,15.4,0,15.4,General Provisions (Food),Grocery stores
Buckinghamshire Council ,31.05.2023,12.05.2023,Children's Services,artnerships - Children's Services,EB *REVIEWING CHILD DE,27.8,0,27.8,Course Fees & Post Entry Training,Misc business services
Buckinghamshire Council ,31.05.2023,12.05.2023,Children's Services,Education & Childrens Services - CS Dir,ASDA GROCERIES ONLINE,48.36,0,48.36,General Provisions (Food),Grocery stores
Buckinghamshire Council ,31.05.2023,12.05.2023,Adults and Health,Health & Wellbeing - Adults & Health Dir,TRAVELODGE GB0000,"1,885.87",0,"1,885.87",Other Short Term Support,Travelodge
Buckinghamshire Council ,31.05.2023,12.05.2023,Communities,Climate Change & Environment - Community,PAYPAL,60,0,60,Advertising,Advertising services
Buckinghamshire Council ,31.05.2023,12.05.2023,Children's Services,Education & Childrens Services - CS Dir,HM PASSPORT OFFICE,53.5,0,53.5,Sec 20/31: Financial Assistance,Government services
Buckinghamshire Council ,31.05.2023,12.05.2023,Children's Services,Education & Childrens Services - CS Dir,HM PASSPORT OFFICE,53.5,0,53.5,Sec 20/31: Financial Assistance,Government services
Buckinghamshire Council ,31.05.2023,12.05.2023,Children's Services,Education & Childrens Services - CS Dir,BUCKINGHAMSHIRE CNCL,11,0,11,Sec 20/31: Financial Assistance,Government services
Buckinghamshire Council ,31.05.2023,12.05.2023,Children's Services,Education & Childrens Services - CS Dir,BUCKINGHAMSHIRE CNCL,11,0,11,Sec 20/31: Financial Assistance,Government services
Buckinghamshire Council ,31.05.2023,12.05.2023,Children's Services,Education & Childrens Services - CS Dir,BUCKINGHAMSHIRE CNCL,11,0,11,Sec 20/31: Financial Assistance,Government services
Buckinghamshire Council ,31.05.2023,12.05.2023,Children's Services,Education & Childrens Services - CS Dir,MARKS&SPENCER PLC,20,0,20,Furniture,Grocery stores
Buckinghamshire Council ,31.05.2023,12.05.2023,Children's Services,Education & Childrens Services - CS Dir,MARKS&SPENCER PLC,20,0,20,Furniture,Grocery stores
Buckinghamshire Council ,31.05.2023,12.05.2023,Children's Services,Education & Childrens Services - CS Dir,MARKS&SPENCER PLC,20,0,20,Furniture,Grocery stores
Buckinghamshire Council ,31.05.2023,12.05.2023,Children's Services,Education & Childrens Services - CS Dir,MARKS&SPENCER PLC,20,0,20,Furniture,Grocery stores
Buckinghamshire Council ,31.05.2023,12.05.2023,Children's Services,Education & Childrens Services - CS Dir,MARKS&SPENCER PLC,20,0,20,Furniture,Grocery stores
Buckinghamshire Council ,31.05.2023,12.05.2023,Children's Services,Education & Childrens Services - CS Dir,MARKS&SPENCER PLC,20,0,20,Furniture,Grocery stores
Buckinghamshire Council ,31.05.2023,12.05.2023,Children's Services,Education & Childrens Services - CS Dir,MARKS&SPENCER PLC,20,0,20,Furniture,Grocery stores
Buckinghamshire Council ,31.05.2023,12.05.2023,Children's Services,Education & Childrens Services - CS Dir,MARKS&SPENCER PLC,20,0,20,Furniture,Grocery stores
Buckinghamshire Council ,31.05.2023,12.05.2023,Children's Services,Education & Childrens Services - CS Dir,AMZNMKTPLACE,21.99,0,21.99,Furniture,Miscellaneous retail
Buckinghamshire Council ,31.05.2023,12.05.2023,Children's Services,Education & Childrens Services - CS Dir,SMYTHS AYLESBURY,18.99,0,18.99,Activities & General Recreation,"Hobby, toy & game shops"
Buckinghamshire Council ,31.05.2023,12.05.2023,Resources,AH&R - Res Dir,GMO GLOBALSIGN LIM,356.4,0,356.4,Annual Licence (IT),Computer network information services
Buckinghamshire Council ,31.05.2023,12.05.2023,Resources,AH&R - Res Dir,PAYPAL,8.99,0,8.99,IT - Computer Network Charges,Computer network information services
Buckinghamshire Council ,31.05.2023,12.05.2023,"Planning, Growth & Sustainability",AH&R - PGS Dir,WWW.MONEYCLAIM.GOV,70,0,70,Court Fees,Government services
Buckinghamshire Council ,31.05.2023,12.05.2023,"Planning, Growth & Sustainability",AH&R - PGS Dir,WWW.MONEYCLAIM.GOV,966.19,0,966.19,Court Fees,Government services
Buckinghamshire Council ,31.05.2023,12.05.2023,"Planning, Growth & Sustainability",AH&R - PGS Dir,ROYAL MAIL GROUP LTD,22.5,0,22.5,General Postage,Postal services
Buckinghamshire Council ,31.05.2023,12.05.2023,"Planning, Growth & Sustainability",AH&R - PGS Dir,WWW.MONEYCLAIM.GOV,83,0,83,Court Fees,Government services
Buckinghamshire Council ,31.05.2023,12.05.2023,"Planning, Growth & Sustainability",AH&R - PGS Dir,ROYAL MAIL GROUP LTD,8.6,0,8.6,General Postage,Postal services
Buckinghamshire Council ,31.05.2023,12.05.2023,Children's Services,Education & Childrens Services - CS Dir,ASDA SUPERSTORE,1.5,0,1.5,Other Equipment and Materials,Grocery stores
Buckinghamshire Council ,31.05.2023,12.05.2023,Deputy Chief Executive,AH&R- DCE Dir,WWW.ARGOS.CO.UK,54.95,10.99,65.94,Miscellaneous (Other)  Expenses,Department stores
Buckinghamshire Council ,31.05.2023,12.05.2023,Deputy Chief Executive,AH&R- DCE Dir,WWW.ARGOS.CO.UK,123.2,24.64,147.84,Miscellaneous (Other)  Expenses,Department stores
Buckinghamshire Council ,31.05.2023,12.05.2023,Deputy Chief Executive,AH&R- DCE Dir,WWW.ARGOS.CO.UK,0.11,0,0.11,Miscellaneous (Other)  Expenses,Department stores
Buckinghamshire Council ,31.05.2023,12.05.2023,Deputy Chief Executive,AH&R- DCE Dir,PAYPAL,559.15,111.83,670.98,Miscellaneous (Other)  Expenses,Variety stores
Buckinghamshire Council ,31.05.2023,12.05.2023,Deputy Chief Executive,AH&R- DCE Dir,PAYPAL,55.02,0,55.02,Miscellaneous (Other)  Expenses,Variety stores
Buckinghamshire Council ,31.05.2023,12.05.2023,Deputy Chief Executive,AH&R- DCE Dir,PAYPAL,222.5,44.5,267,Miscellaneous (Other)  Expenses,Variety stores
Buckinghamshire Council ,31.05.2023,12.05.2023,Deputy Chief Executive,AH&R- DCE Dir,PAYPAL,686.6,137.32,823.92,Miscellaneous (Other)  Expenses,Variety stores
Buckinghamshire Council ,31.05.2023,12.05.2023,Deputy Chief Executive,AH&R- DCE Dir,PAYPAL,0.03,0,0.03,Miscellaneous (Other)  Expenses,Variety stores
Buckinghamshire Council ,31.05.2023,12.05.2023,Deputy Chief Executive,AH&R- DCE Dir,PAYPAL,813.73,162.76,976.49,Miscellaneous (Other)  Expenses,Variety stores
Buckinghamshire Council ,31.05.2023,12.05.2023,Deputy Chief Executive,AH&R- DCE Dir,PAYPAL,542.8,108.56,651.36,Miscellaneous (Other)  Expenses,Variety stores
Buckinghamshire Council ,31.05.2023,12.05.2023,Deputy Chief Executive,AH&R- DCE Dir,PAYPAL,0.14,0,0.14,Miscellaneous (Other)  Expenses,Variety stores
Buckinghamshire Council ,31.05.2023,12.05.2023,Deputy Chief Executive,AH&R- DCE Dir,PAYPAL,509.1,101.82,610.92,Miscellaneous (Other)  Expenses,Variety stores
Buckinghamshire Council ,31.05.2023,12.05.2023,Deputy Chief Executive,AH&R- DCE Dir,PAYPAL,0.03,0,0.03,Miscellaneous (Other)  Expenses,Variety stores
Buckinghamshire Council ,31.05.2023,12.05.2023,Deputy Chief Executive,AH&R- DCE Dir,PAYPAL,89.95,17.99,107.94,Miscellaneous (Other)  Expenses,Variety stores
Buckinghamshire Council ,31.05.2023,12.05.2023,Deputy Chief Executive,AH&R- DCE Dir,PAYPAL,0.01,0,0.01,Miscellaneous (Other)  Expenses,Variety stores
Buckinghamshire Council ,31.05.2023,12.05.2023,Deputy Chief Executive,AH&R- DCE Dir,PAYPAL,119.12,23.83,142.95,Miscellaneous (Other)  Expenses,Variety stores
Buckinghamshire Council ,31.05.2023,12.05.2023,Deputy Chief Executive,AH&R- DCE Dir,PAYPAL,-55,0,-55,Miscellaneous (Other)  Expenses,Variety stores
Buckinghamshire Council ,31.05.2023,12.05.2023,Children's Services,Education & Childrens Services - CS Dir,TRAVELODGE GB0862,6.5,0,6.5,Sec 17: Accommodation,Travelodge
Buckinghamshire Council ,31.05.2023,12.05.2023,Children's Services,Education & Childrens Services - CS Dir,TRAVELODGE GB0862,6.5,0,6.5,Sec 17: Accommodation,Travelodge
Buckinghamshire Council ,31.05.2023,12.05.2023,Communities,Climate Change & Environment - Community,AMZ,-12.98,0,-12.98,Health & Safety Supplies & Services,Direct sales companies
Buckinghamshire Council ,31.05.2023,12.05.2023,Communities,Culture & Leisure - Communities Dir,AMZNMKTPLACE,42.89,0,42.89,Administrative Equipment & Tools,Miscellaneous retail
Buckinghamshire Council ,31.05.2023,12.05.2023,"Planning, Growth & Sustainability",Housing & Homelessness & Regulatory PGS,BT BUSINESS BILL,145.47,0,145.47,Telephones,Phone services
Buckinghamshire Council ,31.05.2023,12.05.2023,"Planning, Growth & Sustainability",Housing & Homelessness & Regulatory PGS,AMZNMKTPLACE,263.29,0,263.29,Furniture,Miscellaneous retail
Buckinghamshire Council ,31.05.2023,12.05.2023,"Planning, Growth & Sustainability",Housing & Homelessness & Regulatory PGS,IKEA LTD SHOP ONLINE,"1,874.00",0,"1,874.00",Furniture,Furniture & home furnishing
Buckinghamshire Council ,31.05.2023,12.05.2023,Children's Services,Education & Childrens Services - CS Dir,ARRIVA UK BUS,28.6,0,28.6,Sec 20/31: Supp for Contact,"Buses, charter & tour"
Buckinghamshire Council ,31.05.2023,12.05.2023,Communities,Culture & Leisure - Communities Dir,123 REG LTD 007440317,81.56,0,81.56,Computer Support Services,Computer network information services
Buckinghamshire Council ,31.05.2023,12.05.2023,Adults and Health,Health & Wellbeing - Adults & Health Dir,WM MORRISONS STORE,18.09,0,18.09,General Provisions (Food),Grocery stores
Buckinghamshire Council ,31.05.2023,12.05.2023,Children's Services,Education & Childrens Services - CS Dir,NEALES TAXIS LTD,600,120,720,Sec 17: Financial Assistance One Off,Taxicabs & limousines
Buckinghamshire Council ,31.05.2023,12.05.2023,Children's Services,Education & Childrens Services - CS Dir,NEALES TAXIS LTD,83.33,16.67,100,Sec 17: Transport,Taxicabs & limousines
Buckinghamshire Council ,31.05.2023,12.05.2023,Children's Services,Education & Childrens Services - CS Dir,NEALES TAXIS LTD,400,80,480,Sec 17: Transport,Taxicabs & limousines
Buckinghamshire Council ,31.05.2023,11.05.2023,Resources,AH&R - Res Dir,GEN REGISTER OFFICE,-7.5,0,-7.5,Miscellaneous (Other)  Expenses,Government services
Buckinghamshire Council ,31.05.2023,11.05.2023,Children's Services,Education & Childrens Services - CS Dir,AMZNMKTPLACE,25.48,0,25.48,Leaving Care - Grants for Care Leavers,Miscellaneous retail
Buckinghamshire Council ,31.05.2023,11.05.2023,Adults and Health,Health & Wellbeing - Adults & Health Dir,SAINSBURYS S/MKTS,16.8,0,16.8,Activities & General Recreation,Grocery stores
Buckinghamshire Council ,31.05.2023,11.05.2023,Communities,Housing & Homelessness & Regulatory PGS,CHARTERED INSTITUTE OF EN,246,0,246,Professional Subscriptions re Employees,Charitable organisations
Buckinghamshire Council ,31.05.2023,11.05.2023,Adults and Health,Health & Wellbeing - Adults & Health Dir,EB *COMMUNITY-LED APPR,180,36,216,"Courses, Conference and Seminar Fees",Misc business services
Buckinghamshire Council ,31.05.2023,11.05.2023,Deputy Chief Executive,Communities - DCE,PAYPAL,227.45,45.49,272.94,Other Personal Needs,Variety stores
Buckinghamshire Council ,31.05.2023,11.05.2023,Deputy Chief Executive,Communities - DCE,PAYPAL,0.01,0,0.01,Other Personal Needs,Variety stores
Buckinghamshire Council ,31.05.2023,11.05.2023,Deputy Chief Executive,Communities - DCE,WWW.ARGOS.CO.UK,227.45,45.49,272.94,Other Personal Needs,Department stores
Buckinghamshire Council ,31.05.2023,11.05.2023,Deputy Chief Executive,Communities - DCE,WWW.ARGOS.CO.UK,0.01,0,0.01,Other Personal Needs,Department stores
Buckinghamshire Council ,31.05.2023,11.05.2023,Deputy Chief Executive,Communities - DCE,WWW.ARGOS.CO.UK,152.45,30.49,182.94,Other Personal Needs,Department stores
Buckinghamshire Council ,31.05.2023,11.05.2023,Deputy Chief Executive,Communities - DCE,WWW.ARGOS.CO.UK,0.01,0,0.01,Other Personal Needs,Department stores
Buckinghamshire Council ,31.05.2023,11.05.2023,Deputy Chief Executive,Communities - DCE,WWW.ARGOS.CO.UK,227.45,45.49,272.94,Other Personal Needs,Department stores
Buckinghamshire Council ,31.05.2023,11.05.2023,Deputy Chief Executive,Communities - DCE,WWW.ARGOS.CO.UK,0.01,0,0.01,Other Personal Needs,Department stores
Buckinghamshire Council ,31.05.2023,11.05.2023,Deputy Chief Executive,Communities - DCE,AO RETAIL LIMITED,751.65,150.33,901.98,Other Personal Needs,Household appliance stores
Buckinghamshire Council ,31.05.2023,11.05.2023,Deputy Chief Executive,Communities - DCE,AO RETAIL LIMITED,0.02,0,0.02,Other Personal Needs,Household appliance stores
Buckinghamshire Council ,31.05.2023,11.05.2023,Deputy Chief Executive,Communities - DCE,PAYPAL,39.15,7.83,46.98,Other Personal Needs,Variety stores
Buckinghamshire Council ,31.05.2023,11.05.2023,Deputy Chief Executive,Communities - DCE,PAYPAL,0.02,0,0.02,Other Personal Needs,Variety stores
Buckinghamshire Council ,31.05.2023,11.05.2023,Deputy Chief Executive,Communities - DCE,WWW.ARGOS.CO.UK,227.45,45.49,272.94,Other Personal Needs,Department stores
Buckinghamshire Council ,31.05.2023,11.05.2023,Deputy Chief Executive,Communities - DCE,WWW.ARGOS.CO.UK,0.01,0,0.01,Other Personal Needs,Department stores
Buckinghamshire Council ,31.05.2023,11.05.2023,Deputy Chief Executive,Communities - DCE,AO RETAIL LIMITED,373.3,74.66,447.96,Other Personal Needs,Household appliance stores
Buckinghamshire Council ,31.05.2023,11.05.2023,Deputy Chief Executive,Communities - DCE,AO RETAIL LIMITED,0.04,0,0.04,Other Personal Needs,Household appliance stores
Buckinghamshire Council ,31.05.2023,11.05.2023,Deputy Chief Executive,Communities - DCE,AO RETAIL LIMITED,132.5,26.5,159,Other Personal Needs,Household appliance stores
Buckinghamshire Council ,31.05.2023,11.05.2023,Deputy Chief Executive,Communities - DCE,AO RETAIL LIMITED,-1,0,-1,Other Personal Needs,Household appliance stores
Buckinghamshire Council ,31.05.2023,11.05.2023,Children's Services,Education & Childrens Services - CS Dir,NEALES TAXIS LTD,"2,083.33",416.67,"2,500.00",Sec 20/31: Transport,Taxicabs & limousines
Buckinghamshire Council ,31.05.2023,11.05.2023,Children's Services,Education & Childrens Services - CS Dir,THE RANGE,48.18,0,48.18,General Provisions (Food),Department stores
Buckinghamshire Council ,31.05.2023,11.05.2023,Children's Services,Education & Childrens Services - CS Dir,AYLESBURY PIZZA,58,0,58,Activities & General Recreation,Fast food restaurants
Buckinghamshire Council ,31.05.2023,11.05.2023,Children's Services,Education & Childrens Services - CS Dir,POUNDLAND LTD - 2492,13,0,13,Other Personal Needs,Discount stores
Buckinghamshire Council ,31.05.2023,11.05.2023,Communities,Transport - PGS Dir,WWW.THESAFETYSUPPLYCOM,151.87,0,151.87,Health & Safety Supplies & Services,Misc. general merchandise
Buckinghamshire Council ,31.05.2023,11.05.2023,Children's Services,Education & Childrens Services - CS Dir,SCHUDIOTV,12,0,12,Training Materials,Schools
Buckinghamshire Council ,31.05.2023,11.05.2023,"Planning, Growth & Sustainability",AH&R - PGS Dir,LONDIS,8.1,0,8.1,General Provisions (Food),Sweets & confectionary
Buckinghamshire Council ,31.05.2023,11.05.2023,Communities,Housing & Homelessness & Regulatory Comm,AMAZON.CO.UK,106.99,0,106.99,Stationery & Office Supplies,Direct sales companies
Buckinghamshire Council ,31.05.2023,11.05.2023,Resources,AH&R - Res Dir,GEN REGISTER OFFICE,14,0,14,Miscellaneous (Other)  Expenses,Government services
Buckinghamshire Council ,31.05.2023,11.05.2023,Resources,AH&R - Res Dir,BUCKINGHAMSHIRE CNCL,11,0,11,Miscellaneous (Other)  Expenses,Government services
Buckinghamshire Council ,31.05.2023,11.05.2023,Communities,Culture & Leisure - Communities Dir,WH SMITH BUCKINGHAM,8.99,0,8.99,"Books, Records, Films & Oth Publications",Newspapers / newsagents
Buckinghamshire Council ,31.05.2023,11.05.2023,Children's Services,Education & Childrens Services - CS Dir,SLOUGH B/C ATP,11,0,11,Sec 20/31: Financial Assistance,Government services
Buckinghamshire Council ,31.05.2023,11.05.2023,Communities,artnerships - Communities,COSTA COFFEE BEDGROVE,6.55,0,6.55,Subsistence,Fast food restaurants
Buckinghamshire Council ,31.05.2023,11.05.2023,Adults and Health,Health & Wellbeing - Adults & Health Dir,SAINSBURYS S/MKTS,19,0,19,Activities & General Recreation,Grocery stores
Buckinghamshire Council ,31.05.2023,11.05.2023,"Planning, Growth & Sustainability",AH&R - PGS Dir,AMZNMKTPLACE,19.98,0,19.98,Protective Clothing & Uniforms,Miscellaneous retail
Buckinghamshire Council ,31.05.2023,11.05.2023,"Planning, Growth & Sustainability",AH&R - PGS Dir,SCREWFIX DIR LTD,33.99,0,33.99,General Repairs & Maintenance,Timber & building supplies
Buckinghamshire Council ,31.05.2023,11.05.2023,Deputy Chief Executive,AH&R- DCE Dir,SAINSBURY S S/MKTS,14,0,14,Miscellaneous (Other)  Expenses,Grocery stores
Buckinghamshire Council ,31.05.2023,11.05.2023,Deputy Chief Executive,Communities - DCE,RINGGO PARKING,2.25,0,2.25,Staff Travelling Expenses,Car parking & garages
Buckinghamshire Council ,31.05.2023,11.05.2023,Communities,Culture & Leisure - Communities Dir,AMAZON.CO.UK,86.6,17.32,103.92,Protective Clothing & Uniforms,Direct sales companies
Buckinghamshire Council ,31.05.2023,11.05.2023,Communities,Culture & Leisure - Communities Dir,AMAZON.CO.UK,0.02,0,0.02,Protective Clothing & Uniforms,Direct sales companies
Buckinghamshire Council ,31.05.2023,11.05.2023,Communities,Transport - Communities Dir,LUL TICKET MACHINE,16.2,0,16.2,Staff Travelling Expenses,Passenger railways
Buckinghamshire Council ,31.05.2023,11.05.2023,Communities,Culture & Leisure - Communities Dir,AMZNMKTPLACE,9.65,1.93,11.58,Events Expenditure,Miscellaneous retail
Buckinghamshire Council ,31.05.2023,11.05.2023,Children's Services,Education & Childrens Services - CS Dir,B&Q LTD,166,0,166,General Repairs & Maintenance,Timber & building supplies
Buckinghamshire Council ,31.05.2023,11.05.2023,Adults and Health,Health & Wellbeing - Adults & Health Dir,TRAVELODGE GB0000,"1,449.58",0,"1,449.58",Other Short Term Support,Travelodge
Buckinghamshire Council ,31.05.2023,11.05.2023,Adults and Health,Health & Wellbeing - Adults & Health Dir,TRAVELODGE GB0000,63.98,0,63.98,Other Short Term Support,Travelodge
Buckinghamshire Council ,31.05.2023,11.05.2023,Deputy Chief Executive,AH&R- DCE Dir,WWW.CANFORD.CO.UK,158.4,0,158.4,General Repairs & Maintenance,Electrical parts & equipment
Buckinghamshire Council ,31.05.2023,11.05.2023,Resources,AH&R - Res Dir,WWW.CIPS.ORG,223,0,223,Other Training Expenses,Membership organisations
Buckinghamshire Council ,31.05.2023,11.05.2023,Resources,AH&R - Res Dir,WWW.CIPS.ORG,223,0,223,Long Service Awards,Membership organisations
Buckinghamshire Council ,31.05.2023,11.05.2023,Communities,Climate Change & Environment - Community,AYLESBURY SSTP,30.7,0,30.7,Staff Travelling Expenses,Passenger railways
Buckinghamshire Council ,31.05.2023,11.05.2023,Communities,Climate Change & Environment - Community,CMT UK LTD TAXI FARE,8.4,0,8.4,Staff Travelling Expenses,Taxicabs & limousines
Buckinghamshire Council ,31.05.2023,11.05.2023,Communities,Culture & Leisure - Communities Dir,TIMPSON LTD,11.25,2.25,13.5,Administrative Equipment & Tools,Miscellaneous retail
Buckinghamshire Council ,31.05.2023,11.05.2023,Deputy Chief Executive,AH&R- DCE Dir,AMZNMKTPLACE,299.94,0,299.94,IT Equipment Maintenance,Miscellaneous retail
Buckinghamshire Council ,31.05.2023,11.05.2023,Resources,AH&R - Res Dir,GMO GLOBALSIGN LIM,615.6,0,615.6,Annual Licence (IT),Computer network information services
Buckinghamshire Council ,31.05.2023,11.05.2023,Children's Services,Education & Childrens Services - CS Dir,TESCO STORES 2041,26.53,0,26.53,General Provisions (Food),Grocery stores
Buckinghamshire Council ,31.05.2023,11.05.2023,Communities,Culture & Leisure - Communities Dir,AMZNMKTPLACE,19.99,0,19.99,Administrative Equipment & Tools,Miscellaneous retail
Buckinghamshire Council ,31.05.2023,11.05.2023,"Planning, Growth & Sustainability",AH&R - PGS Dir,AMAZON.CO.UK,250,0,250,Long Service Awards,Direct sales companies
Buckinghamshire Council ,31.05.2023,11.05.2023,"Planning, Growth & Sustainability",AH&R - PGS Dir,WILKO RETAIL LIMITED,2.08,0.42,2.5,General Repairs & Maintenance,Misc. general merchandise
Buckinghamshire Council ,31.05.2023,11.05.2023,Children's Services,Education & Childrens Services - CS Dir,WWW.BUCKINGHAMSHIRE.GOV,273.61,0,273.61,Leaving Care  - Financial Assistance,Government services
Buckinghamshire Council ,31.05.2023,11.05.2023,Children's Services,Education & Childrens Services - CS Dir,TESCO STORES 5927,4,0,4,General Provisions (Food),Grocery stores
Buckinghamshire Council ,31.05.2023,11.05.2023,Communities,ommunities - Trust Accounts,HOME & INTERIORS,11,0,11,General Repairs & Maintenance,Misc. general merchandise
Buckinghamshire Council ,31.05.2023,11.05.2023,Communities,ommunities - Trust Accounts,TRAVIS PERKINS,210,0,210,General Repairs & Maintenance,Timber & building supplies
Buckinghamshire Council ,31.05.2023,11.05.2023,Deputy Chief Executive,AH&R- DCE Dir,WWW.ARGOS.CO.UK,159.1,31.82,190.92,Miscellaneous (Other)  Expenses,Department stores
Buckinghamshire Council ,31.05.2023,11.05.2023,Deputy Chief Executive,AH&R- DCE Dir,WWW.ARGOS.CO.UK,0.03,0,0.03,Miscellaneous (Other)  Expenses,Department stores
Buckinghamshire Council ,31.05.2023,11.05.2023,Deputy Chief Executive,AH&R- DCE Dir,DUNELM SOFTFURNISHINGS,478.95,0,478.95,Miscellaneous (Other)  Expenses,Furniture & home furnishing
Buckinghamshire Council ,31.05.2023,11.05.2023,Children's Services,Education & Childrens Services - CS Dir,TRAVELODGE GB0862,6.5,0,6.5,Sec 17: Accommodation,Travelodge
Buckinghamshire Council ,31.05.2023,11.05.2023,Children's Services,Education & Childrens Services - CS Dir,TRAVELODGE GB0000,791.63,0,791.63,Sec 17: Accommodation,Travelodge
Buckinghamshire Council ,31.05.2023,11.05.2023,Children's Services,Education & Childrens Services - CS Dir,NEALES TAXIS LTD,138,0,138,Sec 17: Financial Assistance,Taxicabs & limousines
Buckinghamshire Council ,31.05.2023,11.05.2023,Children's Services,Education & Childrens Services - CS Dir,TRAVELODGE GB0862,6.5,0,6.5,Sec 17: Accommodation,Travelodge
Buckinghamshire Council ,31.05.2023,11.05.2023,Deputy Chief Executive,AH&R- DCE Dir,TAXIPAY,76,0,76,Staff Travelling Expenses,Taxicabs & limousines
Buckinghamshire Council ,31.05.2023,11.05.2023,Adults and Health,Health & Wellbeing - Adults & Health Dir,AMZNMKTPLACE,49.9,9.98,59.88,Medical Supplies & Services inc Vet'nary,Miscellaneous retail
Buckinghamshire Council ,31.05.2023,11.05.2023,Adults and Health,Health & Wellbeing - Adults & Health Dir,AMZNMKTPLACE,0.06,0,0.06,Medical Supplies & Services inc Vet'nary,Miscellaneous retail
Buckinghamshire Council ,31.05.2023,11.05.2023,Children's Services,Education & Childrens Services - CS Dir,TRAVELODGE GB0000,96.88,0,96.88,"Courses, Conference and Seminar Fees",Travelodge
Buckinghamshire Council ,31.05.2023,11.05.2023,"Planning, Growth & Sustainability",Planning & Regeneration - PGS,NEW YORK DELI GATEHOUSE,114.48,0,114.48,Subsistence,Restaurants
Buckinghamshire Council ,31.05.2023,11.05.2023,Adults and Health,Health & Wellbeing - Adults & Health Dir,AMZNMKTPLACE,32.2,0,32.2,Other Personal Needs,Miscellaneous retail
Buckinghamshire Council ,31.05.2023,11.05.2023,Resources,AH&R - Res Dir,SLACK T181RTHAL,14.28,0,14.28,Computer Consumables,Computer software stores
Buckinghamshire Council ,31.05.2023,11.05.2023,Children's Services,Education & Childrens Services - CS Dir,LYNKPAY.CO.UK,147.9,0,147.9,Sec 20/31: Transport,
Buckinghamshire Council ,31.05.2023,11.05.2023,Children's Services,Education & Childrens Services - CS Dir,LYNKPAY.CO.UK,147.9,0,147.9,Sec 20/31: Transport,
Buckinghamshire Council ,31.05.2023,11.05.2023,Children's Services,Education & Childrens Services - CS Dir,ZARA.COM,100,0,100,Other Employees Expenses,Family clothing shops
Buckinghamshire Council ,31.05.2023,11.05.2023,Children's Services,Education & Childrens Services - CS Dir,PREMIER INN,58.5,0,58.5,"Courses, Conference and Seminar Fees",Premier Inn
Buckinghamshire Council ,31.05.2023,10.05.2023,Resources,Communities - Resources,AMZNMKTPLACE,958.46,0,958.46,Emergency Expenses,Miscellaneous retail
Buckinghamshire Council ,31.05.2023,10.05.2023,Communities,Culture & Leisure - Communities Dir,FACEBK WBXSJMXJB2,23.57,0,23.57,Advertising,Advertising services
Buckinghamshire Council ,31.05.2023,10.05.2023,Children's Services,Education & Childrens Services - CS Dir,AMZNMKTPLACE,2.8,0,2.8,Activities & General Recreation,Miscellaneous retail
Buckinghamshire Council ,31.05.2023,10.05.2023,Adults and Health,Health & Wellbeing - Adults & Health Dir,AMZNMKTPLACE,109.69,0,109.69,Miscellaneous (Other)  Expenses,Miscellaneous retail
Buckinghamshire Council ,31.05.2023,10.05.2023,Adults and Health,Health & Wellbeing - Adults & Health Dir,ASDA SUPERSTORE,4.35,0,4.35,General Provisions (Food),Grocery stores
Buckinghamshire Council ,31.05.2023,10.05.2023,Children's Services,Education & Childrens Services - CS Dir,SAINSBURYS,11.65,0,11.65,"Exp of School, Club & College Activities",Grocery stores
Buckinghamshire Council ,31.05.2023,10.05.2023,Deputy Chief Executive,Communities - DCE,AO RETAIL LIMITED,810,162,972,Other Personal Needs,Household appliance stores
Buckinghamshire Council ,31.05.2023,10.05.2023,Deputy Chief Executive,Communities - DCE,WWW.ARGOS.CO.UK,602.45,120.49,722.94,Other Personal Needs,Department stores
Buckinghamshire Council ,31.05.2023,10.05.2023,Deputy Chief Executive,Communities - DCE,WWW.ARGOS.CO.UK,0.01,0,0.01,Other Personal Needs,Department stores
Buckinghamshire Council ,31.05.2023,10.05.2023,Deputy Chief Executive,Communities - DCE,AO RETAIL LIMITED,822.5,164.5,987,Other Personal Needs,Household appliance stores
Buckinghamshire Council ,31.05.2023,10.05.2023,Children's Services,Education & Childrens Services - CS Dir,WWW.BUCKINGHAMSHIRE.GOV,98.1,0,98.1,Leaving Care  - Financial Assistance,Government services
Buckinghamshire Council ,31.05.2023,10.05.2023,Deputy Chief Executive,Communities - DCE,PRINT WORLD,6,0,6,Stationery & Office Supplies,Stationery & office supplies stores
Buckinghamshire Council ,31.05.2023,10.05.2023,Children's Services,Education & Childrens Services - CS Dir,HM PASSPORT OFFICE,58.5,0,58.5,Sec 20/31: Specialist Services,Government services
Buckinghamshire Council ,31.05.2023,10.05.2023,"Planning, Growth & Sustainability",Housing & Homelessness & Regulatory PGS,LAND REGISTRY ECOM CCC,3,0,3,Homelessness,Government services
Buckinghamshire Council ,31.05.2023,10.05.2023,Communities,Housing & Homelessness & Regulatory Comm,FLOWERLAND IVER,98.95,0,98.95,Seeds & Plants,Lawn & garden supply/nursery
Buckinghamshire Council ,31.05.2023,10.05.2023,Communities,Transport - Communities Dir,KWIK FIT,162.38,0,162.38,Vehicle Hire,Auto servicing
Buckinghamshire Council ,31.05.2023,10.05.2023,Resources,Communities - Resources,AMZNMKTPLACE,991.69,0,991.69,Equipment,Miscellaneous retail
Buckinghamshire Council ,31.05.2023,10.05.2023,Children's Services,Education & Childrens Services - CS Dir,BT.COM CONSUMER BP,32.62,0,32.62,Accomodation Costs,Phone services
Buckinghamshire Council ,31.05.2023,10.05.2023,"Planning, Growth & Sustainability",AH&R - PGS Dir,SAFETYSHOP,28.07,0,28.07,General Repairs & Maintenance,Misc Durable goods
Buckinghamshire Council ,31.05.2023,10.05.2023,Resources,Communities - Resources,THE WORKS,13,0,13,Emergency Expenses,Discount stores
Buckinghamshire Council ,31.05.2023,10.05.2023,Communities,Culture & Leisure - Communities Dir,PRINT WORLD,14.1,0,14.1,Stationery & Office Supplies,Stationery & office supplies stores
Buckinghamshire Council ,31.05.2023,10.05.2023,Children's Services,Education & Childrens Services - CS Dir,AMAZON.CO.UK,8.76,0,8.76,Consumable Supplies,Direct sales companies
Buckinghamshire Council ,31.05.2023,10.05.2023,Children's Services,Education & Childrens Services - CS Dir,AMZNMKTPLACE,71.95,0,71.95,Consumable Supplies,Miscellaneous retail
Buckinghamshire Council ,31.05.2023,10.05.2023,Children's Services,Education & Childrens Services - CS Dir,AMAZON PRIME,8.99,0,8.99,Miscellaneous (Other)  Expenses,Continuous subscriptions
Buckinghamshire Council ,31.05.2023,10.05.2023,Children's Services,artnerships - Children's Services,ONE BELOW,2,0,2,"Courses, Conference and Seminar Fees",Grocery stores
Buckinghamshire Council ,31.05.2023,10.05.2023,Children's Services,Education & Childrens Services - CS Dir,B&Q LTD,166,0,166,General Repairs & Maintenance,Timber & building supplies
Buckinghamshire Council ,31.05.2023,10.05.2023,"Planning, Growth & Sustainability",Partnership Climate Change & Envir - PGS,THE LION,50,0,50,Subsistence,"Bars, taverns, pubs & nightclubs"
Buckinghamshire Council ,31.05.2023,10.05.2023,Children's Services,Education & Childrens Services - CS Dir,MR BEE REMOVALS,320,64,384,Sec 17: Financial Assistance One Off,"Haulage, removals & delivery"
Buckinghamshire Council ,31.05.2023,10.05.2023,Children's Services,Education & Childrens Services - CS Dir,HEALTH AND CARE,171.99,0,171.99,Equipment (including storage),"Laboratory, medical & hospital equipment"
Buckinghamshire Council ,31.05.2023,10.05.2023,Children's Services,Education & Childrens Services - CS Dir,WWW.ARGOS.CO.UK,193.95,0,193.95,Equipment (including storage),Department stores
Buckinghamshire Council ,31.05.2023,10.05.2023,Children's Services,Education & Childrens Services - CS Dir,WWW.ARGOS.CO.UK,175,0,175,Equipment (including storage),Department stores
Buckinghamshire Council ,31.05.2023,10.05.2023,Children's Services,Education & Childrens Services - CS Dir,AMZNMKTPLACE,28.49,0,28.49,Leaving Care - Grants for Care Leavers,Miscellaneous retail
Buckinghamshire Council ,31.05.2023,10.05.2023,Children's Services,Education & Childrens Services - CS Dir,BUCKINGHAMSHIRE CNCL,11,0,11,Sec 20/31: Specialist Services,Government services
Buckinghamshire Council ,31.05.2023,10.05.2023,Children's Services,Education & Childrens Services - CS Dir,BUCKINGHAMSHIRE CNCL,11,0,11,Sec 20/31: Specialist Services,Government services
Buckinghamshire Council ,31.05.2023,10.05.2023,Children's Services,Education & Childrens Services - CS Dir,BUCKINGHAMSHIRE CNCL,11,0,11,Sec 20/31: Specialist Services,Government services
Buckinghamshire Council ,31.05.2023,10.05.2023,Communities,ommunities - Trust Accounts,COSTCO WHOLESALE #102,147.81,0,147.81,Purchase of Food for Re-sale,Buying & shopping services/clubs
Buckinghamshire Council ,31.05.2023,10.05.2023,Deputy Chief Executive,AH&R- DCE Dir,PAYPAL,710.99,0,710.99,Miscellaneous (Other)  Expenses,Variety stores
Buckinghamshire Council ,31.05.2023,10.05.2023,Deputy Chief Executive,AH&R- DCE Dir,PAYPAL,212.49,42.51,255,Miscellaneous (Other)  Expenses,Variety stores
Buckinghamshire Council ,31.05.2023,10.05.2023,Deputy Chief Executive,AH&R- DCE Dir,PAYPAL,199.55,39.91,239.46,Miscellaneous (Other)  Expenses,Variety stores
Buckinghamshire Council ,31.05.2023,10.05.2023,Deputy Chief Executive,AH&R- DCE Dir,PAYPAL,0.04,0,0.04,Miscellaneous (Other)  Expenses,Variety stores
Buckinghamshire Council ,31.05.2023,10.05.2023,Deputy Chief Executive,AH&R- DCE Dir,PAYPAL,723.29,144.66,867.95,Miscellaneous (Other)  Expenses,Variety stores
Buckinghamshire Council ,31.05.2023,10.05.2023,Deputy Chief Executive,AH&R- DCE Dir,PAYPAL,606.62,121.33,727.95,Miscellaneous (Other)  Expenses,Variety stores
